Body,Body Name,Date,TransNo,Amount � (Excl VAT),Supplier name,Supplier ID,Expense Area,Expense Type,Expense Code
http://statistics.data.gov.uk/id/local-authority/00BF,London Borough of Sutton,30/06/2016,6887663,580.00,3C Environmental Technology Ltd,14611,Resources Directorate,FM - Planned Maintenance Contract - Mitie,G613
http://statistics.data.gov.uk/id/local-authority/00BF,London Borough of Sutton,12/07/2016,6887032,"2,400.00",3Fox International,20767,"Environment, Housing & Regeneration Directorate",Fees - Consultants (Ad Hoc),F283
http://statistics.data.gov.uk/id/local-authority/00BF,London Borough of Sutton,11/07/2016,6886937,"1,300.00",A Froley & B Ghoorbin,25732,Peoples Services Directorate,Provider Contract Payments,F470
http://statistics.data.gov.uk/id/local-authority/00BF,London Borough of Sutton,30/06/2016,1220527,"1,444.00",A Star Transport Ltd,24386,Peoples Services Directorate,Hired Peoples Transport (Children),E072
http://statistics.data.gov.uk/id/local-authority/00BF,London Borough of Sutton,15/07/2016,6887221,955.00,A T Sound Hire,10306,"Environment, Housing & Regeneration Directorate",Other Equipment-Hire,F070
http://statistics.data.gov.uk/id/local-authority/00BF,London Borough of Sutton,23/06/2016,6887323,"5,280.00",Abbey Primary School,10011,Peoples Services Directorate,Payments to Schools,G065
http://statistics.data.gov.uk/id/local-authority/00BF,London Borough of Sutton,05/06/2016,4959992,435.50,Absolute Care Services Ltd,10021,Peoples Services Directorate,Home Care,G334
http://statistics.data.gov.uk/id/local-authority/00BF,London Borough of Sutton,19/06/2016,4959993,435.50,Absolute Care Services Ltd,10021,Peoples Services Directorate,Home Care,G334
http://statistics.data.gov.uk/id/local-authority/00BF,London Borough of Sutton,28/02/2016,4959998,518.08,Absolute Care Services Ltd,10021,Peoples Services Directorate,Home Care,G334
http://statistics.data.gov.uk/id/local-authority/00BF,London Borough of Sutton,19/06/2016,4960001,518.08,Absolute Care Services Ltd,10021,Peoples Services Directorate,Home Care,G334
http://statistics.data.gov.uk/id/local-authority/00BF,London Borough of Sutton,28/02/2016,4960032,518.08,Absolute Care Services Ltd,10021,Peoples Services Directorate,Home Care,G334
http://statistics.data.gov.uk/id/local-authority/00BF,London Borough of Sutton,05/06/2016,4960077,455.74,Absolute Care Services Ltd,10021,Peoples Services Directorate,Home Care,G334
http://statistics.data.gov.uk/id/local-authority/00BF,London Borough of Sutton,28/02/2016,4960157,512.07,Absolute Care Services Ltd,10021,Peoples Services Directorate,Home Care,G334
http://statistics.data.gov.uk/id/local-authority/00BF,London Borough of Sutton,29/05/2016,4960158,418.47,Absolute Care Services Ltd,10021,Peoples Services Directorate,Home Care,G334
http://statistics.data.gov.uk/id/local-authority/00BF,London Borough of Sutton,05/06/2016,4960159,556.12,Absolute Care Services Ltd,10021,Peoples Services Directorate,Home Care,G334
http://statistics.data.gov.uk/id/local-authority/00BF,London Borough of Sutton,19/06/2016,4960160,556.12,Absolute Care Services Ltd,10021,Peoples Services Directorate,Home Care,G334
http://statistics.data.gov.uk/id/local-authority/00BF,London Borough of Sutton,28/02/2016,4960306,443.25,Absolute Care Services Ltd,10021,Peoples Services Directorate,Home Care,G334
http://statistics.data.gov.uk/id/local-authority/00BF,London Borough of Sutton,29/05/2016,4960307,490.60,Absolute Care Services Ltd,10021,Peoples Services Directorate,Home Care,G334
http://statistics.data.gov.uk/id/local-authority/00BF,London Borough of Sutton,05/06/2016,4960308,627.38,Absolute Care Services Ltd,10021,Peoples Services Directorate,Home Care,G334
http://statistics.data.gov.uk/id/local-authority/00BF,London Borough of Sutton,19/06/2016,4960309,481.78,Absolute Care Services Ltd,10021,Peoples Services Directorate,Home Care,G334
http://statistics.data.gov.uk/id/local-authority/00BF,London Borough of Sutton,12/06/2016,4960873,889.00,Absolute Care Services Ltd,10021,Peoples Services Directorate,Home Care,G334
http://statistics.data.gov.uk/id/local-authority/00BF,London Borough of Sutton,12/06/2016,4960874,871.00,Absolute Care Services Ltd,10021,Peoples Services Directorate,Home Care,G334
http://statistics.data.gov.uk/id/local-authority/00BF,London Borough of Sutton,12/06/2016,4960939,889.00,Absolute Care Services Ltd,10021,Peoples Services Directorate,Home Care,G334
http://statistics.data.gov.uk/id/local-authority/00BF,London Borough of Sutton,12/06/2016,4960940,808.00,Absolute Care Services Ltd,10021,Peoples Services Directorate,Home Care,G334
http://statistics.data.gov.uk/id/local-authority/00BF,London Borough of Sutton,03/07/2016,4968459,742.65,Absolute Care Services Ltd,10021,Peoples Services Directorate,Home Care,G334
http://statistics.data.gov.uk/id/local-authority/00BF,London Borough of Sutton,10/07/2016,4968460,742.65,Absolute Care Services Ltd,10021,Peoples Services Directorate,Home Care,G334
http://statistics.data.gov.uk/id/local-authority/00BF,London Borough of Sutton,17/07/2016,4968461,782.46,Absolute Care Services Ltd,10021,Peoples Services Directorate,Home Care,G334
http://statistics.data.gov.uk/id/local-authority/00BF,London Borough of Sutton,26/06/2016,4968478,435.50,Absolute Care Services Ltd,10021,Peoples Services Directorate,Home Care,G334
http://statistics.data.gov.uk/id/local-authority/00BF,London Borough of Sutton,03/07/2016,4968479,435.50,Absolute Care Services Ltd,10021,Peoples Services Directorate,Home Care,G334
http://statistics.data.gov.uk/id/local-authority/00BF,London Borough of Sutton,10/07/2016,4968480,435.50,Absolute Care Services Ltd,10021,Peoples Services Directorate,Home Care,G334
http://statistics.data.gov.uk/id/local-authority/00BF,London Borough of Sutton,17/07/2016,4968481,435.50,Absolute Care Services Ltd,10021,Peoples Services Directorate,Home Care,G334
http://statistics.data.gov.uk/id/local-authority/00BF,London Borough of Sutton,26/06/2016,4968486,518.08,Absolute Care Services Ltd,10021,Peoples Services Directorate,Home Care,G334
http://statistics.data.gov.uk/id/local-authority/00BF,London Borough of Sutton,03/07/2016,4968487,518.08,Absolute Care Services Ltd,10021,Peoples Services Directorate,Home Care,G334
http://statistics.data.gov.uk/id/local-authority/00BF,London Borough of Sutton,10/07/2016,4968488,518.08,Absolute Care Services Ltd,10021,Peoples Services Directorate,Home Care,G334
http://statistics.data.gov.uk/id/local-authority/00BF,London Borough of Sutton,17/07/2016,4968492,518.08,Absolute Care Services Ltd,10021,Peoples Services Directorate,Home Care,G334
http://statistics.data.gov.uk/id/local-authority/00BF,London Borough of Sutton,26/06/2016,4968566,556.12,Absolute Care Services Ltd,10021,Peoples Services Directorate,Home Care,G334
http://statistics.data.gov.uk/id/local-authority/00BF,London Borough of Sutton,03/07/2016,4968567,556.12,Absolute Care Services Ltd,10021,Peoples Services Directorate,Home Care,G334
http://statistics.data.gov.uk/id/local-authority/00BF,London Borough of Sutton,10/07/2016,4968568,556.12,Absolute Care Services Ltd,10021,Peoples Services Directorate,Home Care,G334
http://statistics.data.gov.uk/id/local-authority/00BF,London Borough of Sutton,17/07/2016,4968569,556.12,Absolute Care Services Ltd,10021,Peoples Services Directorate,Home Care,G334
http://statistics.data.gov.uk/id/local-authority/00BF,London Borough of Sutton,03/07/2016,4968667,546.00,Absolute Care Services Ltd,10021,Peoples Services Directorate,Home Care,G334
http://statistics.data.gov.uk/id/local-authority/00BF,London Borough of Sutton,10/07/2016,4968668,546.00,Absolute Care Services Ltd,10021,Peoples Services Directorate,Home Care,G334
http://statistics.data.gov.uk/id/local-authority/00BF,London Borough of Sutton,17/07/2016,4968669,546.00,Absolute Care Services Ltd,10021,Peoples Services Directorate,Home Care,G334
http://statistics.data.gov.uk/id/local-authority/00BF,London Borough of Sutton,27/03/2016,4968840,546.00,Absolute Care Services Ltd,10021,Peoples Services Directorate,Home Care,G334
http://statistics.data.gov.uk/id/local-authority/00BF,London Borough of Sutton,26/06/2016,4968911,546.00,Absolute Care Services Ltd,10021,Peoples Services Directorate,Home Care,G334
http://statistics.data.gov.uk/id/local-authority/00BF,London Borough of Sutton,01/01/2016,4970036,"1,207.50",Absolute Care Services Ltd,10021,Peoples Services Directorate,Home Care,G334
http://statistics.data.gov.uk/id/local-authority/00BF,London Borough of Sutton,03/07/2016,4970106,455.00,Absolute Care Services Ltd,10021,Peoples Services Directorate,Home Care,G334
http://statistics.data.gov.uk/id/local-authority/00BF,London Borough of Sutton,10/07/2016,4970107,455.00,Absolute Care Services Ltd,10021,Peoples Services Directorate,Home Care,G334
http://statistics.data.gov.uk/id/local-authority/00BF,London Borough of Sutton,17/07/2016,4970108,455.00,Absolute Care Services Ltd,10021,Peoples Services Directorate,Home Care,G334
http://statistics.data.gov.uk/id/local-authority/00BF,London Borough of Sutton,03/07/2016,4970112,682.50,Absolute Care Services Ltd,10021,Peoples Services Directorate,Home Care,G334
http://statistics.data.gov.uk/id/local-authority/00BF,London Borough of Sutton,27/03/2016,4970123,"2,415.00",Absolute Care Services Ltd,10021,Peoples Services Directorate,Home Care,G334
http://statistics.data.gov.uk/id/local-authority/00BF,London Borough of Sutton,03/07/2016,4970155,"2,415.00",Absolute Care Services Ltd,10021,Peoples Services Directorate,Home Care,G334
http://statistics.data.gov.uk/id/local-authority/00BF,London Borough of Sutton,10/07/2016,4970156,"2,415.00",Absolute Care Services Ltd,10021,Peoples Services Directorate,Home Care,G334
http://statistics.data.gov.uk/id/local-authority/00BF,London Borough of Sutton,17/07/2016,4970157,"2,415.00",Absolute Care Services Ltd,10021,Peoples Services Directorate,Home Care,G334
http://statistics.data.gov.uk/id/local-authority/00BF,London Borough of Sutton,27/03/2016,4970252,455.00,Absolute Care Services Ltd,10021,Peoples Services Directorate,Home Care,G334
http://statistics.data.gov.uk/id/local-authority/00BF,London Borough of Sutton,27/03/2016,4970254,682.50,Absolute Care Services Ltd,10021,Peoples Services Directorate,Home Care,G334
http://statistics.data.gov.uk/id/local-authority/00BF,London Borough of Sutton,26/06/2016,4970290,"2,415.00",Absolute Care Services Ltd,10021,Peoples Services Directorate,Home Care,G334
http://statistics.data.gov.uk/id/local-authority/00BF,London Borough of Sutton,26/06/2016,4970339,455.00,Absolute Care Services Ltd,10021,Peoples Services Directorate,Home Care,G334
http://statistics.data.gov.uk/id/local-authority/00BF,London Borough of Sutton,26/06/2016,4970341,682.50,Absolute Care Services Ltd,10021,Peoples Services Directorate,Home Care,G334
http://statistics.data.gov.uk/id/local-authority/00BF,London Borough of Sutton,26/06/2016,4970477,455.74,Absolute Care Services Ltd,10021,Peoples Services Directorate,Home Care,G334
http://statistics.data.gov.uk/id/local-authority/00BF,London Borough of Sutton,03/07/2016,4970478,455.74,Absolute Care Services Ltd,10021,Peoples Services Directorate,Home Care,G334
http://statistics.data.gov.uk/id/local-authority/00BF,London Borough of Sutton,10/07/2016,4970479,455.74,Absolute Care Services Ltd,10021,Peoples Services Directorate,Home Care,G334
http://statistics.data.gov.uk/id/local-authority/00BF,London Borough of Sutton,24/04/2016,4970704,419.20,Absolute Care Services Ltd,10021,Peoples Services Directorate,Home Care,G334
http://statistics.data.gov.uk/id/local-authority/00BF,London Borough of Sutton,17/07/2016,4970772,455.74,Absolute Care Services Ltd,10021,Peoples Services Directorate,Home Care,G334
http://statistics.data.gov.uk/id/local-authority/00BF,London Borough of Sutton,30/05/2016,6883798,877.80,Absolute Care Services Ltd,10021,Peoples Services Directorate,Homecare Core Services,G336
http://statistics.data.gov.uk/id/local-authority/00BF,London Borough of Sutton,06/06/2016,6884249,877.80,Absolute Care Services Ltd,10021,Peoples Services Directorate,Homecare Core Services,G336
http://statistics.data.gov.uk/id/local-authority/00BF,London Borough of Sutton,13/06/2016,6884659,"4,828.75",Absolute Care Services Ltd,10021,Peoples Services Directorate,Homecare Core Services,G336
http://statistics.data.gov.uk/id/local-authority/00BF,London Borough of Sutton,13/06/2016,6884661,"4,620.00",Absolute Care Services Ltd,10021,Peoples Services Directorate,Rent - General,D650
http://statistics.data.gov.uk/id/local-authority/00BF,London Borough of Sutton,13/06/2016,6884662,"6,902.75",Absolute Care Services Ltd,10021,Peoples Services Directorate,Homecare Core Services,G336
http://statistics.data.gov.uk/id/local-authority/00BF,London Borough of Sutton,13/06/2016,6884663,877.80,Absolute Care Services Ltd,10021,Peoples Services Directorate,Homecare Core Services,G336
http://statistics.data.gov.uk/id/local-authority/00BF,London Borough of Sutton,20/06/2016,6885216,"4,828.75",Absolute Care Services Ltd,10021,Peoples Services Directorate,Homecare Core Services,G336
http://statistics.data.gov.uk/id/local-authority/00BF,London Borough of Sutton,20/06/2016,6885217,"4,620.00",Absolute Care Services Ltd,10021,Peoples Services Directorate,Homecare Core Services,G336
http://statistics.data.gov.uk/id/local-authority/00BF,London Borough of Sutton,20/06/2016,6885218,"6,902.75",Absolute Care Services Ltd,10021,Peoples Services Directorate,Homecare Core Services,G336
http://statistics.data.gov.uk/id/local-authority/00BF,London Borough of Sutton,20/06/2016,6885219,877.80,Absolute Care Services Ltd,10021,Peoples Services Directorate,Homecare Core Services,G336
http://statistics.data.gov.uk/id/local-authority/00BF,London Borough of Sutton,27/06/2016,6885699,877.80,Absolute Care Services Ltd,10021,Peoples Services Directorate,Homecare Core Services,G336
http://statistics.data.gov.uk/id/local-authority/00BF,London Borough of Sutton,04/07/2016,6886226,877.80,Absolute Care Services Ltd,10021,Peoples Services Directorate,Homecare Core Services,G336
http://statistics.data.gov.uk/id/local-authority/00BF,London Borough of Sutton,11/07/2016,6886745,877.80,Absolute Care Services Ltd,10021,Peoples Services Directorate,Homecare Core Services,G336
http://statistics.data.gov.uk/id/local-authority/00BF,London Borough of Sutton,11/07/2016,6886746,"4,620.00",Absolute Care Services Ltd,10021,Peoples Services Directorate,Homecare Core Services,G336
http://statistics.data.gov.uk/id/local-authority/00BF,London Borough of Sutton,11/07/2016,6886747,"4,828.75",Absolute Care Services Ltd,10021,Peoples Services Directorate,Homecare Core Services,G336
http://statistics.data.gov.uk/id/local-authority/00BF,London Borough of Sutton,04/07/2016,6886761,"4,620.00",Absolute Care Services Ltd,10021,Peoples Services Directorate,Homecare Core Services,G336
http://statistics.data.gov.uk/id/local-authority/00BF,London Borough of Sutton,04/07/2016,6886762,"4,828.75",Absolute Care Services Ltd,10021,Peoples Services Directorate,Homecare Core Services,G336
http://statistics.data.gov.uk/id/local-authority/00BF,London Borough of Sutton,27/06/2016,6886763,"4,620.00",Absolute Care Services Ltd,10021,Peoples Services Directorate,Homecare Core Services,G336
http://statistics.data.gov.uk/id/local-authority/00BF,London Borough of Sutton,27/06/2016,6886764,"4,828.75",Absolute Care Services Ltd,10021,Peoples Services Directorate,Homecare Core Services,G336
http://statistics.data.gov.uk/id/local-authority/00BF,London Borough of Sutton,06/06/2016,6886765,"4,620.00",Absolute Care Services Ltd,10021,Peoples Services Directorate,Homecare Core Services,G336
http://statistics.data.gov.uk/id/local-authority/00BF,London Borough of Sutton,02/05/2016,6886766,"4,620.00",Absolute Care Services Ltd,10021,Peoples Services Directorate,Homecare Core Services,G336
http://statistics.data.gov.uk/id/local-authority/00BF,London Borough of Sutton,06/06/2016,6886927,"6,902.75",Absolute Care Services Ltd,10021,Peoples Services Directorate,Homecare Core Services,G336
http://statistics.data.gov.uk/id/local-authority/00BF,London Borough of Sutton,27/06/2016,6886928,"6,902.75",Absolute Care Services Ltd,10021,Peoples Services Directorate,Homecare Core Services,G336
http://statistics.data.gov.uk/id/local-authority/00BF,London Borough of Sutton,04/07/2016,6886929,"6,902.75",Absolute Care Services Ltd,10021,Peoples Services Directorate,Homecare Core Services,G336
http://statistics.data.gov.uk/id/local-authority/00BF,London Borough of Sutton,11/07/2016,6886930,"6,902.75",Absolute Care Services Ltd,10021,Peoples Services Directorate,Homecare Core Services,G336
http://statistics.data.gov.uk/id/local-authority/00BF,London Borough of Sutton,18/07/2016,6887328,"4,828.75",Absolute Care Services Ltd,10021,Peoples Services Directorate,Homecare Core Services,G336
http://statistics.data.gov.uk/id/local-authority/00BF,London Borough of Sutton,18/07/2016,6887329,"4,620.00",Absolute Care Services Ltd,10021,Peoples Services Directorate,Homecare Core Services,G336
http://statistics.data.gov.uk/id/local-authority/00BF,London Borough of Sutton,18/07/2016,6887330,"6,902.75",Absolute Care Services Ltd,10021,Peoples Services Directorate,Homecare Core Services,G336
http://statistics.data.gov.uk/id/local-authority/00BF,London Borough of Sutton,18/07/2016,6887331,877.80,Absolute Care Services Ltd,10021,Peoples Services Directorate,Homecare Core Services,G336
http://statistics.data.gov.uk/id/local-authority/00BF,London Borough of Sutton,25/07/2016,6887720,"4,828.75",Absolute Care Services Ltd,10021,Peoples Services Directorate,Homecare Core Services,G336
http://statistics.data.gov.uk/id/local-authority/00BF,London Borough of Sutton,25/07/2016,6887721,"4,620.00",Absolute Care Services Ltd,10021,Peoples Services Directorate,Homecare Core Services,G336
http://statistics.data.gov.uk/id/local-authority/00BF,London Borough of Sutton,25/07/2016,6887723,877.80,Absolute Care Services Ltd,10021,Peoples Services Directorate,Homecare Core Services,G336
http://statistics.data.gov.uk/id/local-authority/00BF,London Borough of Sutton,25/07/2016,6887877,463.26,Absolute Care Services Ltd,10021,Peoples Services Directorate,Homecare Core Services,G336
http://statistics.data.gov.uk/id/local-authority/00BF,London Borough of Sutton,30/06/2016,1220528,"1,596.00",Access Mobility Transport Ltd,27456,Peoples Services Directorate,Hired Peoples Transport (Children),E072
http://statistics.data.gov.uk/id/local-authority/00BF,London Borough of Sutton,30/06/2016,1220529,468.00,Access Mobility Transport Ltd,27456,Peoples Services Directorate,Hired Peoples Transport (Children),E072
http://statistics.data.gov.uk/id/local-authority/00BF,London Borough of Sutton,30/06/2016,1220530,"2,812.00",Access Mobility Transport Ltd,27456,Peoples Services Directorate,Hired Peoples Transport (Children),E072
http://statistics.data.gov.uk/id/local-authority/00BF,London Borough of Sutton,30/06/2016,1220531,"1,768.00",Access Mobility Transport Ltd,27456,Peoples Services Directorate,Hired Peoples Transport (Children),E072
http://statistics.data.gov.uk/id/local-authority/00BF,London Borough of Sutton,06/05/2016,4959086,"3,964.20",Acorn Homes UK Ltd,25726,Peoples Services Directorate,Approved Lodgings,H323
http://statistics.data.gov.uk/id/local-authority/00BF,London Borough of Sutton,29/06/2016,4969967,"4,096.34",Acorn Homes UK Ltd,25726,Peoples Services Directorate,Approved Lodgings,H323
http://statistics.data.gov.uk/id/local-authority/00BF,London Borough of Sutton,15/07/2016,4961301,"2,903.20",Acorn Lodge,15804,Peoples Services Directorate,Residential Care - Ext Provider,G310
http://statistics.data.gov.uk/id/local-authority/00BF,London Borough of Sutton,15/07/2016,4961944,"3,042.36",Acorn Residential Home,15828,Peoples Services Directorate,Residential Care - Ext Provider,G310
http://statistics.data.gov.uk/id/local-authority/00BF,London Borough of Sutton,30/09/2015,4959135,"14,285.80",Active 8 Care Ltd,28602,Peoples Services Directorate,Residential Care-Children,G330
http://statistics.data.gov.uk/id/local-authority/00BF,London Borough of Sutton,14/06/2016,6885871,"1,225.00",Adaram Ltd T/A Rosehill Lodging,12014,"Environment, Housing & Regeneration Directorate",Bed and Breakfast Accommodation,G400
http://statistics.data.gov.uk/id/local-authority/00BF,London Borough of Sutton,14/06/2016,6885875,"1,225.00",Adaram Ltd T/A Rosehill Lodging,12014,"Environment, Housing & Regeneration Directorate",Bed and Breakfast Accommodation,G400
http://statistics.data.gov.uk/id/local-authority/00BF,London Borough of Sutton,14/06/2016,6885876,"1,225.00",Adaram Ltd T/A Rosehill Lodging,12014,"Environment, Housing & Regeneration Directorate",Bed and Breakfast Accommodation,G400
http://statistics.data.gov.uk/id/local-authority/00BF,London Borough of Sutton,23/05/2016,6887230,"1,225.00",Adaram Ltd T/A Rosehill Lodging,12014,"Environment, Housing & Regeneration Directorate",Bed and Breakfast Accommodation,G400
http://statistics.data.gov.uk/id/local-authority/00BF,London Borough of Sutton,23/05/2016,6887231,"1,225.00",Adaram Ltd T/A Rosehill Lodging,12014,"Environment, Housing & Regeneration Directorate",Bed and Breakfast Accommodation,G400
http://statistics.data.gov.uk/id/local-authority/00BF,London Borough of Sutton,13/07/2016,6887358,"1,225.00",Adaram Ltd T/A Rosehill Lodging,12014,"Environment, Housing & Regeneration Directorate",Bed and Breakfast Accommodation,G400
http://statistics.data.gov.uk/id/local-authority/00BF,London Borough of Sutton,13/07/2016,6887359,"1,225.00",Adaram Ltd T/A Rosehill Lodging,12014,"Environment, Housing & Regeneration Directorate",Bed and Breakfast Accommodation,G400
http://statistics.data.gov.uk/id/local-authority/00BF,London Borough of Sutton,13/07/2016,6887360,"1,225.00",Adaram Ltd T/A Rosehill Lodging,12014,"Environment, Housing & Regeneration Directorate",Bed and Breakfast Accommodation,G400
http://statistics.data.gov.uk/id/local-authority/00BF,London Borough of Sutton,13/07/2016,6887361,"1,225.00",Adaram Ltd T/A Rosehill Lodging,12014,"Environment, Housing & Regeneration Directorate",Bed and Breakfast Accommodation,G400
http://statistics.data.gov.uk/id/local-authority/00BF,London Borough of Sutton,15/07/2016,4961277,"1,242.86",Addiction Recovery Centres Ltd,23357,Peoples Services Directorate,Interim Placements - Ext Provider,G317
http://statistics.data.gov.uk/id/local-authority/00BF,London Borough of Sutton,15/06/2016,6886215,"198,843.65",Adecco Uk Ltd,10059,Resources Directorate,Suspense/Holding Accounts,X550
http://statistics.data.gov.uk/id/local-authority/00BF,London Borough of Sutton,24/06/2016,6886216,571.69,Adecco Uk Ltd,10059,Resources Directorate,Suspense/Holding Accounts,X550
http://statistics.data.gov.uk/id/local-authority/00BF,London Borough of Sutton,22/06/2016,6886217,"214,207.41",Adecco Uk Ltd,10059,Resources Directorate,Suspense/Holding Accounts,X550
http://statistics.data.gov.uk/id/local-authority/00BF,London Borough of Sutton,01/03/2016,6887033,"1,250.00",Adoption Uk,10077,Peoples Services Directorate,Subscriptions - General,F450
http://statistics.data.gov.uk/id/local-authority/00BF,London Borough of Sutton,25/05/2016,6885397,"3,907.00",Adrem Contracts Ltd,97662,"Environment, Housing & Regeneration Directorate",Building Works -Main Contractor,Y350
http://statistics.data.gov.uk/id/local-authority/00BF,London Borough of Sutton,04/07/2016,6887396,"3,336.84",Advocacy For All,24795,Peoples Services Directorate,Provider Contract Payments,F470
http://statistics.data.gov.uk/id/local-authority/00BF,London Borough of Sutton,01/06/2016,6887397,"1,910.22",Advocacy For All,24795,Peoples Services Directorate,Provider Contract Payments,F470
http://statistics.data.gov.uk/id/local-authority/00BF,London Borough of Sutton,15/06/2016,6885099,806.25,Affinity Workforce Ltd,26099,Peoples Services Directorate,Agency Staff - Adecco,A300
http://statistics.data.gov.uk/id/local-authority/00BF,London Borough of Sutton,22/06/2016,6885684,806.25,Affinity Workforce Ltd,26099,Peoples Services Directorate,Agency Staff - Adecco,A300
http://statistics.data.gov.uk/id/local-authority/00BF,London Borough of Sutton,29/06/2016,6886170,806.25,Affinity Workforce Ltd,26099,Peoples Services Directorate,Agency Staff - Adecco,A300
http://statistics.data.gov.uk/id/local-authority/00BF,London Borough of Sutton,06/07/2016,6886546,806.25,Affinity Workforce Ltd,26099,Peoples Services Directorate,Agency Staff - Adecco,A300
http://statistics.data.gov.uk/id/local-authority/00BF,London Borough of Sutton,03/07/2016,6887219,"1,422.00",Affinity Workforce Ltd,26099,Peoples Services Directorate,Agency Staff - Adecco,A300
http://statistics.data.gov.uk/id/local-authority/00BF,London Borough of Sutton,13/06/2016,6887842,524.19,Agilisys Contact Services Ltd,25894,Resources Directorate,Fees - Bailiffs,F302
http://statistics.data.gov.uk/id/local-authority/00BF,London Borough of Sutton,15/07/2016,4961751,"7,511.00",Aims Care Partnership (Leighton House Ltd),12628,Peoples Services Directorate,Residential Care - Ext Provider,G310
http://statistics.data.gov.uk/id/local-authority/00BF,London Borough of Sutton,15/07/2016,4961305,"5,278.00",Aitch Care Homes,20446,Peoples Services Directorate,Residential Care - Ext Provider,G310
http://statistics.data.gov.uk/id/local-authority/00BF,London Borough of Sutton,15/07/2016,4961325,"8,400.16",Aitch Care Homes,20446,Peoples Services Directorate,Residential Care - Ext Provider,G310
http://statistics.data.gov.uk/id/local-authority/00BF,London Borough of Sutton,01/05/2016,6882088,"1,408.52",All Security Ltd,97190,"Environment, Housing & Regeneration Directorate",Agency Services,G431
http://statistics.data.gov.uk/id/local-authority/00BF,London Borough of Sutton,01/06/2016,6884074,"1,515.69",All Security Ltd,97190,"Environment, Housing & Regeneration Directorate",Agency Services,G431
http://statistics.data.gov.uk/id/local-authority/00BF,London Borough of Sutton,01/07/2016,6886246,"1,393.21",All Security Ltd,97190,"Environment, Housing & Regeneration Directorate",Agency Services,G431
http://statistics.data.gov.uk/id/local-authority/00BF,London Borough of Sutton,30/06/2016,6885995,924.00,Allan White Motors Ltd,14584,"Environment, Housing & Regeneration Directorate",Centralised Transport Hire,E068
http://statistics.data.gov.uk/id/local-authority/00BF,London Borough of Sutton,08/07/2016,6886634,924.00,Allan White Motors Ltd,14584,"Environment, Housing & Regeneration Directorate",Centralised Transport Hire,E068
http://statistics.data.gov.uk/id/local-authority/00BF,London Borough of Sutton,11/07/2016,6886743,464.80,Allan White Motors Ltd,14584,"Environment, Housing & Regeneration Directorate",Centralised Transport Hire,E068
http://statistics.data.gov.uk/id/local-authority/00BF,London Borough of Sutton,13/07/2016,6886989,924.00,Allan White Motors Ltd,14584,"Environment, Housing & Regeneration Directorate",Centralised Transport Hire,E068
http://statistics.data.gov.uk/id/local-authority/00BF,London Borough of Sutton,26/07/2016,6887840,"1,001.00",Allan White Motors Ltd,14584,"Environment, Housing & Regeneration Directorate",Centralised Transport Hire,E068
http://statistics.data.gov.uk/id/local-authority/00BF,London Borough of Sutton,28/07/2016,6887973,924.00,Allan White Motors Ltd,14584,"Environment, Housing & Regeneration Directorate",Centralised Transport Hire,E068
http://statistics.data.gov.uk/id/local-authority/00BF,London Borough of Sutton,15/07/2016,4961294,"6,234.48",Allied Care (Mhs) Ltd,10145,Peoples Services Directorate,Residential Care - Ext Provider,G310
http://statistics.data.gov.uk/id/local-authority/00BF,London Borough of Sutton,07/07/2016,6887019,670.00,Alljos Services Limited,99815,"Environment, Housing & Regeneration Directorate",Building Works,D421
http://statistics.data.gov.uk/id/local-authority/00BF,London Borough of Sutton,11/07/2016,6887628,495.00,Alljos Services Limited,99815,"Environment, Housing & Regeneration Directorate",Building Works,D421
http://statistics.data.gov.uk/id/local-authority/00BF,London Borough of Sutton,15/06/2016,6885314,958.06,Allstar Business Solutions,24482,"Environment, Housing & Regeneration Directorate",Fuel Etc,E030
http://statistics.data.gov.uk/id/local-authority/00BF,London Borough of Sutton,30/06/2016,6886047,901.37,Allstar Business Solutions,24482,"Environment, Housing & Regeneration Directorate",Fuel Etc,E030
http://statistics.data.gov.uk/id/local-authority/00BF,London Borough of Sutton,15/07/2016,4961765,"8,013.56",Allswell Care Services Ltd,20761,Peoples Services Directorate,Residential Care - Ext Provider,G310
http://statistics.data.gov.uk/id/local-authority/00BF,London Borough of Sutton,15/07/2016,4961590,"5,014.30",Alum Care Ltd t/a Kings Lodge,18966,Peoples Services Directorate,Respite Care,G333
http://statistics.data.gov.uk/id/local-authority/00BF,London Borough of Sutton,15/07/2016,4961785,"6,000.00",Alum Care Ltd t/a Kings Lodge,18966,Peoples Services Directorate,Nursing Care - Short Term Placements,G328
http://statistics.data.gov.uk/id/local-authority/00BF,London Borough of Sutton,20/06/2016,4959097,"17,994.67",Anderida Adolescent Care Ltd,26195,Peoples Services Directorate,Residential Care-Children,G330
http://statistics.data.gov.uk/id/local-authority/00BF,London Borough of Sutton,16/06/2016,4958470,699.20,Angel Home AS Ltd,10173,Peoples Services Directorate,Day Care,G337
http://statistics.data.gov.uk/id/local-authority/00BF,London Borough of Sutton,16/05/2016,4958475,874.00,Angel Home AS Ltd,10173,Peoples Services Directorate,Day Care,G337
http://statistics.data.gov.uk/id/local-authority/00BF,London Borough of Sutton,09/06/2016,4958480,674.00,Angel Home AS Ltd,10173,Peoples Services Directorate,Day Care,G337
http://statistics.data.gov.uk/id/local-authority/00BF,London Borough of Sutton,08/06/2016,4958481,674.00,Angel Home AS Ltd,10173,Peoples Services Directorate,Day Care,G337
http://statistics.data.gov.uk/id/local-authority/00BF,London Borough of Sutton,16/06/2016,4958482,692.00,Angel Home AS Ltd,10173,Peoples Services Directorate,Day Care,G337
http://statistics.data.gov.uk/id/local-authority/00BF,London Borough of Sutton,06/05/2016,4958484,899.20,Angel Home AS Ltd,10173,Peoples Services Directorate,Day Care,G337
http://statistics.data.gov.uk/id/local-authority/00BF,London Borough of Sutton,06/05/2016,4958485,898.80,Angel Home AS Ltd,10173,Peoples Services Directorate,Day Care,G337
http://statistics.data.gov.uk/id/local-authority/00BF,London Borough of Sutton,16/05/2016,4958486,874.00,Angel Home AS Ltd,10173,Peoples Services Directorate,Day Care,G337
http://statistics.data.gov.uk/id/local-authority/00BF,London Borough of Sutton,15/07/2016,4961295,"2,842.00",Angel Home AS Ltd,10173,Peoples Services Directorate,Residential Care - Ext Provider,G310
http://statistics.data.gov.uk/id/local-authority/00BF,London Borough of Sutton,15/07/2016,4961668,"2,458.96",Angel Home AS Ltd,10173,Peoples Services Directorate,Residential Care - Ext Provider,G310
http://statistics.data.gov.uk/id/local-authority/00BF,London Borough of Sutton,15/07/2016,4961720,"2,131.92",Angel Home AS Ltd,10173,Peoples Services Directorate,Residential Care - Ext Provider,G310
http://statistics.data.gov.uk/id/local-authority/00BF,London Borough of Sutton,15/07/2016,4961722,"2,200.00",Angel Home AS Ltd,10173,Peoples Services Directorate,Residential Care - Ext Provider,G310
http://statistics.data.gov.uk/id/local-authority/00BF,London Borough of Sutton,15/07/2016,4961743,"2,056.80",Angel Home AS Ltd,10173,Peoples Services Directorate,Residential Care - Ext Provider,G310
http://statistics.data.gov.uk/id/local-authority/00BF,London Borough of Sutton,11/07/2016,6887072,"1,849.78",Angel Lettings,18658,"Environment, Housing & Regeneration Directorate",General Office Expenses,F235
http://statistics.data.gov.uk/id/local-authority/00BF,London Borough of Sutton,11/07/2016,6887073,"2,360.00",Angel Lettings,18658,"Environment, Housing & Regeneration Directorate",General Office Expenses,F235
http://statistics.data.gov.uk/id/local-authority/00BF,London Borough of Sutton,11/07/2016,6886882,"2,550.00",Ann-Marie Drake,28928,Peoples Services Directorate,Contractual Consultant Fees,G430
http://statistics.data.gov.uk/id/local-authority/00BF,London Borough of Sutton,08/07/2016,6886638,"5,000.00",Aon UK Limited,26323,Resources Directorate,Fees - Consultants (Ad Hoc),F283
http://statistics.data.gov.uk/id/local-authority/00BF,London Borough of Sutton,31/05/2016,6886256,"5,530.20",Apetito Ltd,10206,Peoples Services Directorate,Provisions - General,F150
http://statistics.data.gov.uk/id/local-authority/00BF,London Borough of Sutton,09/06/2016,6886177,"4,763.79",Architype Ltd,25419,Peoples Services Directorate,External Fees  - Other,Y130
http://statistics.data.gov.uk/id/local-authority/00BF,London Borough of Sutton,01/07/2016,6886185,"102,109.00",Architype Ltd,25419,Peoples Services Directorate,External Fees  - Architects,Y100
http://statistics.data.gov.uk/id/local-authority/00BF,London Borough of Sutton,01/07/2016,6886186,"77,630.00",Architype Ltd,25419,Peoples Services Directorate,External Fees  - Architects,Y100
http://statistics.data.gov.uk/id/local-authority/00BF,London Borough of Sutton,05/07/2016,6886798,"20,964.00",Architype Ltd,25419,Peoples Services Directorate,External Fees  - Architects,Y100
http://statistics.data.gov.uk/id/local-authority/00BF,London Borough of Sutton,10/07/2016,6886966,866.25,Architype Ltd,25419,Peoples Services Directorate,External Fees  - Architects,Y100
http://statistics.data.gov.uk/id/local-authority/00BF,London Borough of Sutton,10/07/2016,6886967,"4,000.00",Architype Ltd,25419,Peoples Services Directorate,External Fees  - Other,Y130
http://statistics.data.gov.uk/id/local-authority/00BF,London Borough of Sutton,10/07/2016,6887029,877.50,Architype Ltd,25419,Peoples Services Directorate,External Fees  - Architects,Y100
http://statistics.data.gov.uk/id/local-authority/00BF,London Borough of Sutton,10/07/2016,6887066,"7,600.78",Architype Ltd,25419,Peoples Services Directorate,External Fees  - Other,Y130
http://statistics.data.gov.uk/id/local-authority/00BF,London Borough of Sutton,16/06/2016,4959112,"12,000.00",Artemis Support Limited,28947,Peoples Services Directorate,Residential Care-Children,G330
http://statistics.data.gov.uk/id/local-authority/00BF,London Borough of Sutton,19/05/2016,4959145,"12,000.00",Artemis Support Limited,28947,Peoples Services Directorate,Residential Care-Children,G330
http://statistics.data.gov.uk/id/local-authority/00BF,London Borough of Sutton,14/07/2016,4969999,"12,000.00",Artemis Support Limited,28947,Peoples Services Directorate,Residential Care-Children,G330
http://statistics.data.gov.uk/id/local-authority/00BF,London Borough of Sutton,01/06/2016,4958459,"1,016.10",Ashbrook House Ltd,23499,Peoples Services Directorate,Supported Living - Ext Provider,G306
http://statistics.data.gov.uk/id/local-authority/00BF,London Borough of Sutton,15/07/2016,4961324,"7,000.04",Ashcroft Care Services,22571,Peoples Services Directorate,Residential Care - Ext Provider,G310
http://statistics.data.gov.uk/id/local-authority/00BF,London Borough of Sutton,01/07/2016,4961228,"2,306.08",Ashlong House Ltd,23101,Peoples Services Directorate,Supported Living - Ext Provider,G306
http://statistics.data.gov.uk/id/local-authority/00BF,London Borough of Sutton,01/07/2016,4961236,884.48,Ashlong House Ltd,23101,Peoples Services Directorate,Supported Living - Ext Provider,G306
http://statistics.data.gov.uk/id/local-authority/00BF,London Borough of Sutton,31/05/2016,6886323,"1,085.00",Assetgrove Lettings Ltd,28820,"Environment, Housing & Regeneration Directorate",Bed and Breakfast Accommodation,G400
http://statistics.data.gov.uk/id/local-authority/00BF,London Borough of Sutton,31/05/2016,6886324,"1,085.00",Assetgrove Lettings Ltd,28820,"Environment, Housing & Regeneration Directorate",Bed and Breakfast Accommodation,G400
http://statistics.data.gov.uk/id/local-authority/00BF,London Borough of Sutton,31/05/2016,6886325,"1,085.00",Assetgrove Lettings Ltd,28820,"Environment, Housing & Regeneration Directorate",Bed and Breakfast Accommodation,G400
http://statistics.data.gov.uk/id/local-authority/00BF,London Borough of Sutton,31/05/2016,6886326,"1,085.00",Assetgrove Lettings Ltd,28820,"Environment, Housing & Regeneration Directorate",Bed and Breakfast Accommodation,G400
http://statistics.data.gov.uk/id/local-authority/00BF,London Borough of Sutton,31/05/2016,6886328,"1,085.00",Assetgrove Lettings Ltd,28820,"Environment, Housing & Regeneration Directorate",Bed and Breakfast Accommodation,G400
http://statistics.data.gov.uk/id/local-authority/00BF,London Borough of Sutton,31/05/2016,6886330,"1,457.00",Assetgrove Lettings Ltd,28820,"Environment, Housing & Regeneration Directorate",Bed and Breakfast Accommodation,G400
http://statistics.data.gov.uk/id/local-authority/00BF,London Borough of Sutton,31/05/2016,6886332,"1,085.00",Assetgrove Lettings Ltd,28820,"Environment, Housing & Regeneration Directorate",Bed and Breakfast Accommodation,G400
http://statistics.data.gov.uk/id/local-authority/00BF,London Borough of Sutton,31/05/2016,6886333,"1,457.00",Assetgrove Lettings Ltd,28820,"Environment, Housing & Regeneration Directorate",Bed and Breakfast Accommodation,G400
http://statistics.data.gov.uk/id/local-authority/00BF,London Borough of Sutton,31/05/2016,6886334,"1,085.00",Assetgrove Lettings Ltd,28820,"Environment, Housing & Regeneration Directorate",Bed and Breakfast Accommodation,G400
http://statistics.data.gov.uk/id/local-authority/00BF,London Borough of Sutton,31/05/2016,6886335,"1,085.00",Assetgrove Lettings Ltd,28820,"Environment, Housing & Regeneration Directorate",Bed and Breakfast Accommodation,G400
http://statistics.data.gov.uk/id/local-authority/00BF,London Borough of Sutton,31/05/2016,6886336,"1,085.00",Assetgrove Lettings Ltd,28820,"Environment, Housing & Regeneration Directorate",Bed and Breakfast Accommodation,G400
http://statistics.data.gov.uk/id/local-authority/00BF,London Borough of Sutton,31/05/2016,6886337,961.00,Assetgrove Lettings Ltd,28820,"Environment, Housing & Regeneration Directorate",Bed and Breakfast Accommodation,G400
http://statistics.data.gov.uk/id/local-authority/00BF,London Borough of Sutton,31/05/2016,6886338,"1,085.00",Assetgrove Lettings Ltd,28820,"Environment, Housing & Regeneration Directorate",Bed and Breakfast Accommodation,G400
http://statistics.data.gov.uk/id/local-authority/00BF,London Borough of Sutton,31/05/2016,6886339,"1,619.75",Assetgrove Lettings Ltd,28820,"Environment, Housing & Regeneration Directorate",Bed and Breakfast Accommodation,G400
http://statistics.data.gov.uk/id/local-authority/00BF,London Borough of Sutton,31/05/2016,6886340,"1,085.00",Assetgrove Lettings Ltd,28820,"Environment, Housing & Regeneration Directorate",Bed and Breakfast Accommodation,G400
http://statistics.data.gov.uk/id/local-authority/00BF,London Borough of Sutton,31/05/2016,6886341,"1,457.00",Assetgrove Lettings Ltd,28820,"Environment, Housing & Regeneration Directorate",Bed and Breakfast Accommodation,G400
http://statistics.data.gov.uk/id/local-authority/00BF,London Borough of Sutton,31/05/2016,6886342,"1,457.00",Assetgrove Lettings Ltd,28820,"Environment, Housing & Regeneration Directorate",Bed and Breakfast Accommodation,G400
http://statistics.data.gov.uk/id/local-authority/00BF,London Borough of Sutton,31/05/2016,6886343,"1,081.00",Assetgrove Lettings Ltd,28820,"Environment, Housing & Regeneration Directorate",Bed and Breakfast Accommodation,G400
http://statistics.data.gov.uk/id/local-authority/00BF,London Borough of Sutton,31/05/2016,6886344,"1,085.00",Assetgrove Lettings Ltd,28820,"Environment, Housing & Regeneration Directorate",Bed and Breakfast Accommodation,G400
http://statistics.data.gov.uk/id/local-authority/00BF,London Borough of Sutton,31/05/2016,6886374,"1,457.00",Assetgrove Lettings Ltd,28820,"Environment, Housing & Regeneration Directorate",Bed and Breakfast Accommodation,G400
http://statistics.data.gov.uk/id/local-authority/00BF,London Borough of Sutton,31/05/2016,6886376,"1,034.00",Assetgrove Lettings Ltd,28820,"Environment, Housing & Regeneration Directorate",Bed and Breakfast Accommodation,G400
http://statistics.data.gov.uk/id/local-authority/00BF,London Borough of Sutton,31/05/2016,6886382,"1,085.00",Assetgrove Lettings Ltd,28820,"Environment, Housing & Regeneration Directorate",Bed and Breakfast Accommodation,G400
http://statistics.data.gov.uk/id/local-authority/00BF,London Borough of Sutton,01/03/2016,6887446,"1,015.00",Assetgrove Lettings Ltd,28820,"Environment, Housing & Regeneration Directorate",Bed and Breakfast Accommodation,G400
http://statistics.data.gov.uk/id/local-authority/00BF,London Borough of Sutton,01/03/2016,6887447,"1,015.00",Assetgrove Lettings Ltd,28820,"Environment, Housing & Regeneration Directorate",Bed and Breakfast Accommodation,G400
http://statistics.data.gov.uk/id/local-authority/00BF,London Borough of Sutton,01/03/2016,6887448,752.00,Assetgrove Lettings Ltd,28820,"Environment, Housing & Regeneration Directorate",Bed and Breakfast Accommodation,G400
http://statistics.data.gov.uk/id/local-authority/00BF,London Borough of Sutton,31/03/2016,6887450,744.00,Assetgrove Lettings Ltd,28820,"Environment, Housing & Regeneration Directorate",Bed and Breakfast Accommodation,G400
http://statistics.data.gov.uk/id/local-authority/00BF,London Borough of Sutton,31/03/2016,6887451,705.00,Assetgrove Lettings Ltd,28820,"Environment, Housing & Regeneration Directorate",Bed and Breakfast Accommodation,G400
http://statistics.data.gov.uk/id/local-authority/00BF,London Borough of Sutton,31/03/2016,6887452,418.00,Assetgrove Lettings Ltd,28820,"Environment, Housing & Regeneration Directorate",Bed and Breakfast Accommodation,G400
http://statistics.data.gov.uk/id/local-authority/00BF,London Borough of Sutton,29/04/2016,6887453,"1,050.00",Assetgrove Lettings Ltd,28820,"Environment, Housing & Regeneration Directorate",Bed and Breakfast Accommodation,G400
http://statistics.data.gov.uk/id/local-authority/00BF,London Borough of Sutton,31/05/2016,6887454,"1,085.00",Assetgrove Lettings Ltd,28820,"Environment, Housing & Regeneration Directorate",Bed and Breakfast Accommodation,G400
http://statistics.data.gov.uk/id/local-authority/00BF,London Borough of Sutton,31/05/2016,6887456,420.00,Assetgrove Lettings Ltd,28820,"Environment, Housing & Regeneration Directorate",Bed and Breakfast Accommodation,G400
http://statistics.data.gov.uk/id/local-authority/00BF,London Borough of Sutton,31/05/2016,6887457,"1,085.00",Assetgrove Lettings Ltd,28820,"Environment, Housing & Regeneration Directorate",Bed and Breakfast Accommodation,G400
http://statistics.data.gov.uk/id/local-authority/00BF,London Borough of Sutton,31/05/2016,6887458,"1,457.00",Assetgrove Lettings Ltd,28820,"Environment, Housing & Regeneration Directorate",Bed and Breakfast Accommodation,G400
http://statistics.data.gov.uk/id/local-authority/00BF,London Borough of Sutton,31/05/2016,6887459,"1,085.00",Assetgrove Lettings Ltd,28820,"Environment, Housing & Regeneration Directorate",Bed and Breakfast Accommodation,G400
http://statistics.data.gov.uk/id/local-authority/00BF,London Borough of Sutton,31/05/2016,6887460,"1,457.00",Assetgrove Lettings Ltd,28820,"Environment, Housing & Regeneration Directorate",Bed and Breakfast Accommodation,G400
http://statistics.data.gov.uk/id/local-authority/00BF,London Borough of Sutton,29/04/2016,6887461,"1,410.00",Assetgrove Lettings Ltd,28820,"Environment, Housing & Regeneration Directorate",Bed and Breakfast Accommodation,G400
http://statistics.data.gov.uk/id/local-authority/00BF,London Borough of Sutton,29/04/2016,6887462,517.00,Assetgrove Lettings Ltd,28820,"Environment, Housing & Regeneration Directorate",Bed and Breakfast Accommodation,G400
http://statistics.data.gov.uk/id/local-authority/00BF,London Borough of Sutton,29/04/2016,6887463,560.00,Assetgrove Lettings Ltd,28820,"Environment, Housing & Regeneration Directorate",Bed and Breakfast Accommodation,G400
http://statistics.data.gov.uk/id/local-authority/00BF,London Borough of Sutton,01/03/2016,6887464,"1,363.00",Assetgrove Lettings Ltd,28820,"Environment, Housing & Regeneration Directorate",Bed and Breakfast Accommodation,G400
http://statistics.data.gov.uk/id/local-authority/00BF,London Borough of Sutton,01/03/2016,6887465,"1,015.00",Assetgrove Lettings Ltd,28820,"Environment, Housing & Regeneration Directorate",Bed and Breakfast Accommodation,G400
http://statistics.data.gov.uk/id/local-authority/00BF,London Borough of Sutton,01/07/2016,6888170,"1,050.00",Assetgrove Lettings Ltd,28820,"Environment, Housing & Regeneration Directorate",Bed and Breakfast Accommodation,G400
http://statistics.data.gov.uk/id/local-authority/00BF,London Borough of Sutton,01/07/2016,6888172,805.00,Assetgrove Lettings Ltd,28820,"Environment, Housing & Regeneration Directorate",Bed and Breakfast Accommodation,G400
http://statistics.data.gov.uk/id/local-authority/00BF,London Borough of Sutton,01/07/2016,6888174,874.00,Assetgrove Lettings Ltd,28820,"Environment, Housing & Regeneration Directorate",Bed and Breakfast Accommodation,G400
http://statistics.data.gov.uk/id/local-authority/00BF,London Borough of Sutton,01/07/2016,6888176,"1,050.00",Assetgrove Lettings Ltd,28820,"Environment, Housing & Regeneration Directorate",Bed and Breakfast Accommodation,G400
http://statistics.data.gov.uk/id/local-authority/00BF,London Borough of Sutton,01/07/2016,6888177,805.00,Assetgrove Lettings Ltd,28820,"Environment, Housing & Regeneration Directorate",Bed and Breakfast Accommodation,G400
http://statistics.data.gov.uk/id/local-authority/00BF,London Borough of Sutton,01/07/2016,6888179,"1,015.00",Assetgrove Lettings Ltd,28820,"Environment, Housing & Regeneration Directorate",Bed and Breakfast Accommodation,G400
http://statistics.data.gov.uk/id/local-authority/00BF,London Borough of Sutton,01/07/2016,6888180,"1,410.00",Assetgrove Lettings Ltd,28820,"Environment, Housing & Regeneration Directorate",Bed and Breakfast Accommodation,G400
http://statistics.data.gov.uk/id/local-authority/00BF,London Borough of Sutton,01/07/2016,6888181,"1,410.00",Assetgrove Lettings Ltd,28820,"Environment, Housing & Regeneration Directorate",Bed and Breakfast Accommodation,G400
http://statistics.data.gov.uk/id/local-authority/00BF,London Borough of Sutton,01/07/2016,6888182,"1,410.00",Assetgrove Lettings Ltd,28820,"Environment, Housing & Regeneration Directorate",Bed and Breakfast Accommodation,G400
http://statistics.data.gov.uk/id/local-authority/00BF,London Borough of Sutton,01/07/2016,6888183,"1,410.00",Assetgrove Lettings Ltd,28820,"Environment, Housing & Regeneration Directorate",Bed and Breakfast Accommodation,G400
http://statistics.data.gov.uk/id/local-authority/00BF,London Borough of Sutton,01/07/2016,6888185,893.00,Assetgrove Lettings Ltd,28820,"Environment, Housing & Regeneration Directorate",Bed and Breakfast Accommodation,G400
http://statistics.data.gov.uk/id/local-authority/00BF,London Borough of Sutton,01/07/2016,6888186,"1,410.00",Assetgrove Lettings Ltd,28820,"Environment, Housing & Regeneration Directorate",Bed and Breakfast Accommodation,G400
http://statistics.data.gov.uk/id/local-authority/00BF,London Borough of Sutton,01/07/2016,6888187,"1,410.00",Assetgrove Lettings Ltd,28820,"Environment, Housing & Regeneration Directorate",Bed and Breakfast Accommodation,G400
http://statistics.data.gov.uk/id/local-authority/00BF,London Borough of Sutton,01/07/2016,6888188,"1,350.00",Assetgrove Lettings Ltd,28820,"Environment, Housing & Regeneration Directorate",Bed and Breakfast Accommodation,G400
http://statistics.data.gov.uk/id/local-authority/00BF,London Borough of Sutton,01/07/2016,6888189,930.00,Assetgrove Lettings Ltd,28820,"Environment, Housing & Regeneration Directorate",Bed and Breakfast Accommodation,G400
http://statistics.data.gov.uk/id/local-authority/00BF,London Borough of Sutton,01/07/2016,6888190,"1,567.50",Assetgrove Lettings Ltd,28820,"Environment, Housing & Regeneration Directorate",Bed and Breakfast Accommodation,G400
http://statistics.data.gov.uk/id/local-authority/00BF,London Borough of Sutton,01/07/2016,6888191,"1,015.00",Assetgrove Lettings Ltd,28820,"Environment, Housing & Regeneration Directorate",Bed and Breakfast Accommodation,G400
http://statistics.data.gov.uk/id/local-authority/00BF,London Borough of Sutton,01/07/2016,6888192,"1,050.00",Assetgrove Lettings Ltd,28820,"Environment, Housing & Regeneration Directorate",Bed and Breakfast Accommodation,G400
http://statistics.data.gov.uk/id/local-authority/00BF,London Borough of Sutton,01/07/2016,6888193,"1,050.00",Assetgrove Lettings Ltd,28820,"Environment, Housing & Regeneration Directorate",Bed and Breakfast Accommodation,G400
http://statistics.data.gov.uk/id/local-authority/00BF,London Borough of Sutton,11/07/2016,6886820,480.00,Association of Democratic Services Officers,23679,Resources Directorate,Staff Advertising,A500
http://statistics.data.gov.uk/id/local-authority/00BF,London Borough of Sutton,18/07/2016,6887440,"1,586.00",Association of Directors of Adult Social Services,20166,Peoples Services Directorate,Subscriptions - General,F450
http://statistics.data.gov.uk/id/local-authority/00BF,London Borough of Sutton,09/12/2015,6887293,"1,500.00",Association of Independent LSCB Chairs,26097,Peoples Services Directorate,Subscriptions - General,F450
http://statistics.data.gov.uk/id/local-authority/00BF,London Borough of Sutton,15/07/2016,4961775,"3,639.72",Assurance Care Services Ltd T/A Christ the King Residential Care Homes,27458,Peoples Services Directorate,Residential Care - Ext Provider,G310
http://statistics.data.gov.uk/id/local-authority/00BF,London Borough of Sutton,30/06/2016,6886184,"2,654.16",ATS Euromaster Ltd,23885,"Environment, Housing & Regeneration Directorate",Tyre Expenditure,E015
http://statistics.data.gov.uk/id/local-authority/00BF,London Borough of Sutton,15/07/2016,4961298,"4,580.72",Autism & Aspergers Care Services,10327,Peoples Services Directorate,Residential Care - Ext Provider,G310
http://statistics.data.gov.uk/id/local-authority/00BF,London Borough of Sutton,15/07/2016,4961282,"11,821.07",Avante Ltd (Weybourne),24009,Peoples Services Directorate,Residential Care - Ext Provider,G310
http://statistics.data.gov.uk/id/local-authority/00BF,London Borough of Sutton,15/07/2016,4961329,"2,432.00",Avery Homes (Nelson) Ltd - Adelaide Care Centre,25868,Peoples Services Directorate,Nursing Care - Ext Provider,G311
http://statistics.data.gov.uk/id/local-authority/00BF,London Borough of Sutton,29/07/2016,6888115,"2,000.00",Axiell Ltd,25933,Peoples Services Directorate,IT Equipment - Repair and Maintenance,F382
http://statistics.data.gov.uk/id/local-authority/00BF,London Borough of Sutton,30/06/2016,6886049,"1,440.00",Axiom Traffic Ltd,23141,"Environment, Housing & Regeneration Directorate","Surveys, Trial Holes Etc",Y200
http://statistics.data.gov.uk/id/local-authority/00BF,London Borough of Sutton,15/07/2016,4961607,"5,942.86",Balcombe Care Homes Ltd,10367,Peoples Services Directorate,Nursing Care - Ext Provider,G311
http://statistics.data.gov.uk/id/local-authority/00BF,London Borough of Sutton,15/07/2016,4961832,"3,200.00",Balcombe Care Homes Ltd,10367,Peoples Services Directorate,Nursing Care - Ext Provider,G311
http://statistics.data.gov.uk/id/local-authority/00BF,London Borough of Sutton,01/07/2016,6887159,"50,000.00",Bandon Hill Primary,10372,Peoples Services Directorate,Building Works-Sub Contractor,Y360
http://statistics.data.gov.uk/id/local-authority/00BF,London Borough of Sutton,15/07/2016,4961587,"4,780.00",Barchester Healthcare (Epsom Beaumont Care Home),19157,Peoples Services Directorate,Nursing Care - Ext Provider,G311
http://statistics.data.gov.uk/id/local-authority/00BF,London Borough of Sutton,15/07/2016,4961286,"1,996.00",Barchester Healthcare (Tandridge Heights),16499,Peoples Services Directorate,Nursing Care - Ext Provider,G311
http://statistics.data.gov.uk/id/local-authority/00BF,London Borough of Sutton,20/06/2016,4958770,"1,535.25",Barnardo's,10370,Peoples Services Directorate,Provider Contract Payments,F470
http://statistics.data.gov.uk/id/local-authority/00BF,London Borough of Sutton,20/06/2016,4958802,504.00,Barnardo's,10370,Peoples Services Directorate,Provider Contract Payments,F470
http://statistics.data.gov.uk/id/local-authority/00BF,London Borough of Sutton,20/06/2016,4958818,660.00,Barnardo's,10370,Peoples Services Directorate,Provider Contract Payments,F470
http://statistics.data.gov.uk/id/local-authority/00BF,London Borough of Sutton,20/06/2016,4958820,575.00,Barnardo's,10370,Peoples Services Directorate,Provider Contract Payments,F470
http://statistics.data.gov.uk/id/local-authority/00BF,London Borough of Sutton,20/06/2016,4958824,667.00,Barnardo's,10370,Peoples Services Directorate,Provider Contract Payments,F470
http://statistics.data.gov.uk/id/local-authority/00BF,London Borough of Sutton,20/06/2016,4958825,"1,254.00",Barnardo's,10370,Peoples Services Directorate,Provider Contract Payments,F470
http://statistics.data.gov.uk/id/local-authority/00BF,London Borough of Sutton,18/07/2016,6887344,544.99,Barnes & Fadden Ltd,99863,Peoples Services Directorate,C.C.A Household Equip & Maint,H214
http://statistics.data.gov.uk/id/local-authority/00BF,London Borough of Sutton,22/06/2016,6886821,"1,465.64",Barts Health Nhs Trust,28991,Peoples Services Directorate,Provider Contract Payments,F470
http://statistics.data.gov.uk/id/local-authority/00BF,London Borough of Sutton,22/06/2016,6886823,"1,465.64",Barts Health Nhs Trust,28991,Peoples Services Directorate,Provider Contract Payments,F470
http://statistics.data.gov.uk/id/local-authority/00BF,London Borough of Sutton,30/06/2016,6887181,"1,510.00",Bates Wells Braithwaite London LLP,24975,Peoples Services Directorate,Materials - General,F100
http://statistics.data.gov.uk/id/local-authority/00BF,London Borough of Sutton,15/07/2016,4961328,"2,120.00",Beaumont Lodge Ltd,16849,Peoples Services Directorate,Nursing Care - Ext Provider,G311
http://statistics.data.gov.uk/id/local-authority/00BF,London Borough of Sutton,07/06/2015,6885881,"61,300.00",Beddington Park Primary (Academy),25879,Peoples Services Directorate,Building Works -Main Contractor,Y350
http://statistics.data.gov.uk/id/local-authority/00BF,London Borough of Sutton,11/07/2016,6887100,"1,080.00",Benhill & Belmont GP Centre,15665,Peoples Services Directorate,Provider Contract Payments,F470
http://statistics.data.gov.uk/id/local-authority/00BF,London Borough of Sutton,23/05/2016,4959054,"16,200.00",Benjamin UK Ltd,23244,Peoples Services Directorate,Residential Care-Children,G330
http://statistics.data.gov.uk/id/local-authority/00BF,London Borough of Sutton,20/06/2016,4969983,"16,740.00",Benjamin UK Ltd,23244,Peoples Services Directorate,Residential Care-Children,G330
http://statistics.data.gov.uk/id/local-authority/00BF,London Borough of Sutton,30/06/2016,6887529,"9,490.50",Bestcourt UK Ltd,10441,"Environment, Housing & Regeneration Directorate",Bed and Breakfast Accommodation,G400
http://statistics.data.gov.uk/id/local-authority/00BF,London Borough of Sutton,27/05/2016,6886396,914.00,Bevan Brittan LLP,28285,"Environment, Housing & Regeneration Directorate",External Fees  - Other,Y130
http://statistics.data.gov.uk/id/local-authority/00BF,London Borough of Sutton,15/07/2016,4961588,"3,400.00",Beverley Lodge Nursing Home,10434,Peoples Services Directorate,Nursing Care - Ext Provider,G311
http://statistics.data.gov.uk/id/local-authority/00BF,London Borough of Sutton,15/07/2016,4961603,"2,035.71",Beverley Lodge Nursing Home,10434,Peoples Services Directorate,Nursing Care - Ext Provider,G311
http://statistics.data.gov.uk/id/local-authority/00BF,London Borough of Sutton,15/07/2016,4961711,"2,462.44",Beverley Lodge Nursing Home,10434,Peoples Services Directorate,Nursing Care - Ext Provider,G311
http://statistics.data.gov.uk/id/local-authority/00BF,London Borough of Sutton,15/07/2016,4961734,"2,226.40",Beverley Lodge Nursing Home,10434,Peoples Services Directorate,Nursing Care - Ext Provider,G311
http://statistics.data.gov.uk/id/local-authority/00BF,London Borough of Sutton,15/07/2016,4961824,"3,200.00",Beverley Lodge Nursing Home,10434,Peoples Services Directorate,Nursing Care - Ext Provider,G311
http://statistics.data.gov.uk/id/local-authority/00BF,London Borough of Sutton,15/07/2016,4961835,"2,800.00",Beverley Lodge Nursing Home,10434,Peoples Services Directorate,Nursing Care - Ext Provider,G311
http://statistics.data.gov.uk/id/local-authority/00BF,London Borough of Sutton,15/07/2016,4961920,"2,019.96",Beverley Lodge Nursing Home,10434,Peoples Services Directorate,Nursing Care - Ext Provider,G311
http://statistics.data.gov.uk/id/local-authority/00BF,London Borough of Sutton,15/07/2016,4961925,"1,979.48",Beverley Lodge Nursing Home,10434,Peoples Services Directorate,Nursing Care - Ext Provider,G311
http://statistics.data.gov.uk/id/local-authority/00BF,London Borough of Sutton,15/07/2016,4961956,"2,459.04",Beverley Lodge Nursing Home,10434,Peoples Services Directorate,Nursing Care - Ext Provider,G311
http://statistics.data.gov.uk/id/local-authority/00BF,London Borough of Sutton,09/06/2016,6887220,"36,035.00",Bond Dickinson LLP,26337,Resources Directorate,Fees - Consultants (Ad Hoc),F283
http://statistics.data.gov.uk/id/local-authority/00BF,London Borough of Sutton,15/07/2016,6887282,"3,500.00",Bond Dickinson LLP,26337,Peoples Services Directorate,Fees - Consultants (Ad Hoc),F283
http://statistics.data.gov.uk/id/local-authority/00BF,London Borough of Sutton,08/07/2016,6886750,"5,365.00",Bostock Marketing Group Ltd t/a BMG Research,28388,Resources Directorate,General Office Expenses,F235
http://statistics.data.gov.uk/id/local-authority/00BF,London Borough of Sutton,11/07/2016,6886931,"1,000.00",Bottomline Technologies Ltd,25145,Resources Directorate,Bank Charges,F320
http://statistics.data.gov.uk/id/local-authority/00BF,London Borough of Sutton,07/07/2016,6886533,"1,237.50",Brennan & Scott,25733,Peoples Services Directorate,Provider Contract Payments,F470
http://statistics.data.gov.uk/id/local-authority/00BF,London Borough of Sutton,15/07/2016,4961570,"3,400.00",Bridge House Care Centre,10620,Peoples Services Directorate,Nursing Care - Ext Provider,G311
http://statistics.data.gov.uk/id/local-authority/00BF,London Borough of Sutton,15/07/2016,4961602,"2,400.00",Bridge House Care Centre,10620,Peoples Services Directorate,Nursing Care - Ext Provider,G311
http://statistics.data.gov.uk/id/local-authority/00BF,London Borough of Sutton,15/07/2016,4961608,"10,285.71",Bridge House Care Centre,10620,Peoples Services Directorate,Nursing Care - Ext Provider,G311
http://statistics.data.gov.uk/id/local-authority/00BF,London Borough of Sutton,15/07/2016,4961617,"2,005.84",Bridge House Care Centre,10620,Peoples Services Directorate,Nursing Care - Ext Provider,G311
http://statistics.data.gov.uk/id/local-authority/00BF,London Borough of Sutton,15/07/2016,4961670,"2,034.96",Bridge House Care Centre,10620,Peoples Services Directorate,Nursing Care - Ext Provider,G311
http://statistics.data.gov.uk/id/local-authority/00BF,London Borough of Sutton,15/07/2016,4961677,"2,552.00",Bridge House Care Centre,10620,Peoples Services Directorate,Nursing Care - Ext Provider,G311
http://statistics.data.gov.uk/id/local-authority/00BF,London Borough of Sutton,15/07/2016,4961723,"1,996.00",Bridge House Care Centre,10620,Peoples Services Directorate,Nursing Care - Ext Provider,G311
http://statistics.data.gov.uk/id/local-authority/00BF,London Borough of Sutton,15/07/2016,4961748,"1,942.48",Bridge House Care Centre,10620,Peoples Services Directorate,Nursing Care - Ext Provider,G311
http://statistics.data.gov.uk/id/local-authority/00BF,London Borough of Sutton,15/07/2016,4961789,"2,033.92",Bridge House Care Centre,10620,Peoples Services Directorate,Nursing Care - Ext Provider,G311
http://statistics.data.gov.uk/id/local-authority/00BF,London Borough of Sutton,15/07/2016,4961799,"3,000.00",Bridge House Care Centre,10620,Peoples Services Directorate,Nursing Care - Ext Provider,G311
http://statistics.data.gov.uk/id/local-authority/00BF,London Borough of Sutton,15/07/2016,4961805,"3,200.00",Bridge House Care Centre,10620,Peoples Services Directorate,Nursing Care - Ext Provider,G311
http://statistics.data.gov.uk/id/local-authority/00BF,London Borough of Sutton,15/07/2016,4961813,"3,400.00",Bridge House Care Centre,10620,Peoples Services Directorate,Nursing Care - Ext Provider,G311
http://statistics.data.gov.uk/id/local-authority/00BF,London Borough of Sutton,15/07/2016,4961862,"3,475.36",Bridge House Care Centre,10620,Peoples Services Directorate,Nursing Care - Ext Provider,G311
http://statistics.data.gov.uk/id/local-authority/00BF,London Borough of Sutton,15/07/2016,4961884,"19,085.72",Bridge House Care Centre,10620,Peoples Services Directorate,Nursing Care - Ext Provider,G311
http://statistics.data.gov.uk/id/local-authority/00BF,London Borough of Sutton,15/07/2016,4961965,"3,000.00",Bridge House Care Centre,10620,Peoples Services Directorate,Nursing Care - Ext Provider,G311
http://statistics.data.gov.uk/id/local-authority/00BF,London Borough of Sutton,16/01/2014,6886158,"2,948.64",British Gas,10641,Peoples Services Directorate,Gas - General,D610
http://statistics.data.gov.uk/id/local-authority/00BF,London Borough of Sutton,15/07/2016,4961683,"2,439.36",British Home & Hospital For Incurables,10589,Peoples Services Directorate,Nursing Care - Ext Provider,G311
http://statistics.data.gov.uk/id/local-authority/00BF,London Borough of Sutton,15/07/2016,4961684,"2,439.36",British Home & Hospital For Incurables,10589,Peoples Services Directorate,Nursing Care - Ext Provider,G311
http://statistics.data.gov.uk/id/local-authority/00BF,London Borough of Sutton,15/07/2016,4961753,"2,710.40",British Home & Hospital For Incurables,10589,Peoples Services Directorate,Nursing Care - Ext Provider,G311
http://statistics.data.gov.uk/id/local-authority/00BF,London Borough of Sutton,03/07/2016,6887343,"2,071.00",British Telecommunications Plc,10574,Resources Directorate,Telephones - Rentals,F370
http://statistics.data.gov.uk/id/local-authority/00BF,London Borough of Sutton,15/07/2016,4961755,"3,277.16",Broadlands Nursing Home,10586,Peoples Services Directorate,Nursing Care - Ext Provider,G311
http://statistics.data.gov.uk/id/local-authority/00BF,London Borough of Sutton,15/07/2016,4961758,"2,088.64",Broadlands Nursing Home,10586,Peoples Services Directorate,Nursing Care - Ext Provider,G311
http://statistics.data.gov.uk/id/local-authority/00BF,London Borough of Sutton,15/07/2016,4961780,"2,019.96",Broadlands Nursing Home,10586,Peoples Services Directorate,Nursing Care - Ext Provider,G311
http://statistics.data.gov.uk/id/local-authority/00BF,London Borough of Sutton,15/07/2016,4961923,"2,444.00",Broadlands Nursing Home,10586,Peoples Services Directorate,Nursing Care - Ext Provider,G311
http://statistics.data.gov.uk/id/local-authority/00BF,London Borough of Sutton,15/07/2016,4961926,"1,835.60",Broadlands Nursing Home,10586,Peoples Services Directorate,Nursing Care - Ext Provider,G311
http://statistics.data.gov.uk/id/local-authority/00BF,London Borough of Sutton,15/07/2016,4961631,"3,694.60",Brook Care Homes (BH),10582,Peoples Services Directorate,Residential Care - Ext Provider,G310
http://statistics.data.gov.uk/id/local-authority/00BF,London Borough of Sutton,15/07/2016,4961637,"1,924.40",Brook Care Homes (BH),10582,Peoples Services Directorate,Residential Care - Ext Provider,G310
http://statistics.data.gov.uk/id/local-authority/00BF,London Borough of Sutton,15/07/2016,4961640,"6,090.00",Brook Care Homes (BH),10582,Peoples Services Directorate,Residential Care - Ext Provider,G310
http://statistics.data.gov.uk/id/local-authority/00BF,London Borough of Sutton,15/07/2016,4961642,"4,222.40",Brook Care Homes (BH),10582,Peoples Services Directorate,Residential Care - Ext Provider,G310
http://statistics.data.gov.uk/id/local-authority/00BF,London Borough of Sutton,15/07/2016,4961679,"3,150.56",Brook Care Homes (BH),10582,Peoples Services Directorate,Residential Care - Ext Provider,G310
http://statistics.data.gov.uk/id/local-authority/00BF,London Borough of Sutton,15/07/2016,4961707,"4,400.92",Brook Care Homes (BH),10582,Peoples Services Directorate,Residential Care - Ext Provider,G310
http://statistics.data.gov.uk/id/local-authority/00BF,London Borough of Sutton,15/07/2016,4961721,"2,639.00",Brook Care Homes (BH),10582,Peoples Services Directorate,Residential Care - Ext Provider,G310
http://statistics.data.gov.uk/id/local-authority/00BF,London Borough of Sutton,15/07/2016,4961787,"2,242.72",Brook Care Homes (BH),10582,Peoples Services Directorate,Residential Care - Ext Provider,G310
http://statistics.data.gov.uk/id/local-authority/00BF,London Borough of Sutton,15/07/2016,4961966,"2,279.56",Brook Care Homes (BH),10582,Peoples Services Directorate,Residential Care - Ext Provider,G310
http://statistics.data.gov.uk/id/local-authority/00BF,London Borough of Sutton,30/06/2016,1220609,"3,235.00",Brunswick Cars 9761/1961276/Loc09,10611,Peoples Services Directorate,Hired Peoples Transport (Children),E072
http://statistics.data.gov.uk/id/local-authority/00BF,London Borough of Sutton,30/06/2016,1220610,"3,912.00",Brunswick Cars 9761/1961276/Loc09,10611,Peoples Services Directorate,Hired Peoples Transport (Children),E072
http://statistics.data.gov.uk/id/local-authority/00BF,London Borough of Sutton,30/06/2016,1220611,"9,464.00",Brunswick Cars 9761/1961276/Loc09,10611,Peoples Services Directorate,Hired Peoples Transport (Children),E072
http://statistics.data.gov.uk/id/local-authority/00BF,London Borough of Sutton,30/06/2016,1220612,"3,080.00",Brunswick Cars 9761/1961276/Loc09,10611,Peoples Services Directorate,Hired Peoples Transport (Children),E072
http://statistics.data.gov.uk/id/local-authority/00BF,London Borough of Sutton,30/06/2016,1220613,"3,325.00",Brunswick Cars 9761/1961276/Loc09,10611,Peoples Services Directorate,Hired Peoples Transport (Children),E072
http://statistics.data.gov.uk/id/local-authority/00BF,London Borough of Sutton,30/06/2016,1220614,"5,614.50",Brunswick Cars 9761/1961276/Loc09,10611,Peoples Services Directorate,Hired Peoples Transport (Children),E072
http://statistics.data.gov.uk/id/local-authority/00BF,London Borough of Sutton,30/06/2016,1220616,"2,318.00",Brunswick Cars 9761/1961276/Loc09,10611,Peoples Services Directorate,Hired Peoples Transport (Children),E072
http://statistics.data.gov.uk/id/local-authority/00BF,London Borough of Sutton,30/06/2016,1220617,"4,536.00",Brunswick Cars 9761/1961276/Loc09,10611,Peoples Services Directorate,Hired Peoples Transport (Children),E072
http://statistics.data.gov.uk/id/local-authority/00BF,London Borough of Sutton,30/06/2016,1220618,"3,402.00",Brunswick Cars 9761/1961276/Loc09,10611,Peoples Services Directorate,Hired Peoples Transport (Children),E072
http://statistics.data.gov.uk/id/local-authority/00BF,London Borough of Sutton,30/06/2016,1220619,"3,924.00",Brunswick Cars 9761/1961276/Loc09,10611,Peoples Services Directorate,Hired Peoples Transport (Children),E072
http://statistics.data.gov.uk/id/local-authority/00BF,London Borough of Sutton,30/06/2016,1220620,"5,098.00",Brunswick Cars 9761/1961276/Loc09,10611,Peoples Services Directorate,Hired Peoples Transport (Children),E072
http://statistics.data.gov.uk/id/local-authority/00BF,London Borough of Sutton,30/06/2016,1220621,"5,785.50",Brunswick Cars 9761/1961276/Loc09,10611,Peoples Services Directorate,Hired Peoples Transport (Children),E072
http://statistics.data.gov.uk/id/local-authority/00BF,London Borough of Sutton,30/06/2016,1220622,"3,553.00",Brunswick Cars 9761/1961276/Loc09,10611,Peoples Services Directorate,Hired Peoples Transport (Children),E072
http://statistics.data.gov.uk/id/local-authority/00BF,London Borough of Sutton,30/06/2016,1220623,"4,415.00",Brunswick Cars 9761/1961276/Loc09,10611,Peoples Services Directorate,Hired Peoples Transport (Children),E072
http://statistics.data.gov.uk/id/local-authority/00BF,London Borough of Sutton,30/06/2016,1220624,"3,846.00",Brunswick Cars 9761/1961276/Loc09,10611,Peoples Services Directorate,Hired Peoples Transport (Children),E072
http://statistics.data.gov.uk/id/local-authority/00BF,London Borough of Sutton,30/06/2016,1220625,"1,596.00",Brunswick Cars 9761/1961276/Loc09,10611,Peoples Services Directorate,Hired Peoples Transport (Children),E072
http://statistics.data.gov.uk/id/local-authority/00BF,London Borough of Sutton,30/06/2016,1220626,"1,140.00",Brunswick Cars 9761/1961276/Loc09,10611,Peoples Services Directorate,Hired Peoples Transport (Children),E072
http://statistics.data.gov.uk/id/local-authority/00BF,London Borough of Sutton,30/06/2016,1220627,"1,463.00",Brunswick Cars 9761/1961276/Loc09,10611,Peoples Services Directorate,Hired Peoples Transport (Children),E072
http://statistics.data.gov.uk/id/local-authority/00BF,London Borough of Sutton,30/06/2016,1220628,"1,746.00",Brunswick Cars 9761/1961276/Loc09,10611,Peoples Services Directorate,Hired Peoples Transport (Children),E072
http://statistics.data.gov.uk/id/local-authority/00BF,London Borough of Sutton,30/06/2016,1220629,"3,471.50",Brunswick Cars 9761/1961276/Loc09,10611,Peoples Services Directorate,Hired Peoples Transport (Children),E072
http://statistics.data.gov.uk/id/local-authority/00BF,London Borough of Sutton,30/06/2016,1220630,"3,438.00",Brunswick Cars 9761/1961276/Loc09,10611,Peoples Services Directorate,Hired Peoples Transport (Children),E072
http://statistics.data.gov.uk/id/local-authority/00BF,London Borough of Sutton,30/06/2016,1220631,"1,759.00",Brunswick Cars 9761/1961276/Loc09,10611,Peoples Services Directorate,Hired Peoples Transport (Children),E072
http://statistics.data.gov.uk/id/local-authority/00BF,London Borough of Sutton,30/06/2016,1220632,"1,710.00",Brunswick Cars 9761/1961276/Loc09,10611,Peoples Services Directorate,Hired Peoples Transport (Children),E072
http://statistics.data.gov.uk/id/local-authority/00BF,London Borough of Sutton,30/06/2016,1220633,"3,217.50",Brunswick Cars 9761/1961276/Loc09,10611,Peoples Services Directorate,Hired Peoples Transport (Children),E072
http://statistics.data.gov.uk/id/local-authority/00BF,London Borough of Sutton,30/06/2016,1220634,"3,781.00",Brunswick Cars 9761/1961276/Loc09,10611,Peoples Services Directorate,Hired Peoples Transport (Children),E072
http://statistics.data.gov.uk/id/local-authority/00BF,London Borough of Sutton,30/06/2016,1220635,"4,284.00",Brunswick Cars 9761/1961276/Loc09,10611,Peoples Services Directorate,Hired Peoples Transport (Children),E072
http://statistics.data.gov.uk/id/local-authority/00BF,London Borough of Sutton,30/06/2016,1220636,"5,472.00",Brunswick Cars 9761/1961276/Loc09,10611,Peoples Services Directorate,Hired Peoples Transport (Children),E072
http://statistics.data.gov.uk/id/local-authority/00BF,London Borough of Sutton,30/06/2016,1220637,"3,059.00",Brunswick Cars 9761/1961276/Loc09,10611,Peoples Services Directorate,Hired Peoples Transport (Children),E072
http://statistics.data.gov.uk/id/local-authority/00BF,London Borough of Sutton,30/06/2016,1220638,"1,672.00",Brunswick Cars 9761/1961276/Loc09,10611,Peoples Services Directorate,Hired Peoples Transport (Children),E072
http://statistics.data.gov.uk/id/local-authority/00BF,London Borough of Sutton,30/06/2016,1220639,"1,872.00",Brunswick Cars 9761/1961276/Loc09,10611,Peoples Services Directorate,Hired Peoples Transport (Children),E072
http://statistics.data.gov.uk/id/local-authority/00BF,London Borough of Sutton,30/06/2016,1220640,"2,090.00",Brunswick Cars 9761/1961276/Loc09,10611,Peoples Services Directorate,Hired Peoples Transport (Children),E072
http://statistics.data.gov.uk/id/local-authority/00BF,London Borough of Sutton,30/06/2016,1221344,"3,520.00",Brunswick Cars 9761/1961276/Loc09,10611,Peoples Services Directorate,Hired Peoples Transport (Children),E072
http://statistics.data.gov.uk/id/local-authority/00BF,London Borough of Sutton,30/06/2016,1221345,"3,477.00",Brunswick Cars 9761/1961276/Loc09,10611,Peoples Services Directorate,Hired Peoples Transport (Children),E072
http://statistics.data.gov.uk/id/local-authority/00BF,London Borough of Sutton,30/06/2016,1221346,"1,444.00",Brunswick Cars 9761/1961276/Loc09,10611,Peoples Services Directorate,Hired Peoples Transport (Children),E072
http://statistics.data.gov.uk/id/local-authority/00BF,London Borough of Sutton,30/06/2016,1221347,"2,080.00",Brunswick Cars 9761/1961276/Loc09,10611,Peoples Services Directorate,Hired Peoples Transport (Children),E072
http://statistics.data.gov.uk/id/local-authority/00BF,London Borough of Sutton,30/06/2016,1221348,"1,215.00",Brunswick Cars 9761/1961276/Loc09,10611,Peoples Services Directorate,Hired Peoples Transport (Children),E072
http://statistics.data.gov.uk/id/local-authority/00BF,London Borough of Sutton,30/06/2016,1221349,"3,168.50",Brunswick Cars 9761/1961276/Loc09,10611,Peoples Services Directorate,Hired Peoples Transport (Children),E072
http://statistics.data.gov.uk/id/local-authority/00BF,London Borough of Sutton,30/06/2016,1221350,"2,641.00",Brunswick Cars 9761/1961276/Loc09,10611,Peoples Services Directorate,Hired Peoples Transport (Children),E072
http://statistics.data.gov.uk/id/local-authority/00BF,London Borough of Sutton,30/06/2016,1221351,"1,995.00",Brunswick Cars 9761/1961276/Loc09,10611,Peoples Services Directorate,Hired Peoples Transport (Children),E072
http://statistics.data.gov.uk/id/local-authority/00BF,London Borough of Sutton,30/06/2016,1221353,"4,050.00",Brunswick Cars 9761/1961276/Loc09,10611,Peoples Services Directorate,Hired Peoples Transport (Children),E072
http://statistics.data.gov.uk/id/local-authority/00BF,London Borough of Sutton,30/06/2016,1221354,"1,080.00",Brunswick Cars 9761/1961276/Loc09,10611,Peoples Services Directorate,Hired Peoples Transport (Children),E072
http://statistics.data.gov.uk/id/local-authority/00BF,London Borough of Sutton,30/06/2016,1221355,"1,610.00",Brunswick Cars 9761/1961276/Loc09,10611,Peoples Services Directorate,Hired Peoples Transport (Children),E072
http://statistics.data.gov.uk/id/local-authority/00BF,London Borough of Sutton,30/06/2016,1221356,"3,024.00",Brunswick Cars 9761/1961276/Loc09,10611,Peoples Services Directorate,Hired Peoples Transport (Children),E072
http://statistics.data.gov.uk/id/local-authority/00BF,London Borough of Sutton,30/06/2016,1221358,"1,050.00",Brunswick Cars 9761/1961276/Loc09,10611,Peoples Services Directorate,Hired Peoples Transport (Children),E072
http://statistics.data.gov.uk/id/local-authority/00BF,London Borough of Sutton,30/06/2016,1221359,"3,006.00",Brunswick Cars 9761/1961276/Loc09,10611,Peoples Services Directorate,Hired Peoples Transport (Children),E072
http://statistics.data.gov.uk/id/local-authority/00BF,London Borough of Sutton,30/06/2016,1221360,"1,680.00",Brunswick Cars 9761/1961276/Loc09,10611,Peoples Services Directorate,Hired Peoples Transport (Children),E072
http://statistics.data.gov.uk/id/local-authority/00BF,London Borough of Sutton,30/06/2016,1221364,"1,062.00",Brunswick Cars 9761/1961276/Loc09,10611,Peoples Services Directorate,Hired Peoples Transport (Children),E072
http://statistics.data.gov.uk/id/local-authority/00BF,London Borough of Sutton,01/06/2016,4959077,"11,662.97",Bryn Melyn Care Ltd,27547,Peoples Services Directorate,Residential Care-Children,G330
http://statistics.data.gov.uk/id/local-authority/00BF,London Borough of Sutton,01/06/2016,4959077,"8,445.60",Bryn Melyn Care Ltd,27547,Peoples Services Directorate,Independent Schools,G325
http://statistics.data.gov.uk/id/local-authority/00BF,London Borough of Sutton,01/07/2016,4969989,"12,051.74",Bryn Melyn Care Ltd,27547,Peoples Services Directorate,Residential Care-Children,G330
http://statistics.data.gov.uk/id/local-authority/00BF,London Borough of Sutton,01/07/2016,4969989,"8,727.12",Bryn Melyn Care Ltd,27547,Peoples Services Directorate,Independent Schools,G325
http://statistics.data.gov.uk/id/local-authority/00BF,London Borough of Sutton,30/04/2016,6882458,"6,693.05",Building Lives,28514,Peoples Services Directorate,Surveyors Fees,Y030
http://statistics.data.gov.uk/id/local-authority/00BF,London Borough of Sutton,08/07/2016,6886847,"268,550.94",Built Off-Site Ltd,28510,Peoples Services Directorate,Building Works -Main Contractor,Y350
http://statistics.data.gov.uk/id/local-authority/00BF,London Borough of Sutton,11/07/2016,6887526,"474,739.86",Built Off-Site Ltd,28510,Peoples Services Directorate,Building Works -Main Contractor,Y350
http://statistics.data.gov.uk/id/local-authority/00BF,London Borough of Sutton,15/07/2016,4961630,"1,868.00",Bupa Care Services,10175,Peoples Services Directorate,Residential Care - Ext Provider,G310
http://statistics.data.gov.uk/id/local-authority/00BF,London Borough of Sutton,15/07/2016,4961727,"1,971.80",Bupa Care Services,10175,Peoples Services Directorate,Nursing Care - Ext Provider,G311
http://statistics.data.gov.uk/id/local-authority/00BF,London Borough of Sutton,01/07/2016,1220660,"1,485.00",Burgh Wood Montessori Nursery School,10709,Peoples Services Directorate,Top-up Funding,G064
http://statistics.data.gov.uk/id/local-authority/00BF,London Borough of Sutton,15/07/2016,4961314,"2,439.56",Burlington Nursing Home Ltd,19236,Peoples Services Directorate,Nursing Care - Ext Provider,G311
http://statistics.data.gov.uk/id/local-authority/00BF,London Borough of Sutton,15/07/2016,4961338,"7,824.28",Butterfly's Care Homes Ltd,28860,Peoples Services Directorate,Residential Care - Ext Provider,G310
http://statistics.data.gov.uk/id/local-authority/00BF,London Borough of Sutton,13/06/2016,6885806,560.00,Caesar Investments UK Ltd,24923,"Environment, Housing & Regeneration Directorate",Bed and Breakfast Accommodation,G400
http://statistics.data.gov.uk/id/local-authority/00BF,London Borough of Sutton,27/06/2016,6885807,560.00,Caesar Investments UK Ltd,24923,"Environment, Housing & Regeneration Directorate",Bed and Breakfast Accommodation,G400
http://statistics.data.gov.uk/id/local-authority/00BF,London Borough of Sutton,20/06/2016,6885808,560.00,Caesar Investments UK Ltd,24923,"Environment, Housing & Regeneration Directorate",Bed and Breakfast Accommodation,G400
http://statistics.data.gov.uk/id/local-authority/00BF,London Borough of Sutton,11/07/2016,6886945,456.00,Caesar Investments UK Ltd,24923,"Environment, Housing & Regeneration Directorate",Bed and Breakfast Accommodation,G400
http://statistics.data.gov.uk/id/local-authority/00BF,London Borough of Sutton,04/07/2016,6886946,560.00,Caesar Investments UK Ltd,24923,"Environment, Housing & Regeneration Directorate",Bed and Breakfast Accommodation,G400
http://statistics.data.gov.uk/id/local-authority/00BF,London Borough of Sutton,18/07/2016,6887366,504.00,Caesar Investments UK Ltd,24923,"Environment, Housing & Regeneration Directorate",Bed and Breakfast Accommodation,G400
http://statistics.data.gov.uk/id/local-authority/00BF,London Borough of Sutton,25/07/2016,6887893,504.00,Caesar Investments UK Ltd,24923,"Environment, Housing & Regeneration Directorate",Bed and Breakfast Accommodation,G400
http://statistics.data.gov.uk/id/local-authority/00BF,London Borough of Sutton,27/04/2016,4959123,"13,866.98",Cambian Childcare Ltd,26117,Peoples Services Directorate,Residential Care-Children,G330
http://statistics.data.gov.uk/id/local-authority/00BF,London Borough of Sutton,25/05/2016,4959129,"19,714.20",Cambian Childcare Ltd,26117,Peoples Services Directorate,Residential Care-Children,G330
http://statistics.data.gov.uk/id/local-authority/00BF,London Borough of Sutton,25/05/2016,4959130,"18,428.70",Cambian Childcare Ltd,26117,Peoples Services Directorate,Residential Care-Children,G330
http://statistics.data.gov.uk/id/local-authority/00BF,London Borough of Sutton,22/03/2016,4959148,"5,200.00",Cambian Childcare Ltd,26117,Peoples Services Directorate,Residential Care-Children,G330
http://statistics.data.gov.uk/id/local-authority/00BF,London Borough of Sutton,27/04/2016,4959149,"14,329.22",Cambian Childcare Ltd,26117,Peoples Services Directorate,Residential Care-Children,G330
http://statistics.data.gov.uk/id/local-authority/00BF,London Borough of Sutton,12/05/2016,4959150,"20,371.34",Cambian Childcare Ltd,26117,Peoples Services Directorate,Residential Care-Children,G330
http://statistics.data.gov.uk/id/local-authority/00BF,London Borough of Sutton,27/04/2016,4959156,"19,042.99",Cambian Childcare Ltd,26117,Peoples Services Directorate,Residential Care-Children,G330
http://statistics.data.gov.uk/id/local-authority/00BF,London Borough of Sutton,11/05/2016,4959160,"1,314.28",Cambian Childcare Ltd,26117,Peoples Services Directorate,Residential Care-Children,G330
http://statistics.data.gov.uk/id/local-authority/00BF,London Borough of Sutton,31/05/2016,6887539,939.50,Cambridge Motor Repairs,19776,"Environment, Housing & Regeneration Directorate",Labour,E010
http://statistics.data.gov.uk/id/local-authority/00BF,London Borough of Sutton,15/07/2016,4961768,"3,884.56",Canterbury Oast Trust,10755,Peoples Services Directorate,Residential Care - Ext Provider,G310
http://statistics.data.gov.uk/id/local-authority/00BF,London Borough of Sutton,30/06/2016,6886597,795.00,Capital Traffic Management Ltd,24034,"Environment, Housing & Regeneration Directorate","Surveys, Trial Holes Etc",Y200
http://statistics.data.gov.uk/id/local-authority/00BF,London Borough of Sutton,30/06/2016,6886598,795.00,Capital Traffic Management Ltd,24034,"Environment, Housing & Regeneration Directorate",Surveys & Analysis,Y685
http://statistics.data.gov.uk/id/local-authority/00BF,London Borough of Sutton,30/06/2016,6886599,795.00,Capital Traffic Management Ltd,24034,"Environment, Housing & Regeneration Directorate",Surveys & Analysis,Y685
http://statistics.data.gov.uk/id/local-authority/00BF,London Borough of Sutton,30/06/2016,6886600,"1,500.00",Capital Traffic Management Ltd,24034,"Environment, Housing & Regeneration Directorate",Surveys & Analysis,Y685
http://statistics.data.gov.uk/id/local-authority/00BF,London Borough of Sutton,15/07/2016,4961321,"2,267.40",Care Base(Redhill)Ltd t/a Acorn Court Care Home,24206,Peoples Services Directorate,Residential Care - Ext Provider,G310
http://statistics.data.gov.uk/id/local-authority/00BF,London Borough of Sutton,01/07/2016,6886572,"5,585.08",Care Connections Ltd,10798,Peoples Services Directorate,Agency Staff - Adecco,A300
http://statistics.data.gov.uk/id/local-authority/00BF,London Borough of Sutton,30/06/2016,6886198,"1,967.30",Care Monitoring 2000 Ltd,20716,Peoples Services Directorate,Telephones - Other Expenses,F373
http://statistics.data.gov.uk/id/local-authority/00BF,London Borough of Sutton,13/01/2016,6887868,"2,213.00",Care Quality Commission,22526,Peoples Services Directorate,Other Services,F340
http://statistics.data.gov.uk/id/local-authority/00BF,London Borough of Sutton,15/07/2016,4961331,"3,600.00",Care UK Homecare Ltd,10853,Peoples Services Directorate,Nursing Care - Ext Provider,G311
http://statistics.data.gov.uk/id/local-authority/00BF,London Borough of Sutton,15/07/2016,4961756,"2,940.00",Care Unlimited Group Ltd,10774,Peoples Services Directorate,Residential Care - Ext Provider,G310
http://statistics.data.gov.uk/id/local-authority/00BF,London Borough of Sutton,15/07/2016,4961804,"1,780.00",Care Unlimited Group Ltd,10774,Peoples Services Directorate,Residential Care - Ext Provider,G310
http://statistics.data.gov.uk/id/local-authority/00BF,London Borough of Sutton,15/07/2016,4961848,"1,692.00",Care Unlimited Group Ltd,10774,Peoples Services Directorate,Residential Care - Ext Provider,G310
http://statistics.data.gov.uk/id/local-authority/00BF,London Borough of Sutton,15/07/2016,4961913,"1,692.00",Care Unlimited Group Ltd,10774,Peoples Services Directorate,Interim Placements - Ext Provider,G317
http://statistics.data.gov.uk/id/local-authority/00BF,London Borough of Sutton,19/06/2016,4959867,538.62,Caremark (Sutton),25541,Peoples Services Directorate,Home Care,G334
http://statistics.data.gov.uk/id/local-authority/00BF,London Borough of Sutton,26/06/2016,4959868,538.62,Caremark (Sutton),25541,Peoples Services Directorate,Home Care,G334
http://statistics.data.gov.uk/id/local-authority/00BF,London Borough of Sutton,03/07/2016,4966671,538.62,Caremark (Sutton),25541,Peoples Services Directorate,Home Care,G334
http://statistics.data.gov.uk/id/local-authority/00BF,London Borough of Sutton,10/07/2016,4966672,538.62,Caremark (Sutton),25541,Peoples Services Directorate,Home Care,G334
http://statistics.data.gov.uk/id/local-authority/00BF,London Borough of Sutton,08/05/2016,4968592,496.65,Caremark (Sutton),25541,Peoples Services Directorate,Home Care,G334
http://statistics.data.gov.uk/id/local-authority/00BF,London Borough of Sutton,08/05/2016,4968603,482.66,Caremark (Sutton),25541,Peoples Services Directorate,Home Care,G334
http://statistics.data.gov.uk/id/local-authority/00BF,London Borough of Sutton,01/06/2016,4958487,"2,025.00",Caretech Community Services Ltd,10791,Peoples Services Directorate,One to One Care,G335
http://statistics.data.gov.uk/id/local-authority/00BF,London Borough of Sutton,15/07/2016,4961654,"5,270.48",Caretech Community Services Ltd,10791,Peoples Services Directorate,Residential Care - Ext Provider,G310
http://statistics.data.gov.uk/id/local-authority/00BF,London Borough of Sutton,15/07/2016,4961701,"5,405.88",Caretech Community Services Ltd,10791,Peoples Services Directorate,Residential Care - Ext Provider,G310
http://statistics.data.gov.uk/id/local-authority/00BF,London Borough of Sutton,15/07/2016,4961754,"5,270.48",Caretech Community Services Ltd,10791,Peoples Services Directorate,Residential Care - Ext Provider,G310
http://statistics.data.gov.uk/id/local-authority/00BF,London Borough of Sutton,15/07/2016,4961914,"5,270.48",Caretech Community Services Ltd,10791,Peoples Services Directorate,Residential Care - Ext Provider,G310
http://statistics.data.gov.uk/id/local-authority/00BF,London Borough of Sutton,15/07/2016,4961678,"2,682.68",Carlene House,10763,Peoples Services Directorate,Residential Care - Ext Provider,G310
http://statistics.data.gov.uk/id/local-authority/00BF,London Borough of Sutton,15/07/2016,4961724,"2,625.28",Carlene House,10763,Peoples Services Directorate,Residential Care - Ext Provider,G310
http://statistics.data.gov.uk/id/local-authority/00BF,London Borough of Sutton,15/07/2016,4961730,"2,740.64",Carlene House,10763,Peoples Services Directorate,Residential Care - Ext Provider,G310
http://statistics.data.gov.uk/id/local-authority/00BF,London Borough of Sutton,15/07/2016,4961737,"4,440.00",Carlene House,10763,Peoples Services Directorate,Residential Care - Ext Provider,G310
http://statistics.data.gov.uk/id/local-authority/00BF,London Borough of Sutton,15/07/2016,4961746,"2,630.60",Carlene House,10763,Peoples Services Directorate,Residential Care - Ext Provider,G310
http://statistics.data.gov.uk/id/local-authority/00BF,London Borough of Sutton,15/07/2016,4961766,"2,625.28",Carlene House,10763,Peoples Services Directorate,Residential Care - Ext Provider,G310
http://statistics.data.gov.uk/id/local-authority/00BF,London Borough of Sutton,15/07/2016,4961901,"2,654.68",Carlene House,10763,Peoples Services Directorate,Residential Care - Ext Provider,G310
http://statistics.data.gov.uk/id/local-authority/00BF,London Borough of Sutton,05/07/2016,6886494,"1,360.05",Carol Edwards,99863,Peoples Services Directorate,Fees - Consultants (Ad Hoc),F283
http://statistics.data.gov.uk/id/local-authority/00BF,London Borough of Sutton,26/07/2016,6887981,"1,000.00",Carshalton Beeches Baptist Free Church,20542,"Environment, Housing & Regeneration Directorate",Assistance to Voluntary Organisations,F471
http://statistics.data.gov.uk/id/local-authority/00BF,London Borough of Sutton,11/07/2016,6886899,"6,372.00",Carshalton College,10754,Peoples Services Directorate,Materials - General,F100
http://statistics.data.gov.uk/id/local-authority/00BF,London Borough of Sutton,05/07/2016,6886365,"1,002,594.93",Carshalton High School for Girls (Academy),23995,Peoples Services Directorate,Building Works -Main Contractor,Y350
http://statistics.data.gov.uk/id/local-authority/00BF,London Borough of Sutton,11/07/2016,6886818,"3,500.00",Carshalton Little League Football,26236,"Environment, Housing & Regeneration Directorate",Assistance to Voluntary Organisations,F471
http://statistics.data.gov.uk/id/local-authority/00BF,London Borough of Sutton,13/07/2016,4961108,840.88,Carshalton News,10752,Peoples Services Directorate,Books,F006
http://statistics.data.gov.uk/id/local-authority/00BF,London Borough of Sutton,15/06/2016,4959036,"14,970.13",Castle Homes Ltd,10759,Peoples Services Directorate,Residential Care-Children,G330
http://statistics.data.gov.uk/id/local-authority/00BF,London Borough of Sutton,15/06/2016,4959040,"17,046.30",Castle Homes Ltd,10759,Peoples Services Directorate,Residential Care-Children,G330
http://statistics.data.gov.uk/id/local-authority/00BF,London Borough of Sutton,15/07/2016,4970008,"17,614.51",Castle Homes Ltd,10759,Peoples Services Directorate,Residential Care-Children,G330
http://statistics.data.gov.uk/id/local-authority/00BF,London Borough of Sutton,15/07/2016,4970810,"15,469.13",Castle Homes Ltd,10759,Peoples Services Directorate,Residential Care-Children,G330
http://statistics.data.gov.uk/id/local-authority/00BF,London Borough of Sutton,12/07/2016,6887398,"1,055.95",Caysh Enterprise Cic,28016,Peoples Services Directorate,Approved Lodgings,H323
http://statistics.data.gov.uk/id/local-authority/00BF,London Borough of Sutton,30/06/2016,6886462,"1,146.00",Caysh Housing Project,23133,Peoples Services Directorate,Approved Lodgings,H323
http://statistics.data.gov.uk/id/local-authority/00BF,London Borough of Sutton,30/06/2016,6886463,"1,164.00",Caysh Housing Project,23133,Peoples Services Directorate,Approved Lodgings,H323
http://statistics.data.gov.uk/id/local-authority/00BF,London Borough of Sutton,30/06/2016,6886464,"1,141.80",Caysh Housing Project,23133,Peoples Services Directorate,Approved Lodgings,H323
http://statistics.data.gov.uk/id/local-authority/00BF,London Borough of Sutton,30/06/2016,6886465,"1,164.00",Caysh Housing Project,23133,Peoples Services Directorate,Approved Lodgings,H323
http://statistics.data.gov.uk/id/local-authority/00BF,London Borough of Sutton,30/06/2016,6886466,"1,085.10",Caysh Housing Project,23133,Peoples Services Directorate,Approved Lodgings,H323
http://statistics.data.gov.uk/id/local-authority/00BF,London Borough of Sutton,30/06/2016,6886467,"1,141.80",Caysh Housing Project,23133,Peoples Services Directorate,Approved Lodgings,H323
http://statistics.data.gov.uk/id/local-authority/00BF,London Borough of Sutton,30/06/2016,6886469,"1,141.80",Caysh Housing Project,23133,Peoples Services Directorate,Approved Lodgings,H323
http://statistics.data.gov.uk/id/local-authority/00BF,London Borough of Sutton,30/06/2016,6886470,"1,186.80",Caysh Housing Project,23133,Peoples Services Directorate,Approved Lodgings,H323
http://statistics.data.gov.uk/id/local-authority/00BF,London Borough of Sutton,30/06/2016,6886471,"1,146.00",Caysh Housing Project,23133,Peoples Services Directorate,Approved Lodgings,H323
http://statistics.data.gov.uk/id/local-authority/00BF,London Borough of Sutton,30/06/2016,6886472,"1,146.00",Caysh Housing Project,23133,Peoples Services Directorate,Approved Lodgings,H323
http://statistics.data.gov.uk/id/local-authority/00BF,London Borough of Sutton,30/06/2016,6886473,"1,164.00",Caysh Housing Project,23133,Peoples Services Directorate,Approved Lodgings,H323
http://statistics.data.gov.uk/id/local-authority/00BF,London Borough of Sutton,30/06/2016,6886474,"1,164.00",Caysh Housing Project,23133,Peoples Services Directorate,Approved Lodgings,H323
http://statistics.data.gov.uk/id/local-authority/00BF,London Borough of Sutton,30/06/2016,6886475,"1,164.00",Caysh Housing Project,23133,Peoples Services Directorate,Approved Lodgings,H323
http://statistics.data.gov.uk/id/local-authority/00BF,London Borough of Sutton,27/05/2016,6886867,"2,371.45",Caysh Housing Project,23133,Peoples Services Directorate,Approved Lodgings,H323
http://statistics.data.gov.uk/id/local-authority/00BF,London Borough of Sutton,28/05/2016,6886868,"2,371.45",Caysh Housing Project,23133,Peoples Services Directorate,Approved Lodgings,H323
http://statistics.data.gov.uk/id/local-authority/00BF,London Borough of Sutton,31/05/2016,6886869,"2,371.45",Caysh Housing Project,23133,Peoples Services Directorate,Approved Lodgings,H323
http://statistics.data.gov.uk/id/local-authority/00BF,London Borough of Sutton,31/05/2016,6886870,"2,331.55",Caysh Housing Project,23133,Peoples Services Directorate,Approved Lodgings,H323
http://statistics.data.gov.uk/id/local-authority/00BF,London Borough of Sutton,31/05/2016,6886871,"2,331.55",Caysh Housing Project,23133,Peoples Services Directorate,Approved Lodgings,H323
http://statistics.data.gov.uk/id/local-authority/00BF,London Borough of Sutton,31/05/2016,6886872,"2,321.12",Caysh Housing Project,23133,Peoples Services Directorate,Approved Lodgings,H323
http://statistics.data.gov.uk/id/local-authority/00BF,London Borough of Sutton,31/05/2016,6886873,"2,321.12",Caysh Housing Project,23133,Peoples Services Directorate,Approved Lodgings,H323
http://statistics.data.gov.uk/id/local-authority/00BF,London Borough of Sutton,31/05/2016,6886874,"2,205.80",Caysh Housing Project,23133,Peoples Services Directorate,Approved Lodgings,H323
http://statistics.data.gov.uk/id/local-authority/00BF,London Borough of Sutton,31/05/2016,6886875,"2,371.45",Caysh Housing Project,23133,Peoples Services Directorate,Approved Lodgings,H323
http://statistics.data.gov.uk/id/local-authority/00BF,London Borough of Sutton,31/05/2016,6886876,"2,321.12",Caysh Housing Project,23133,Peoples Services Directorate,Approved Lodgings,H323
http://statistics.data.gov.uk/id/local-authority/00BF,London Borough of Sutton,31/05/2016,6886877,"2,371.45",Caysh Housing Project,23133,Peoples Services Directorate,Approved Lodgings,H323
http://statistics.data.gov.uk/id/local-authority/00BF,London Borough of Sutton,05/07/2016,6886363,"3,993.00","CDARS, Community Drug and Alcohol Recovery Service",11089,"Environment, Housing & Regeneration Directorate",Provider Contract Payments,F470
http://statistics.data.gov.uk/id/local-authority/00BF,London Borough of Sutton,11/07/2016,6887591,849.67,Cemplas Ltd,97508,Resources Directorate,Building Works -Main Contractor,Y350
http://statistics.data.gov.uk/id/local-authority/00BF,London Borough of Sutton,30/06/2016,6886819,845.68,Central & North West London Nhs Foundation Trust,28976,Peoples Services Directorate,Provider Contract Payments,F470
http://statistics.data.gov.uk/id/local-authority/00BF,London Borough of Sutton,30/06/2016,6886829,"1,239.65",Central & North West London Nhs Foundation Trust,28976,Peoples Services Directorate,Provider Contract Payments,F470
http://statistics.data.gov.uk/id/local-authority/00BF,London Borough of Sutton,13/07/2016,6887243,"1,447.96",Central & North West London Nhs Foundation Trust,28976,Peoples Services Directorate,Provider Contract Payments,F470
http://statistics.data.gov.uk/id/local-authority/00BF,London Borough of Sutton,01/04/2016,6886733,900.00,Change Consultancy and Training Limited,28441,Resources Directorate,Training - Course Fees,A520
http://statistics.data.gov.uk/id/local-authority/00BF,London Borough of Sutton,19/04/2016,6886734,900.00,Change Consultancy and Training Limited,28441,Resources Directorate,Training - Course Fees,A520
http://statistics.data.gov.uk/id/local-authority/00BF,London Borough of Sutton,01/05/2016,4959085,"14,571.30",Channels & Choices - Residential,25797,Peoples Services Directorate,Residential Care-Children,G330
http://statistics.data.gov.uk/id/local-authority/00BF,London Borough of Sutton,01/05/2016,4959087,"14,571.30",Channels & Choices - Residential,25797,Peoples Services Directorate,Residential Care-Children,G330
http://statistics.data.gov.uk/id/local-authority/00BF,London Borough of Sutton,01/06/2016,4969997,"15,057.01",Channels & Choices - Residential,25797,Peoples Services Directorate,Residential Care-Children,G330
http://statistics.data.gov.uk/id/local-authority/00BF,London Borough of Sutton,01/06/2016,4969998,"15,057.01",Channels & Choices - Residential,25797,Peoples Services Directorate,Residential Care-Children,G330
http://statistics.data.gov.uk/id/local-authority/00BF,London Borough of Sutton,13/07/2016,6887363,"4,324.00",Charles Hunter Associates,28315,Peoples Services Directorate,Recruitment Expenses,A531
http://statistics.data.gov.uk/id/local-authority/00BF,London Borough of Sutton,15/07/2016,4961674,"9,176.88",Chatsworth Care,19984,Peoples Services Directorate,Residential Care - Ext Provider,G310
http://statistics.data.gov.uk/id/local-authority/00BF,London Borough of Sutton,15/07/2016,4961796,"6,988.00",Chatsworth Care,19984,Peoples Services Directorate,Residential Care - Ext Provider,G310
http://statistics.data.gov.uk/id/local-authority/00BF,London Borough of Sutton,15/07/2016,4961836,"8,400.00",Chatsworth Care,19984,Peoples Services Directorate,Residential Care - Ext Provider,G310
http://statistics.data.gov.uk/id/local-authority/00BF,London Borough of Sutton,15/06/2016,6887389,"24,000.00",Cheam Common Junior Academy,28932,Peoples Services Directorate,Equipment -General,Y520
http://statistics.data.gov.uk/id/local-authority/00BF,London Borough of Sutton,05/07/2016,6886319,"1,182.50",Cheam Family Practice,10918,Peoples Services Directorate,Provider Contract Payments,F470
http://statistics.data.gov.uk/id/local-authority/00BF,London Borough of Sutton,05/07/2016,6886938,"1,180.00",Cheam Family Practice,10918,Peoples Services Directorate,Provider Contract Payments,F470
http://statistics.data.gov.uk/id/local-authority/00BF,London Borough of Sutton,01/07/2016,6887416,"36,457.00",Cheam Fields Primary School,10909,Peoples Services Directorate,Building Works -Main Contractor,Y350
http://statistics.data.gov.uk/id/local-authority/00BF,London Borough of Sutton,01/07/2016,6887416,"8,643.00",Cheam Fields Primary School,10909,Peoples Services Directorate,Building Works -Main Contractor,Y350
http://statistics.data.gov.uk/id/local-authority/00BF,London Borough of Sutton,11/07/2016,6887335,"2,500.00",Cheam Park Farm Infant School Acadamy,25348,Peoples Services Directorate,Payments to Schools,G065
http://statistics.data.gov.uk/id/local-authority/00BF,London Borough of Sutton,27/06/2016,6885828,440.00,Cheam Park Farm Junior School Academy,23882,Peoples Services Directorate,Payments to Schools,G065
http://statistics.data.gov.uk/id/local-authority/00BF,London Borough of Sutton,30/06/2016,6886105,443.70,Cheam Priory Day Centre,10894,Peoples Services Directorate,Home Care,G334
http://statistics.data.gov.uk/id/local-authority/00BF,London Borough of Sutton,31/05/2016,1221188,504.00,Cheam Station Cars,15604,Peoples Services Directorate,Hired Peoples Transport (Children),E072
http://statistics.data.gov.uk/id/local-authority/00BF,London Borough of Sutton,31/05/2016,1221189,848.00,Cheam Station Cars,15604,Peoples Services Directorate,Hired Peoples Transport (Children),E072
http://statistics.data.gov.uk/id/local-authority/00BF,London Borough of Sutton,30/06/2016,1221366,"7,408.00",Cheam Station Cars,15604,Peoples Services Directorate,Hired Peoples Transport (Children),E072
http://statistics.data.gov.uk/id/local-authority/00BF,London Borough of Sutton,30/06/2016,1221367,625.00,Cheam Station Cars,15604,Peoples Services Directorate,Hired Peoples Transport (Children),E072
http://statistics.data.gov.uk/id/local-authority/00BF,London Borough of Sutton,30/06/2016,1221368,"1,140.00",Cheam Station Cars,15604,Peoples Services Directorate,Hired Peoples Transport (Children),E072
http://statistics.data.gov.uk/id/local-authority/00BF,London Borough of Sutton,30/06/2016,1221369,"1,870.00",Cheam Station Cars,15604,Peoples Services Directorate,Hired Peoples Transport (Children),E072
http://statistics.data.gov.uk/id/local-authority/00BF,London Borough of Sutton,30/06/2016,1221370,591.00,Cheam Station Cars,15604,Peoples Services Directorate,Hired Peoples Transport (Children),E072
http://statistics.data.gov.uk/id/local-authority/00BF,London Borough of Sutton,30/06/2016,1221372,896.00,Cheam Station Cars,15604,Peoples Services Directorate,Hired Peoples Transport (Children),E072
http://statistics.data.gov.uk/id/local-authority/00BF,London Borough of Sutton,30/06/2016,1221373,"3,145.00",Cheam Station Cars,15604,Peoples Services Directorate,Hired Peoples Transport (Children),E072
http://statistics.data.gov.uk/id/local-authority/00BF,London Borough of Sutton,30/06/2016,1221378,484.00,Cheam Station Cars,15604,Peoples Services Directorate,Hired Peoples Transport (Children),E072
http://statistics.data.gov.uk/id/local-authority/00BF,London Borough of Sutton,30/06/2016,1221379,"1,973.00",Cheam Station Cars,15604,Peoples Services Directorate,Hired Peoples Transport (Children),E072
http://statistics.data.gov.uk/id/local-authority/00BF,London Borough of Sutton,30/06/2016,1221380,950.00,Cheam Station Cars,15604,Peoples Services Directorate,Hired Peoples Transport (Children),E072
http://statistics.data.gov.uk/id/local-authority/00BF,London Borough of Sutton,30/06/2016,1221381,"1,050.00",Cheam Station Cars,15604,Peoples Services Directorate,Hired Peoples Transport (Children),E072
http://statistics.data.gov.uk/id/local-authority/00BF,London Borough of Sutton,30/06/2016,1221382,504.00,Cheam Station Cars,15604,Peoples Services Directorate,Hired Peoples Transport (Children),E072
http://statistics.data.gov.uk/id/local-authority/00BF,London Borough of Sutton,30/06/2016,1221383,648.00,Cheam Station Cars,15604,Peoples Services Directorate,Hired Peoples Transport (Children),E072
http://statistics.data.gov.uk/id/local-authority/00BF,London Borough of Sutton,30/06/2016,1221385,"2,015.00",Cheam Station Cars,15604,Peoples Services Directorate,Hired Peoples Transport (Children),E072
http://statistics.data.gov.uk/id/local-authority/00BF,London Borough of Sutton,30/06/2016,1221386,"1,670.00",Cheam Station Cars,15604,Peoples Services Directorate,Hired Peoples Transport (Children),E072
http://statistics.data.gov.uk/id/local-authority/00BF,London Borough of Sutton,30/06/2016,1221387,775.00,Cheam Station Cars,15604,Peoples Services Directorate,Hired Peoples Transport (Children),E072
http://statistics.data.gov.uk/id/local-authority/00BF,London Borough of Sutton,30/06/2016,1221388,"1,435.00",Cheam Station Cars,15604,Peoples Services Directorate,Hired Peoples Transport (Children),E072
http://statistics.data.gov.uk/id/local-authority/00BF,London Borough of Sutton,30/06/2016,1221389,"2,700.00",Cheam Station Cars,15604,Peoples Services Directorate,Hired Peoples Transport (Children),E072
http://statistics.data.gov.uk/id/local-authority/00BF,London Borough of Sutton,30/06/2016,1221390,"2,964.00",Cheam Station Cars,15604,Peoples Services Directorate,Hired Peoples Transport (Children),E072
http://statistics.data.gov.uk/id/local-authority/00BF,London Borough of Sutton,30/06/2016,1221391,"2,880.00",Cheam Station Cars,15604,Peoples Services Directorate,Hired Peoples Transport (Children),E072
http://statistics.data.gov.uk/id/local-authority/00BF,London Borough of Sutton,19/07/2016,6887566,955.09,Checkprint Ltd,18146,Resources Directorate,Printing - General,F215
http://statistics.data.gov.uk/id/local-authority/00BF,London Borough of Sutton,15/07/2016,4961596,"13,885.71",Chegworth Nursing Home Bayswift Ltd,10908,Peoples Services Directorate,Nursing Care - Ext Provider,G311
http://statistics.data.gov.uk/id/local-authority/00BF,London Borough of Sutton,15/07/2016,4961596,"13,771.42",Chegworth Nursing Home Bayswift Ltd,10908,Peoples Services Directorate,Nursing Care - Short Term Placements,G328
http://statistics.data.gov.uk/id/local-authority/00BF,London Borough of Sutton,15/07/2016,4961635,"2,019.96",Chegworth Nursing Home Bayswift Ltd,10908,Peoples Services Directorate,Nursing Care - Ext Provider,G311
http://statistics.data.gov.uk/id/local-authority/00BF,London Borough of Sutton,15/07/2016,4961648,"2,781.64",Chegworth Nursing Home Bayswift Ltd,10908,Peoples Services Directorate,Nursing Care - Ext Provider,G311
http://statistics.data.gov.uk/id/local-authority/00BF,London Borough of Sutton,15/07/2016,4961655,"1,890.40",Chegworth Nursing Home Bayswift Ltd,10908,Peoples Services Directorate,Nursing Care - Ext Provider,G311
http://statistics.data.gov.uk/id/local-authority/00BF,London Borough of Sutton,15/07/2016,4961750,"2,800.00",Chegworth Nursing Home Bayswift Ltd,10908,Peoples Services Directorate,Nursing Care - Ext Provider,G311
http://statistics.data.gov.uk/id/local-authority/00BF,London Borough of Sutton,15/07/2016,4961808,"2,352.00",Chegworth Nursing Home Bayswift Ltd,10908,Peoples Services Directorate,Nursing Care - Ext Provider,G311
http://statistics.data.gov.uk/id/local-authority/00BF,London Borough of Sutton,15/07/2016,4961826,"2,467.96",Chegworth Nursing Home Bayswift Ltd,10908,Peoples Services Directorate,Nursing Care - Ext Provider,G311
http://statistics.data.gov.uk/id/local-authority/00BF,London Borough of Sutton,15/07/2016,4961872,"2,505.20",Chegworth Nursing Home Bayswift Ltd,10908,Peoples Services Directorate,Nursing Care - Ext Provider,G311
http://statistics.data.gov.uk/id/local-authority/00BF,London Borough of Sutton,15/07/2016,4961895,"1,928.24",Chegworth Nursing Home Bayswift Ltd,10908,Peoples Services Directorate,Nursing Care - Ext Provider,G311
http://statistics.data.gov.uk/id/local-authority/00BF,London Borough of Sutton,15/07/2016,4961919,"2,539.84",Chegworth Nursing Home Bayswift Ltd,10908,Peoples Services Directorate,Nursing Care - Ext Provider,G311
http://statistics.data.gov.uk/id/local-authority/00BF,London Borough of Sutton,19/05/2016,6886837,"6,219.58",Chelsea and Westminster NHS ft,28891,Peoples Services Directorate,Provider Contract Payments,F470
http://statistics.data.gov.uk/id/local-authority/00BF,London Borough of Sutton,14/07/2016,6887183,"1,689.52",Chelsea and Westminster NHS ft,28891,Peoples Services Directorate,Provider Contract Payments,F470
http://statistics.data.gov.uk/id/local-authority/00BF,London Borough of Sutton,14/07/2016,6887432,"9,513.61",Chelsea and Westminster NHS ft,28891,Peoples Services Directorate,Provider Contract Payments,F470
http://statistics.data.gov.uk/id/local-authority/00BF,London Borough of Sutton,14/07/2016,6887433,"9,513.61",Chelsea and Westminster NHS ft,28891,Peoples Services Directorate,Provider Contract Payments,F470
http://statistics.data.gov.uk/id/local-authority/00BF,London Borough of Sutton,01/07/2016,6887436,"9,513.61",Chelsea and Westminster NHS ft,28891,Peoples Services Directorate,Provider Contract Payments,F470
http://statistics.data.gov.uk/id/local-authority/00BF,London Borough of Sutton,14/07/2016,6887437,"102,965.93",Chelsea and Westminster NHS ft,28891,Peoples Services Directorate,Provider Contract Payments,F470
http://statistics.data.gov.uk/id/local-authority/00BF,London Borough of Sutton,14/07/2016,6887441,"9,513.61",Chelsea and Westminster NHS ft,28891,Peoples Services Directorate,Provider Contract Payments,F470
http://statistics.data.gov.uk/id/local-authority/00BF,London Borough of Sutton,29/05/2016,4966519,518.00,Chenash Homecare Specialists And Care Agency,25667,Peoples Services Directorate,Home Care,G334
http://statistics.data.gov.uk/id/local-authority/00BF,London Borough of Sutton,05/06/2016,4966520,518.00,Chenash Homecare Specialists And Care Agency,25667,Peoples Services Directorate,Home Care,G334
http://statistics.data.gov.uk/id/local-authority/00BF,London Borough of Sutton,12/06/2016,4966521,518.00,Chenash Homecare Specialists And Care Agency,25667,Peoples Services Directorate,Home Care,G334
http://statistics.data.gov.uk/id/local-authority/00BF,London Borough of Sutton,19/06/2016,4966522,518.00,Chenash Homecare Specialists And Care Agency,25667,Peoples Services Directorate,Home Care,G334
http://statistics.data.gov.uk/id/local-authority/00BF,London Borough of Sutton,26/06/2016,4966523,518.00,Chenash Homecare Specialists And Care Agency,25667,Peoples Services Directorate,Home Care,G334
http://statistics.data.gov.uk/id/local-authority/00BF,London Borough of Sutton,29/05/2016,4966524,462.00,Chenash Homecare Specialists And Care Agency,25667,Peoples Services Directorate,Home Care,G334
http://statistics.data.gov.uk/id/local-authority/00BF,London Borough of Sutton,05/06/2016,4966525,462.00,Chenash Homecare Specialists And Care Agency,25667,Peoples Services Directorate,Home Care,G334
http://statistics.data.gov.uk/id/local-authority/00BF,London Borough of Sutton,12/06/2016,4966526,462.00,Chenash Homecare Specialists And Care Agency,25667,Peoples Services Directorate,Home Care,G334
http://statistics.data.gov.uk/id/local-authority/00BF,London Borough of Sutton,19/06/2016,4966527,462.00,Chenash Homecare Specialists And Care Agency,25667,Peoples Services Directorate,Home Care,G334
http://statistics.data.gov.uk/id/local-authority/00BF,London Borough of Sutton,26/06/2016,4966528,462.00,Chenash Homecare Specialists And Care Agency,25667,Peoples Services Directorate,Home Care,G334
http://statistics.data.gov.uk/id/local-authority/00BF,London Borough of Sutton,29/05/2016,4966626,490.00,Chenash Homecare Specialists And Care Agency,25667,Peoples Services Directorate,Home Care,G334
http://statistics.data.gov.uk/id/local-authority/00BF,London Borough of Sutton,05/06/2016,4966627,490.00,Chenash Homecare Specialists And Care Agency,25667,Peoples Services Directorate,Home Care,G334
http://statistics.data.gov.uk/id/local-authority/00BF,London Borough of Sutton,12/06/2016,4966628,490.00,Chenash Homecare Specialists And Care Agency,25667,Peoples Services Directorate,Home Care,G334
http://statistics.data.gov.uk/id/local-authority/00BF,London Borough of Sutton,19/06/2016,4966629,490.00,Chenash Homecare Specialists And Care Agency,25667,Peoples Services Directorate,Home Care,G334
http://statistics.data.gov.uk/id/local-authority/00BF,London Borough of Sutton,26/06/2016,4966630,490.00,Chenash Homecare Specialists And Care Agency,25667,Peoples Services Directorate,Home Care,G334
http://statistics.data.gov.uk/id/local-authority/00BF,London Borough of Sutton,17/02/2016,4966692,441.00,Chenash Homecare Specialists And Care Agency,25667,Peoples Services Directorate,Home Care,G334
http://statistics.data.gov.uk/id/local-authority/00BF,London Borough of Sutton,17/02/2016,4966704,490.00,Chenash Homecare Specialists And Care Agency,25667,Peoples Services Directorate,Home Care,G334
http://statistics.data.gov.uk/id/local-authority/00BF,London Borough of Sutton,29/05/2016,4966789,490.00,Chenash Homecare Specialists And Care Agency,25667,Peoples Services Directorate,Home Care,G334
http://statistics.data.gov.uk/id/local-authority/00BF,London Borough of Sutton,05/06/2016,4966790,490.00,Chenash Homecare Specialists And Care Agency,25667,Peoples Services Directorate,Home Care,G334
http://statistics.data.gov.uk/id/local-authority/00BF,London Borough of Sutton,12/06/2016,4966791,490.00,Chenash Homecare Specialists And Care Agency,25667,Peoples Services Directorate,Home Care,G334
http://statistics.data.gov.uk/id/local-authority/00BF,London Borough of Sutton,19/06/2016,4966792,490.00,Chenash Homecare Specialists And Care Agency,25667,Peoples Services Directorate,Home Care,G334
http://statistics.data.gov.uk/id/local-authority/00BF,London Borough of Sutton,26/06/2016,4966793,490.00,Chenash Homecare Specialists And Care Agency,25667,Peoples Services Directorate,Home Care,G334
http://statistics.data.gov.uk/id/local-authority/00BF,London Borough of Sutton,29/05/2016,4966814,441.00,Chenash Homecare Specialists And Care Agency,25667,Peoples Services Directorate,Home Care,G334
http://statistics.data.gov.uk/id/local-authority/00BF,London Borough of Sutton,05/06/2016,4966815,441.00,Chenash Homecare Specialists And Care Agency,25667,Peoples Services Directorate,Home Care,G334
http://statistics.data.gov.uk/id/local-authority/00BF,London Borough of Sutton,12/06/2016,4966816,441.00,Chenash Homecare Specialists And Care Agency,25667,Peoples Services Directorate,Home Care,G334
http://statistics.data.gov.uk/id/local-authority/00BF,London Borough of Sutton,19/06/2016,4966817,441.00,Chenash Homecare Specialists And Care Agency,25667,Peoples Services Directorate,Home Care,G334
http://statistics.data.gov.uk/id/local-authority/00BF,London Borough of Sutton,26/06/2016,4966818,441.00,Chenash Homecare Specialists And Care Agency,25667,Peoples Services Directorate,Home Care,G334
http://statistics.data.gov.uk/id/local-authority/00BF,London Borough of Sutton,17/02/2016,4966870,490.00,Chenash Homecare Specialists And Care Agency,25667,Peoples Services Directorate,Home Care,G334
http://statistics.data.gov.uk/id/local-authority/00BF,London Borough of Sutton,17/02/2016,4966873,518.00,Chenash Homecare Specialists And Care Agency,25667,Peoples Services Directorate,Home Care,G334
http://statistics.data.gov.uk/id/local-authority/00BF,London Borough of Sutton,03/07/2016,4968594,518.00,Chenash Homecare Specialists And Care Agency,25667,Peoples Services Directorate,Home Care,G334
http://statistics.data.gov.uk/id/local-authority/00BF,London Borough of Sutton,10/07/2016,4968595,518.00,Chenash Homecare Specialists And Care Agency,25667,Peoples Services Directorate,Home Care,G334
http://statistics.data.gov.uk/id/local-authority/00BF,London Borough of Sutton,17/07/2016,4968596,518.00,Chenash Homecare Specialists And Care Agency,25667,Peoples Services Directorate,Home Care,G334
http://statistics.data.gov.uk/id/local-authority/00BF,London Borough of Sutton,03/07/2016,4968597,462.00,Chenash Homecare Specialists And Care Agency,25667,Peoples Services Directorate,Home Care,G334
http://statistics.data.gov.uk/id/local-authority/00BF,London Borough of Sutton,10/07/2016,4968598,462.00,Chenash Homecare Specialists And Care Agency,25667,Peoples Services Directorate,Home Care,G334
http://statistics.data.gov.uk/id/local-authority/00BF,London Borough of Sutton,17/07/2016,4968599,462.00,Chenash Homecare Specialists And Care Agency,25667,Peoples Services Directorate,Home Care,G334
http://statistics.data.gov.uk/id/local-authority/00BF,London Borough of Sutton,03/07/2016,4968797,490.00,Chenash Homecare Specialists And Care Agency,25667,Peoples Services Directorate,Home Care,G334
http://statistics.data.gov.uk/id/local-authority/00BF,London Borough of Sutton,10/07/2016,4968798,490.00,Chenash Homecare Specialists And Care Agency,25667,Peoples Services Directorate,Home Care,G334
http://statistics.data.gov.uk/id/local-authority/00BF,London Borough of Sutton,17/07/2016,4968799,490.00,Chenash Homecare Specialists And Care Agency,25667,Peoples Services Directorate,Home Care,G334
http://statistics.data.gov.uk/id/local-authority/00BF,London Borough of Sutton,03/07/2016,4968825,490.00,Chenash Homecare Specialists And Care Agency,25667,Peoples Services Directorate,Home Care,G334
http://statistics.data.gov.uk/id/local-authority/00BF,London Borough of Sutton,10/07/2016,4968826,490.00,Chenash Homecare Specialists And Care Agency,25667,Peoples Services Directorate,Home Care,G334
http://statistics.data.gov.uk/id/local-authority/00BF,London Borough of Sutton,17/07/2016,4968827,490.00,Chenash Homecare Specialists And Care Agency,25667,Peoples Services Directorate,Home Care,G334
http://statistics.data.gov.uk/id/local-authority/00BF,London Borough of Sutton,03/07/2016,4968837,441.00,Chenash Homecare Specialists And Care Agency,25667,Peoples Services Directorate,Home Care,G334
http://statistics.data.gov.uk/id/local-authority/00BF,London Borough of Sutton,10/07/2016,4968838,441.00,Chenash Homecare Specialists And Care Agency,25667,Peoples Services Directorate,Home Care,G334
http://statistics.data.gov.uk/id/local-authority/00BF,London Borough of Sutton,03/07/2016,4968888,588.00,Chenash Homecare Specialists And Care Agency,25667,Peoples Services Directorate,Home Care,G334
http://statistics.data.gov.uk/id/local-authority/00BF,London Borough of Sutton,10/07/2016,4968889,588.00,Chenash Homecare Specialists And Care Agency,25667,Peoples Services Directorate,Home Care,G334
http://statistics.data.gov.uk/id/local-authority/00BF,London Borough of Sutton,17/07/2016,4968890,588.00,Chenash Homecare Specialists And Care Agency,25667,Peoples Services Directorate,Home Care,G334
http://statistics.data.gov.uk/id/local-authority/00BF,London Borough of Sutton,10/07/2016,4968903,567.00,Chenash Homecare Specialists And Care Agency,25667,Peoples Services Directorate,Home Care,G334
http://statistics.data.gov.uk/id/local-authority/00BF,London Borough of Sutton,17/07/2016,4968904,735.00,Chenash Homecare Specialists And Care Agency,25667,Peoples Services Directorate,Home Care,G334
http://statistics.data.gov.uk/id/local-authority/00BF,London Borough of Sutton,15/07/2016,4961686,"2,409.80",Cherry Lodge,10934,Peoples Services Directorate,Residential Care - Ext Provider,G310
http://statistics.data.gov.uk/id/local-authority/00BF,London Borough of Sutton,15/07/2016,4961702,"3,360.00",Cherry Lodge,10934,Peoples Services Directorate,Residential Care - Ext Provider,G310
http://statistics.data.gov.uk/id/local-authority/00BF,London Borough of Sutton,02/06/2016,4959058,"19,508.57",Chidhood First,25464,Peoples Services Directorate,Residential Care-Children,G330
http://statistics.data.gov.uk/id/local-authority/00BF,London Borough of Sutton,09/05/2016,4959045,546.43,Children of All Nations,19625,Peoples Services Directorate,Foster Parents,G326
http://statistics.data.gov.uk/id/local-authority/00BF,London Borough of Sutton,13/06/2016,4959142,589.06,Children of All Nations,19625,Peoples Services Directorate,Foster Parents,G326
http://statistics.data.gov.uk/id/local-authority/00BF,London Borough of Sutton,12/07/2016,4970793,"4,565.19",Children of All Nations,19625,Peoples Services Directorate,Foster Parents,G326
http://statistics.data.gov.uk/id/local-authority/00BF,London Borough of Sutton,12/07/2016,6887249,"1,000.00",Chiltern Church (Sutton),18533,"Environment, Housing & Regeneration Directorate",Assistance to Voluntary Organisations,F471
http://statistics.data.gov.uk/id/local-authority/00BF,London Borough of Sutton,25/05/2016,4958458,"2,228.57",Choice Care Group,22029,Peoples Services Directorate,Supported Living - Ext Provider,G306
http://statistics.data.gov.uk/id/local-authority/00BF,London Borough of Sutton,25/05/2016,4958466,"1,200.00",Choice Care Group,22029,Peoples Services Directorate,Supported Living - Ext Provider,G306
http://statistics.data.gov.uk/id/local-authority/00BF,London Borough of Sutton,15/07/2016,4961664,"7,511.00",Choice Care Group,22029,Peoples Services Directorate,Residential Care - Ext Provider,G310
http://statistics.data.gov.uk/id/local-authority/00BF,London Borough of Sutton,15/07/2016,4961834,"7,682.20",Choice Care Group,22029,Peoples Services Directorate,Residential Care - Ext Provider,G310
http://statistics.data.gov.uk/id/local-authority/00BF,London Borough of Sutton,15/07/2016,4961911,"7,511.00",Choice Care Group,22029,Peoples Services Directorate,Residential Care - Ext Provider,G310
http://statistics.data.gov.uk/id/local-authority/00BF,London Borough of Sutton,09/06/2016,4958420,739.20,Choice Support,22320,Peoples Services Directorate,Supported Living - Ext Provider,G306
http://statistics.data.gov.uk/id/local-authority/00BF,London Borough of Sutton,09/06/2016,4958420,"5,501.10",Choice Support,22320,Peoples Services Directorate,Supported Living - Ext Provider,G306
http://statistics.data.gov.uk/id/local-authority/00BF,London Borough of Sutton,09/06/2016,4958421,"2,045.99",Choice Support,22320,Peoples Services Directorate,Supported Living - Ext Provider,G306
http://statistics.data.gov.uk/id/local-authority/00BF,London Borough of Sutton,09/06/2016,4958421,528.00,Choice Support,22320,Peoples Services Directorate,Supported Living - Ext Provider,G306
http://statistics.data.gov.uk/id/local-authority/00BF,London Borough of Sutton,09/06/2016,4958421,"1,320.00",Choice Support,22320,Peoples Services Directorate,Supported Living - Ext Provider,G306
http://statistics.data.gov.uk/id/local-authority/00BF,London Borough of Sutton,09/06/2016,4958422,"2,290.19",Choice Support,22320,Peoples Services Directorate,Supported Living - Ext Provider,G306
http://statistics.data.gov.uk/id/local-authority/00BF,London Borough of Sutton,09/06/2016,4958422,528.00,Choice Support,22320,Peoples Services Directorate,Supported Living - Ext Provider,G306
http://statistics.data.gov.uk/id/local-authority/00BF,London Borough of Sutton,09/06/2016,4958422,"1,485.00",Choice Support,22320,Peoples Services Directorate,Supported Living - Ext Provider,G306
http://statistics.data.gov.uk/id/local-authority/00BF,London Borough of Sutton,09/06/2016,4958423,"1,201.19",Choice Support,22320,Peoples Services Directorate,Supported Living - Ext Provider,G306
http://statistics.data.gov.uk/id/local-authority/00BF,London Borough of Sutton,09/06/2016,4958423,528.00,Choice Support,22320,Peoples Services Directorate,Supported Living - Ext Provider,G306
http://statistics.data.gov.uk/id/local-authority/00BF,London Borough of Sutton,09/06/2016,4958423,"1,623.60",Choice Support,22320,Peoples Services Directorate,Supported Living - Ext Provider,G306
http://statistics.data.gov.uk/id/local-authority/00BF,London Borough of Sutton,09/06/2016,4958436,739.20,Choice Support,22320,Peoples Services Directorate,Supported Living - Ext Provider,G306
http://statistics.data.gov.uk/id/local-authority/00BF,London Borough of Sutton,09/06/2016,4958436,"4,365.90",Choice Support,22320,Peoples Services Directorate,Supported Living - Ext Provider,G306
http://statistics.data.gov.uk/id/local-authority/00BF,London Borough of Sutton,09/06/2016,4958437,739.20,Choice Support,22320,Peoples Services Directorate,Supported Living - Ext Provider,G306
http://statistics.data.gov.uk/id/local-authority/00BF,London Borough of Sutton,09/06/2016,4958437,"4,768.50",Choice Support,22320,Peoples Services Directorate,Supported Living - Ext Provider,G306
http://statistics.data.gov.uk/id/local-authority/00BF,London Borough of Sutton,09/06/2016,4958438,"3,135.32",Choice Support,22320,Peoples Services Directorate,Supported Living - Ext Provider,G306
http://statistics.data.gov.uk/id/local-authority/00BF,London Borough of Sutton,09/06/2016,4958438,528.00,Choice Support,22320,Peoples Services Directorate,Supported Living - Ext Provider,G306
http://statistics.data.gov.uk/id/local-authority/00BF,London Borough of Sutton,09/06/2016,4958438,"2,745.60",Choice Support,22320,Peoples Services Directorate,Supported Living - Ext Provider,G306
http://statistics.data.gov.uk/id/local-authority/00BF,London Borough of Sutton,09/06/2016,4958439,"1,484.99",Choice Support,22320,Peoples Services Directorate,Supported Living - Ext Provider,G306
http://statistics.data.gov.uk/id/local-authority/00BF,London Borough of Sutton,09/06/2016,4958439,528.00,Choice Support,22320,Peoples Services Directorate,Supported Living - Ext Provider,G306
http://statistics.data.gov.uk/id/local-authority/00BF,London Borough of Sutton,09/06/2016,4958439,"1,551.00",Choice Support,22320,Peoples Services Directorate,Supported Living - Ext Provider,G306
http://statistics.data.gov.uk/id/local-authority/00BF,London Borough of Sutton,09/06/2016,4958440,"1,445.39",Choice Support,22320,Peoples Services Directorate,Supported Living - Ext Provider,G306
http://statistics.data.gov.uk/id/local-authority/00BF,London Borough of Sutton,09/06/2016,4958440,528.00,Choice Support,22320,Peoples Services Directorate,Supported Living - Ext Provider,G306
http://statistics.data.gov.uk/id/local-authority/00BF,London Borough of Sutton,09/06/2016,4958440,"1,749.00",Choice Support,22320,Peoples Services Directorate,Supported Living - Ext Provider,G306
http://statistics.data.gov.uk/id/local-authority/00BF,London Borough of Sutton,09/06/2016,4958456,739.20,Choice Support,22320,Peoples Services Directorate,Supported Living - Ext Provider,G306
http://statistics.data.gov.uk/id/local-authority/00BF,London Borough of Sutton,09/06/2016,4958456,"5,111.70",Choice Support,22320,Peoples Services Directorate,Supported Living - Ext Provider,G306
http://statistics.data.gov.uk/id/local-authority/00BF,London Borough of Sutton,09/06/2016,4958461,739.20,Choice Support,22320,Peoples Services Directorate,Supported Living - Ext Provider,G306
http://statistics.data.gov.uk/id/local-authority/00BF,London Borough of Sutton,09/06/2016,4958461,"4,761.90",Choice Support,22320,Peoples Services Directorate,Supported Living - Ext Provider,G306
http://statistics.data.gov.uk/id/local-authority/00BF,London Borough of Sutton,09/06/2016,4958462,739.20,Choice Support,22320,Peoples Services Directorate,Supported Living - Ext Provider,G306
http://statistics.data.gov.uk/id/local-authority/00BF,London Borough of Sutton,09/06/2016,4958462,"6,035.70",Choice Support,22320,Peoples Services Directorate,Supported Living - Ext Provider,G306
http://statistics.data.gov.uk/id/local-authority/00BF,London Borough of Sutton,09/06/2016,4958463,739.20,Choice Support,22320,Peoples Services Directorate,Supported Living - Ext Provider,G306
http://statistics.data.gov.uk/id/local-authority/00BF,London Borough of Sutton,09/06/2016,4958463,"4,874.10",Choice Support,22320,Peoples Services Directorate,Supported Living - Ext Provider,G306
http://statistics.data.gov.uk/id/local-authority/00BF,London Borough of Sutton,09/06/2016,4958464,739.20,Choice Support,22320,Peoples Services Directorate,Supported Living - Ext Provider,G306
http://statistics.data.gov.uk/id/local-authority/00BF,London Borough of Sutton,09/06/2016,4958464,"5,091.90",Choice Support,22320,Peoples Services Directorate,Supported Living - Ext Provider,G306
http://statistics.data.gov.uk/id/local-authority/00BF,London Borough of Sutton,09/06/2016,4958465,"2,464.10",Choice Support,22320,Peoples Services Directorate,Supported Living - Ext Provider,G306
http://statistics.data.gov.uk/id/local-authority/00BF,London Borough of Sutton,09/06/2016,4958465,528.00,Choice Support,22320,Peoples Services Directorate,Supported Living - Ext Provider,G306
http://statistics.data.gov.uk/id/local-authority/00BF,London Borough of Sutton,09/06/2016,4958465,"1,320.00",Choice Support,22320,Peoples Services Directorate,Supported Living - Ext Provider,G306
http://statistics.data.gov.uk/id/local-authority/00BF,London Borough of Sutton,11/07/2016,6886866,"15,374.21",Chroma Vision Limited,20351,Resources Directorate,Other,Y450
http://statistics.data.gov.uk/id/local-authority/00BF,London Borough of Sutton,09/05/2016,6887592,"1,051.89",CIPFA,10892,Peoples Services Directorate,Training - Course Fees,A520
http://statistics.data.gov.uk/id/local-authority/00BF,London Borough of Sutton,20/07/2016,6887597,"1,412.50",City Suburban Tree Surgeons,24817,"Environment, Housing & Regeneration Directorate",Trees - SCH,D875
http://statistics.data.gov.uk/id/local-authority/00BF,London Borough of Sutton,01/07/2016,6887601,"2,472.50",City Suburban Tree Surgeons,24817,"Environment, Housing & Regeneration Directorate",Emergency Repairs,D540
http://statistics.data.gov.uk/id/local-authority/00BF,London Borough of Sutton,20/07/2016,6887604,"5,266.32",City Suburban Tree Surgeons,24817,"Environment, Housing & Regeneration Directorate",Trees - SCH,D875
http://statistics.data.gov.uk/id/local-authority/00BF,London Borough of Sutton,01/03/2016,6885931,"19,418.00",Cityglen Ltd T/A Hytyme ltd,24115,"Environment, Housing & Regeneration Directorate",Bed and Breakfast Accommodation,G400
http://statistics.data.gov.uk/id/local-authority/00BF,London Borough of Sutton,01/07/2016,6886791,"1,050.00",Cityglen Ltd T/A Hytyme ltd,24115,Peoples Services Directorate,Approved Lodgings,H323
http://statistics.data.gov.uk/id/local-authority/00BF,London Borough of Sutton,01/06/2016,6887067,"29,144.00",Cityglen Ltd T/A Hytyme ltd,24115,"Environment, Housing & Regeneration Directorate",Bed and Breakfast Accommodation,G400
http://statistics.data.gov.uk/id/local-authority/00BF,London Borough of Sutton,15/07/2016,4961597,"18,834.29",Claremont Care Svs Ltd,18724,Peoples Services Directorate,Nursing Care - Short Term Placements,G328
http://statistics.data.gov.uk/id/local-authority/00BF,London Borough of Sutton,15/07/2016,4961616,"7,114.28",Claremont Care Svs Ltd,18724,Peoples Services Directorate,Nursing Care - Short Term Placements,G328
http://statistics.data.gov.uk/id/local-authority/00BF,London Borough of Sutton,15/07/2016,4961669,"2,400.00",Claremont Care Svs Ltd,18724,Peoples Services Directorate,Interim Placements - Ext Provider,G317
http://statistics.data.gov.uk/id/local-authority/00BF,London Borough of Sutton,15/07/2016,4961713,"3,400.00",Claremont Care Svs Ltd,18724,Peoples Services Directorate,Nursing Care - Ext Provider,G311
http://statistics.data.gov.uk/id/local-authority/00BF,London Borough of Sutton,15/07/2016,4961928,"4,200.00",Claremont Care Svs Ltd,18724,Peoples Services Directorate,Nursing Care - Ext Provider,G311
http://statistics.data.gov.uk/id/local-authority/00BF,London Borough of Sutton,15/07/2016,4961943,"4,000.00",Claremont Care Svs Ltd,18724,Peoples Services Directorate,Nursing Care - Ext Provider,G311
http://statistics.data.gov.uk/id/local-authority/00BF,London Borough of Sutton,15/07/2016,4961611,"1,080.00",Clarity Treatment Services Ltd,26052,Peoples Services Directorate,Interim Placements - Ext Provider,G317
http://statistics.data.gov.uk/id/local-authority/00BF,London Borough of Sutton,05/07/2016,6886656,"1,500.00",Clear Channel Uk,20254,"Environment, Housing & Regeneration Directorate",Advertising/Publicity (non Staff),F240
http://statistics.data.gov.uk/id/local-authority/00BF,London Borough of Sutton,05/07/2016,6886673,678.13,Clear Channel Uk,20254,"Environment, Housing & Regeneration Directorate",Advertising/Publicity (non Staff),F240
http://statistics.data.gov.uk/id/local-authority/00BF,London Borough of Sutton,19/07/2016,6887669,478.64,Clear Channel Uk,20254,"Environment, Housing & Regeneration Directorate",Advertising/Publicity (non Staff),F240
http://statistics.data.gov.uk/id/local-authority/00BF,London Borough of Sutton,19/07/2016,6887700,741.04,Clear Channel Uk,20254,"Environment, Housing & Regeneration Directorate",Advertising/Publicity (non Staff),F240
http://statistics.data.gov.uk/id/local-authority/00BF,London Borough of Sutton,15/07/2016,4961795,"2,000.00",Cloyda Limited,20402,Peoples Services Directorate,Residential Care - Ext Provider,G310
http://statistics.data.gov.uk/id/local-authority/00BF,London Borough of Sutton,15/07/2016,4961615,"17,000.00",Cmg Homes Ltd,11026,Peoples Services Directorate,Residential Care - Ext Provider,G310
http://statistics.data.gov.uk/id/local-authority/00BF,London Borough of Sutton,15/07/2016,4961636,"5,416.92",Cmg Homes Ltd,11026,Peoples Services Directorate,Residential Care - Ext Provider,G310
http://statistics.data.gov.uk/id/local-authority/00BF,London Borough of Sutton,15/07/2016,4961949,"7,036.00",Cmg Homes Ltd,11026,Peoples Services Directorate,Residential Care - Ext Provider,G310
http://statistics.data.gov.uk/id/local-authority/00BF,London Borough of Sutton,18/07/2016,4967182,"4,003.69",Cmg Homes Ltd,11026,Peoples Services Directorate,Supported Living - Ext Provider,G306
http://statistics.data.gov.uk/id/local-authority/00BF,London Borough of Sutton,18/07/2016,4967183,"4,592.43",Cmg Homes Ltd,11026,Peoples Services Directorate,Supported Living - Ext Provider,G306
http://statistics.data.gov.uk/id/local-authority/00BF,London Borough of Sutton,01/06/2016,6887145,"3,346.75",CNH Capital Europe Ltd,23033,"Environment, Housing & Regeneration Directorate",Hired Vehicles,E070
http://statistics.data.gov.uk/id/local-authority/00BF,London Borough of Sutton,14/07/2016,6887186,932.00,Cocomango,24639,Peoples Services Directorate,Materials - General,F100
http://statistics.data.gov.uk/id/local-authority/00BF,London Borough of Sutton,19/07/2016,6887839,"29,650.00",Collaboratei,26296,Chief Executive's Directorate,Fees - Surveys,F280
http://statistics.data.gov.uk/id/local-authority/00BF,London Borough of Sutton,29/06/2016,6885936,540.00,Comcir Radio Communications Ltd,22582,"Environment, Housing & Regeneration Directorate",Materials - General,F100
http://statistics.data.gov.uk/id/local-authority/00BF,London Borough of Sutton,30/06/2016,4961259,713.92,Comfort Care Services UK Ltd,17585,Peoples Services Directorate,Supported Living - Ext Provider,G306
http://statistics.data.gov.uk/id/local-authority/00BF,London Borough of Sutton,04/07/2016,4961260,713.92,Comfort Care Services UK Ltd,17585,Peoples Services Directorate,Supported Living - Ext Provider,G306
http://statistics.data.gov.uk/id/local-authority/00BF,London Borough of Sutton,18/05/2016,4960847,476.00,Community Home Care Provider,11097,Peoples Services Directorate,Home Care,G334
http://statistics.data.gov.uk/id/local-authority/00BF,London Borough of Sutton,27/05/2016,4960852,476.00,Community Home Care Provider,11097,Peoples Services Directorate,Home Care,G334
http://statistics.data.gov.uk/id/local-authority/00BF,London Borough of Sutton,08/06/2016,4960860,476.00,Community Home Care Provider,11097,Peoples Services Directorate,Home Care,G334
http://statistics.data.gov.uk/id/local-authority/00BF,London Borough of Sutton,13/06/2016,6885426,"28,130.40",Community Options Ltd,24917,Peoples Services Directorate,Provider Contract Payments,F470
http://statistics.data.gov.uk/id/local-authority/00BF,London Borough of Sutton,13/06/2016,6885427,"28,130.40",Community Options Ltd,24917,Peoples Services Directorate,Provider Contract Payments,F470
http://statistics.data.gov.uk/id/local-authority/00BF,London Borough of Sutton,13/06/2016,6885428,"28,130.40",Community Options Ltd,24917,Peoples Services Directorate,Provider Contract Payments,F470
http://statistics.data.gov.uk/id/local-authority/00BF,London Borough of Sutton,13/06/2016,6885429,"28,130.40",Community Options Ltd,24917,Peoples Services Directorate,Provider Contract Payments,F470
http://statistics.data.gov.uk/id/local-authority/00BF,London Borough of Sutton,13/06/2016,6885430,"28,130.40",Community Options Ltd,24917,Peoples Services Directorate,Provider Contract Payments,F470
http://statistics.data.gov.uk/id/local-authority/00BF,London Borough of Sutton,20/06/2016,6885431,"28,130.40",Community Options Ltd,24917,Peoples Services Directorate,Provider Contract Payments,F470
http://statistics.data.gov.uk/id/local-authority/00BF,London Borough of Sutton,18/07/2016,6887336,"25,526.40",Community Options Ltd,24917,Peoples Services Directorate,Provider Contract Payments,F470
http://statistics.data.gov.uk/id/local-authority/00BF,London Borough of Sutton,07/07/2016,6887195,"1,591.61",Contract Security Services,23827,Chief Executive's Directorate,Security - Cash In Transit,G410
http://statistics.data.gov.uk/id/local-authority/00BF,London Borough of Sutton,31/05/2016,6886163,594.95,Coram Voice,21584,Peoples Services Directorate,Other Services,F340
http://statistics.data.gov.uk/id/local-authority/00BF,London Borough of Sutton,21/02/2016,6887148,"6,600.00",Cordant Procurement,25989,Peoples Services Directorate,Agency Staff - Adecco,A300
http://statistics.data.gov.uk/id/local-authority/00BF,London Borough of Sutton,28/12/2015,6886106,480.00,Core Assets Children's Services Ltd,27511,Peoples Services Directorate,Homecare Core Services,G336
http://statistics.data.gov.uk/id/local-authority/00BF,London Borough of Sutton,28/08/2015,6886107,"1,176.00",Core Assets Children's Services Ltd,27511,Peoples Services Directorate,Day Care,G337
http://statistics.data.gov.uk/id/local-authority/00BF,London Borough of Sutton,28/06/2016,6886346,"8,493.98",Corelogic Ltd,24747,Peoples Services Directorate,Fees - Computer Software,F384
http://statistics.data.gov.uk/id/local-authority/00BF,London Borough of Sutton,06/07/2016,6886935,"10,925.00",Corelogic Ltd,24747,Peoples Services Directorate,Fees - Computer Software,F384
http://statistics.data.gov.uk/id/local-authority/00BF,London Borough of Sutton,16/05/2016,4959084,"11,505.34",Cornerways - Fostering Services Ltd,11105,Peoples Services Directorate,Residential Care-Children,G330
http://statistics.data.gov.uk/id/local-authority/00BF,London Borough of Sutton,16/06/2016,4969992,"11,134.20",Cornerways - Fostering Services Ltd,11105,Peoples Services Directorate,Residential Care-Children,G330
http://statistics.data.gov.uk/id/local-authority/00BF,London Borough of Sutton,06/01/2016,6883692,470.00,Corsair Engineering Ltd,23469,Peoples Services Directorate,Other Equipment - Purchase,F015
http://statistics.data.gov.uk/id/local-authority/00BF,London Borough of Sutton,15/07/2016,4961915,"3,053.24",Cottisbraine House,11058,Peoples Services Directorate,Residential Care - Ext Provider,G310
http://statistics.data.gov.uk/id/local-authority/00BF,London Borough of Sutton,15/07/2016,4961573,"2,700.00",Cranstoun,11184,Peoples Services Directorate,Interim Placements - Ext Provider,G317
http://statistics.data.gov.uk/id/local-authority/00BF,London Borough of Sutton,15/07/2016,4961579,"2,700.00",Cranstoun,11184,Peoples Services Directorate,Interim Placements - Ext Provider,G317
http://statistics.data.gov.uk/id/local-authority/00BF,London Borough of Sutton,15/07/2016,4961580,"1,350.00",Cranstoun,11184,Peoples Services Directorate,Interim Placements - Ext Provider,G317
http://statistics.data.gov.uk/id/local-authority/00BF,London Borough of Sutton,15/07/2016,4961586,"3,760.71",Cranstoun,11184,Peoples Services Directorate,Interim Placements - Ext Provider,G317
http://statistics.data.gov.uk/id/local-authority/00BF,London Borough of Sutton,15/07/2016,4961599,771.43,Cranstoun,11184,Peoples Services Directorate,Interim Placements - Ext Provider,G317
http://statistics.data.gov.uk/id/local-authority/00BF,London Borough of Sutton,15/07/2016,4961605,"3,375.00",Cranstoun,11184,Peoples Services Directorate,Interim Placements - Ext Provider,G317
http://statistics.data.gov.uk/id/local-authority/00BF,London Borough of Sutton,15/07/2016,4961609,"1,639.29",Cranstoun,11184,Peoples Services Directorate,Interim Placements - Ext Provider,G317
http://statistics.data.gov.uk/id/local-authority/00BF,London Borough of Sutton,01/07/2016,6886174,"1,325.64",Crest Manor Ltd,25469,Peoples Services Directorate,Approved Lodgings,H323
http://statistics.data.gov.uk/id/local-authority/00BF,London Borough of Sutton,01/07/2016,6886183,550.00,Crest Manor Ltd,25469,Peoples Services Directorate,Approved Lodgings,H323
http://statistics.data.gov.uk/id/local-authority/00BF,London Borough of Sutton,01/06/2016,6887030,"1,550.00",Crest Manor Ltd,25469,Peoples Services Directorate,C.C.A Rent & Utilities,H211
http://statistics.data.gov.uk/id/local-authority/00BF,London Borough of Sutton,01/07/2016,6888062,"1,325.64",Crest Manor Ltd,25469,Peoples Services Directorate,Approved Lodgings,H323
http://statistics.data.gov.uk/id/local-authority/00BF,London Borough of Sutton,02/03/2016,6887177,"1,152.00",Croham Services for Children Limited,20855,Peoples Services Directorate,Children Assessments,G329
http://statistics.data.gov.uk/id/local-authority/00BF,London Borough of Sutton,08/03/2016,6887178,900.00,Croham Services for Children Limited,20855,Peoples Services Directorate,Children Assessments,G329
http://statistics.data.gov.uk/id/local-authority/00BF,London Borough of Sutton,16/05/2016,6887179,900.00,Croham Services for Children Limited,20855,Peoples Services Directorate,Children Assessments,G329
http://statistics.data.gov.uk/id/local-authority/00BF,London Borough of Sutton,01/07/2016,6887088,"5,715.00",Cromwood Ltd,26178,"Environment, Housing & Regeneration Directorate",Bed and Breakfast Accommodation,G400
http://statistics.data.gov.uk/id/local-authority/00BF,London Borough of Sutton,15/07/2016,4961649,"2,326.92",Crossways Community,11187,Peoples Services Directorate,Residential Care - Ext Provider,G310
http://statistics.data.gov.uk/id/local-authority/00BF,London Borough of Sutton,28/07/2016,6888116,"1,575.00",Crown Consultants,28806,Resources Directorate,Fees - Consultants (Ad Hoc),F283
http://statistics.data.gov.uk/id/local-authority/00BF,London Borough of Sutton,01/07/2016,6886179,475.00,Croydon Care Solutions Ltd,24776,Peoples Services Directorate,Equipment,H250
http://statistics.data.gov.uk/id/local-authority/00BF,London Borough of Sutton,28/06/2016,6886117,"333,600.00",Croydon Council,11227,Peoples Services Directorate,Equipment,H250
http://statistics.data.gov.uk/id/local-authority/00BF,London Borough of Sutton,03/12/2015,6886776,850.00,Croydon Voluntary Action,26279,Peoples Services Directorate,Travelling and Subsistence Allowances,A530
http://statistics.data.gov.uk/id/local-authority/00BF,London Borough of Sutton,30/06/2016,1220607,"3,135.00",Cruisers Ltd,18087,Peoples Services Directorate,Hired Peoples Transport (Children),E072
http://statistics.data.gov.uk/id/local-authority/00BF,London Borough of Sutton,07/07/2016,6886552,"66,200.00",Crystal Palace Fc Foundation,11216,Peoples Services Directorate,Provider Contract Payments,F470
http://statistics.data.gov.uk/id/local-authority/00BF,London Borough of Sutton,15/07/2016,4961307,"8,926.00",CSS Ltd t/a Grove Care,19184,Peoples Services Directorate,Residential Care - Ext Provider,G310
http://statistics.data.gov.uk/id/local-authority/00BF,London Borough of Sutton,04/06/2016,6885880,828.00,Cullen Clearances Ltd,99815,"Environment, Housing & Regeneration Directorate",Building Works,D421
http://statistics.data.gov.uk/id/local-authority/00BF,London Borough of Sutton,02/06/2016,6884104,"4,665.50",Curl La Tourelle Architects,18610,"Environment, Housing & Regeneration Directorate",External Fees  - Architects,Y100
http://statistics.data.gov.uk/id/local-authority/00BF,London Borough of Sutton,06/06/2016,6885667,550.00,Curve Solutions Ltd,23246,Peoples Services Directorate,Training - Course Fees,A520
http://statistics.data.gov.uk/id/local-authority/00BF,London Borough of Sutton,25/06/2016,6885702,620.00,Curve Solutions Ltd,23246,Peoples Services Directorate,Training - Course Fees,A520
http://statistics.data.gov.uk/id/local-authority/00BF,London Borough of Sutton,29/06/2016,4959038,"7,907.10",Daley Bread Ltd T/A Daley Care,28917,Peoples Services Directorate,Approved Lodgings,H323
http://statistics.data.gov.uk/id/local-authority/00BF,London Borough of Sutton,29/06/2016,4959044,"7,134.20",Daley Bread Ltd T/A Daley Care,28917,Peoples Services Directorate,Accommodation - Supported Living,H201
http://statistics.data.gov.uk/id/local-authority/00BF,London Borough of Sutton,28/07/2016,4970800,"9,986.34",Daley Bread Ltd T/A Daley Care,28917,Peoples Services Directorate,Accommodation - Supported Living,H201
http://statistics.data.gov.uk/id/local-authority/00BF,London Borough of Sutton,28/07/2016,4970809,"8,170.67",Daley Bread Ltd T/A Daley Care,28917,Peoples Services Directorate,Approved Lodgings,H323
http://statistics.data.gov.uk/id/local-authority/00BF,London Borough of Sutton,21/06/2016,6885370,980.00,Damien Kidd t/a The Tree Associates,28281,Peoples Services Directorate,"Trees, Plants and Shrubs",F101
http://statistics.data.gov.uk/id/local-authority/00BF,London Borough of Sutton,19/07/2016,6887971,"1,400.00",Dawsonrentals Sweepers,24273,"Environment, Housing & Regeneration Directorate",Centralised Transport Hire,E068
http://statistics.data.gov.uk/id/local-authority/00BF,London Borough of Sutton,21/07/2016,6887738,910.57,Debco Rentals Limited,28405,Peoples Services Directorate,Furniture - Purchase,F080
http://statistics.data.gov.uk/id/local-authority/00BF,London Borough of Sutton,04/04/2016,6887004,"1,169.80",Deborah Klee Consultancy Ltd,25029,Peoples Services Directorate,Miscellaneous Costs,G499
http://statistics.data.gov.uk/id/local-authority/00BF,London Borough of Sutton,12/07/2016,6887008,"1,217.20",Deborah Klee Consultancy Ltd,25029,Peoples Services Directorate,Contractual Consultant Fees,G430
http://statistics.data.gov.uk/id/local-authority/00BF,London Borough of Sutton,30/06/2016,6886540,493.69,Deepstore Ltd,21074,Resources Directorate,Offsite Storage,F231
http://statistics.data.gov.uk/id/local-authority/00BF,London Borough of Sutton,30/06/2016,6886544,594.96,Deepstore Ltd,21074,Resources Directorate,Offsite Storage,F231
http://statistics.data.gov.uk/id/local-authority/00BF,London Borough of Sutton,30/06/2016,6886545,426.59,Deepstore Ltd,21074,Resources Directorate,Offsite Storage,F231
http://statistics.data.gov.uk/id/local-authority/00BF,London Borough of Sutton,13/07/2016,6887174,"5,995.00",Delib Ltd,20974,Chief Executive's Directorate,Fees - Computer Software,F384
http://statistics.data.gov.uk/id/local-authority/00BF,London Borough of Sutton,15/06/2016,6886213,"5,635.95",Delta T Management Ltd,25790,"Environment, Housing & Regeneration Directorate",External Fees  - Other,Y130
http://statistics.data.gov.uk/id/local-authority/00BF,London Borough of Sutton,08/06/2016,6886194,"23,177.15",Denhan Property Services,28353,"Environment, Housing & Regeneration Directorate",Bed and Breakfast Accommodation,G400
http://statistics.data.gov.uk/id/local-authority/00BF,London Borough of Sutton,05/07/2016,6886748,578.45,Dennis Eagle,11416,"Environment, Housing & Regeneration Directorate",Labour,E010
http://statistics.data.gov.uk/id/local-authority/00BF,London Borough of Sutton,28/06/2016,6887408,695.96,Dennis Eagle,11416,"Environment, Housing & Regeneration Directorate",Materials - General,F100
http://statistics.data.gov.uk/id/local-authority/00BF,London Borough of Sutton,19/07/2016,6887775,950.00,Development Connections & Associates Ltd,26224,Peoples Services Directorate,Training - Course Fees,A520
http://statistics.data.gov.uk/id/local-authority/00BF,London Borough of Sutton,28/07/2016,6888011,"1,000.00",Development Connections & Associates Ltd,26224,Peoples Services Directorate,Training - Course Fees,A520
http://statistics.data.gov.uk/id/local-authority/00BF,London Borough of Sutton,04/07/2016,4970393,"23,850.00",Devon County Council,11301,Peoples Services Directorate,Secure Accommodation,G332
http://statistics.data.gov.uk/id/local-authority/00BF,London Borough of Sutton,01/07/2016,6887531,"60,000.00",Devonshire Primary School,11321,Peoples Services Directorate,Building Works -Main Contractor,Y350
http://statistics.data.gov.uk/id/local-authority/00BF,London Borough of Sutton,01/07/2016,6887532,"1,867.58",Devonshire Primary School,11321,Peoples Services Directorate,Furniture & Fittings,Y500
http://statistics.data.gov.uk/id/local-authority/00BF,London Borough of Sutton,30/06/2016,6886721,"8,000.00",Devoteam UK Ltd,24057,Chief Executive's Directorate,Fees - Computer Software,F384
http://statistics.data.gov.uk/id/local-authority/00BF,London Borough of Sutton,04/07/2016,4961226,"2,268.00",Direct Care And Support Services,23268,Peoples Services Directorate,Supported Living - Ext Provider,G306
http://statistics.data.gov.uk/id/local-authority/00BF,London Borough of Sutton,04/07/2016,4961227,"2,417.40",Direct Care And Support Services,23268,Peoples Services Directorate,Supported Living - Ext Provider,G306
http://statistics.data.gov.uk/id/local-authority/00BF,London Borough of Sutton,04/07/2016,4961235,"2,280.30",Direct Care And Support Services,23268,Peoples Services Directorate,Supported Living - Ext Provider,G306
http://statistics.data.gov.uk/id/local-authority/00BF,London Borough of Sutton,04/07/2016,4961246,"3,132.80",Direct Care And Support Services,23268,Peoples Services Directorate,Supported Living - Ext Provider,G306
http://statistics.data.gov.uk/id/local-authority/00BF,London Borough of Sutton,04/02/2016,4961248,825.00,Direct Care And Support Services,23268,Peoples Services Directorate,Supported Living - Ext Provider,G306
http://statistics.data.gov.uk/id/local-authority/00BF,London Borough of Sutton,04/07/2016,4961267,"3,496.00",Direct Care And Support Services,23268,Peoples Services Directorate,Supported Living - Ext Provider,G306
http://statistics.data.gov.uk/id/local-authority/00BF,London Borough of Sutton,02/06/2016,4961271,"2,664.48",Direct Care And Support Services,23268,Peoples Services Directorate,Supported Living - Ext Provider,G306
http://statistics.data.gov.uk/id/local-authority/00BF,London Borough of Sutton,02/06/2016,4961272,"2,664.48",Direct Care And Support Services,23268,Peoples Services Directorate,Supported Living - Ext Provider,G306
http://statistics.data.gov.uk/id/local-authority/00BF,London Borough of Sutton,17/06/2016,4959096,"16,771.60",Direct Care Ltd,28832,Peoples Services Directorate,Residential Care-Children,G330
http://statistics.data.gov.uk/id/local-authority/00BF,London Borough of Sutton,22/07/2016,4970795,"17,157.32",Direct Care Ltd,28832,Peoples Services Directorate,Residential Care-Children,G330
http://statistics.data.gov.uk/id/local-authority/00BF,London Borough of Sutton,30/06/2016,6886604,"12,777.00",Disclosure & Barring Service (DBS),11206,Resources Directorate,DBS Checks,A506
http://statistics.data.gov.uk/id/local-authority/00BF,London Borough of Sutton,30/06/2016,6886604,"12,777.00",Disclosure & Barring Service (DBS),11206,Resources Directorate,DBS Checks,A506
http://statistics.data.gov.uk/id/local-authority/00BF,London Borough of Sutton,01/07/2016,6886955,"7,521.00",Dorchester Primary School,11376,Peoples Services Directorate,Equipment It,Y523
http://statistics.data.gov.uk/id/local-authority/00BF,London Borough of Sutton,12/07/2016,6886921,742.50,Dr  Kangalingam Sugumar,25742,Peoples Services Directorate,Provider Contract Payments,F470
http://statistics.data.gov.uk/id/local-authority/00BF,London Borough of Sutton,18/07/2016,6887481,435.00,Dr A K Robinson Hampshire and Surrey Psychology,26011,Peoples Services Directorate,Fees - Consultants (Ad Hoc),F283
http://statistics.data.gov.uk/id/local-authority/00BF,London Borough of Sutton,01/07/2016,6886250,450.00,Dr Danielle Shbero,28728,Peoples Services Directorate,Personal Requisites,F106
http://statistics.data.gov.uk/id/local-authority/00BF,London Borough of Sutton,08/07/2016,6886726,570.00,Dr Lucy Vento,26184,Peoples Services Directorate,Personal Requisites,F106
http://statistics.data.gov.uk/id/local-authority/00BF,London Borough of Sutton,03/07/2016,6886777,"1,127.50",Dr Pattani & Partners,25731,Peoples Services Directorate,Provider Contract Payments,F470
http://statistics.data.gov.uk/id/local-authority/00BF,London Borough of Sutton,08/07/2016,6887097,"2,722.50",Dr R Seyan & Dr A Saffar & Dr M Rodin,25745,Peoples Services Directorate,Provider Contract Payments,F470
http://statistics.data.gov.uk/id/local-authority/00BF,London Borough of Sutton,04/07/2016,6887101,"1,280.00",Dr R Seyan & Dr A Saffar & Dr M Rodin,25745,Peoples Services Directorate,Provider Contract Payments,F470
http://statistics.data.gov.uk/id/local-authority/00BF,London Borough of Sutton,01/07/2016,6886182,780.00,Dr S Grice & Partners,25737,Peoples Services Directorate,Provider Contract Payments,F470
http://statistics.data.gov.uk/id/local-authority/00BF,London Borough of Sutton,01/07/2016,6886349,"1,182.50",Dr S Grice & Partners,25737,Peoples Services Directorate,Provider Contract Payments,F470
http://statistics.data.gov.uk/id/local-authority/00BF,London Borough of Sutton,11/07/2016,6886920,"1,952.50",Dr Satish Durgam,28486,Peoples Services Directorate,Provider Contract Payments,F470
http://statistics.data.gov.uk/id/local-authority/00BF,London Borough of Sutton,11/07/2016,6887074,"2,592.75",Dreamlettings,11391,"Environment, Housing & Regeneration Directorate",General Office Expenses,F235
http://statistics.data.gov.uk/id/local-authority/00BF,London Borough of Sutton,11/07/2016,6887075,"2,360.00",Dreamlettings,11391,"Environment, Housing & Regeneration Directorate",General Office Expenses,F235
http://statistics.data.gov.uk/id/local-authority/00BF,London Borough of Sutton,06/07/2016,6886536,935.00,Redacted,25741,Peoples Services Directorate,Provider Contract Payments,F470
http://statistics.data.gov.uk/id/local-authority/00BF,London Borough of Sutton,06/07/2016,6886534,"1,265.00",Drs Muktar & Partners,28421,Peoples Services Directorate,Provider Contract Payments,F470
http://statistics.data.gov.uk/id/local-authority/00BF,London Borough of Sutton,30/06/2016,6886091,959.45,DSI Billing Services Ltd,17962,Resources Directorate,Postages - General,F350
http://statistics.data.gov.uk/id/local-authority/00BF,London Borough of Sutton,08/07/2016,6886851,958.46,DSI Billing Services Ltd,17962,Resources Directorate,Postages - General,F350
http://statistics.data.gov.uk/id/local-authority/00BF,London Borough of Sutton,19/07/2016,6887511,967.16,DSI Billing Services Ltd,17962,Resources Directorate,Postages - General,F350
http://statistics.data.gov.uk/id/local-authority/00BF,London Borough of Sutton,22/07/2016,6887735,"1,291.26",DSI Billing Services Ltd,17962,Resources Directorate,Postages - General,F350
http://statistics.data.gov.uk/id/local-authority/00BF,London Borough of Sutton,15/07/2016,4961339,"2,444.00",Dulwich Care Centre,28383,Peoples Services Directorate,Nursing Care - Ext Provider,G311
http://statistics.data.gov.uk/id/local-authority/00BF,London Borough of Sutton,20/06/2016,4959100,"2,000.00",Dunfield & Mead Ltd,28055,Peoples Services Directorate,Accommodation - Supported Living,H201
http://statistics.data.gov.uk/id/local-authority/00BF,London Borough of Sutton,20/06/2016,4959101,"2,000.00",Dunfield & Mead Ltd,28055,Peoples Services Directorate,Accommodation - Supported Living,H201
http://statistics.data.gov.uk/id/local-authority/00BF,London Borough of Sutton,20/06/2016,4959102,"2,000.00",Dunfield & Mead Ltd,28055,Peoples Services Directorate,Accommodation - Supported Living,H201
http://statistics.data.gov.uk/id/local-authority/00BF,London Borough of Sutton,20/06/2016,4959103,"1,800.00",Dunfield & Mead Ltd,28055,Peoples Services Directorate,Accommodation - Supported Living,H201
http://statistics.data.gov.uk/id/local-authority/00BF,London Borough of Sutton,20/06/2016,4959104,"2,000.00",Dunfield & Mead Ltd,28055,Peoples Services Directorate,Accommodation - Supported Living,H201
http://statistics.data.gov.uk/id/local-authority/00BF,London Borough of Sutton,20/06/2016,4959105,"2,000.00",Dunfield & Mead Ltd,28055,Peoples Services Directorate,Accommodation - Supported Living,H201
http://statistics.data.gov.uk/id/local-authority/00BF,London Borough of Sutton,20/06/2016,4959106,"2,000.00",Dunfield & Mead Ltd,28055,Peoples Services Directorate,Accommodation - Supported Living,H201
http://statistics.data.gov.uk/id/local-authority/00BF,London Borough of Sutton,20/06/2016,4959107,"2,000.00",Dunfield & Mead Ltd,28055,Peoples Services Directorate,Accommodation - Supported Living,H201
http://statistics.data.gov.uk/id/local-authority/00BF,London Borough of Sutton,20/06/2016,4959108,"2,000.00",Dunfield & Mead Ltd,28055,Peoples Services Directorate,Accommodation - Supported Living,H201
http://statistics.data.gov.uk/id/local-authority/00BF,London Borough of Sutton,25/07/2016,4970003,"2,500.00",Dunfield & Mead Ltd,28055,Peoples Services Directorate,Accommodation - Supported Living,H201
http://statistics.data.gov.uk/id/local-authority/00BF,London Borough of Sutton,25/07/2016,4970004,"2,500.00",Dunfield & Mead Ltd,28055,Peoples Services Directorate,Accommodation - Supported Living,H201
http://statistics.data.gov.uk/id/local-authority/00BF,London Borough of Sutton,25/07/2016,4970005,"2,250.00",Dunfield & Mead Ltd,28055,Peoples Services Directorate,Accommodation - Supported Living,H201
http://statistics.data.gov.uk/id/local-authority/00BF,London Borough of Sutton,25/07/2016,4970006,"2,500.00",Dunfield & Mead Ltd,28055,Peoples Services Directorate,Accommodation - Supported Living,H201
http://statistics.data.gov.uk/id/local-authority/00BF,London Borough of Sutton,25/07/2016,4970007,"2,500.00",Dunfield & Mead Ltd,28055,Peoples Services Directorate,Accommodation - Supported Living,H201
http://statistics.data.gov.uk/id/local-authority/00BF,London Borough of Sutton,25/07/2016,4970009,"2,500.00",Dunfield & Mead Ltd,28055,Peoples Services Directorate,Accommodation - Supported Living,H201
http://statistics.data.gov.uk/id/local-authority/00BF,London Borough of Sutton,25/07/2016,4970801,"2,500.00",Dunfield & Mead Ltd,28055,Peoples Services Directorate,Accommodation - Supported Living,H201
http://statistics.data.gov.uk/id/local-authority/00BF,London Borough of Sutton,25/07/2016,4970807,"2,500.00",Dunfield & Mead Ltd,28055,Peoples Services Directorate,Accommodation - Supported Living,H201
http://statistics.data.gov.uk/id/local-authority/00BF,London Borough of Sutton,13/06/2016,6886609,"2,000.00",Dunfield & Mead Ltd,28055,Peoples Services Directorate,Approved Lodgings,H323
http://statistics.data.gov.uk/id/local-authority/00BF,London Borough of Sutton,13/06/2016,6888040,"2,000.00",Dunfield & Mead Ltd,28055,Peoples Services Directorate,Approved Lodgings,H323
http://statistics.data.gov.uk/id/local-authority/00BF,London Borough of Sutton,13/06/2016,6888041,"2,000.00",Dunfield & Mead Ltd,28055,Peoples Services Directorate,Approved Lodgings,H323
http://statistics.data.gov.uk/id/local-authority/00BF,London Borough of Sutton,16/06/2016,4958472,"2,883.65",Dunheved Lodge,11403,Peoples Services Directorate,One to One Care,G335
http://statistics.data.gov.uk/id/local-authority/00BF,London Borough of Sutton,15/07/2016,4961634,"2,999.92",Dunheved Lodge,11403,Peoples Services Directorate,Residential Care - Ext Provider,G310
http://statistics.data.gov.uk/id/local-authority/00BF,London Borough of Sutton,26/01/2014,6842822,"2,700.00",E Ford T/A Falcon Builders,97657,"Environment, Housing & Regeneration Directorate",Spoil Removal - DD,D855
http://statistics.data.gov.uk/id/local-authority/00BF,London Borough of Sutton,26/01/2014,6842822,"2,270.00",E Ford T/A Falcon Builders,97657,"Environment, Housing & Regeneration Directorate",Spoil Removal - DD,D855
http://statistics.data.gov.uk/id/local-authority/00BF,London Borough of Sutton,31/05/2016,6887478,630.00,E Homes And Shelters,28378,"Environment, Housing & Regeneration Directorate",Bed and Breakfast Accommodation,G400
http://statistics.data.gov.uk/id/local-authority/00BF,London Borough of Sutton,30/06/2016,6887479,"4,071.00",E Homes And Shelters,28378,"Environment, Housing & Regeneration Directorate",Bed and Breakfast Accommodation,G400
http://statistics.data.gov.uk/id/local-authority/00BF,London Borough of Sutton,22/07/2016,6887740,965.00,EA Smith,99898,"Environment, Housing & Regeneration Directorate",Depositors,X460
http://statistics.data.gov.uk/id/local-authority/00BF,London Borough of Sutton,27/06/2016,6887421,624.00,Earth Anchors Ltd,15290,"Environment, Housing & Regeneration Directorate",Furniture & Fittings,Y500
http://statistics.data.gov.uk/id/local-authority/00BF,London Borough of Sutton,02/06/2016,4959144,"10,132.10",East Sussex County Council,11413,Peoples Services Directorate,Secure Accommodation,G332
http://statistics.data.gov.uk/id/local-authority/00BF,London Borough of Sutton,29/04/2016,6885972,"80,000.00",East Sussex County Council,11413,Peoples Services Directorate,Supported Living - Ext Provider,G306
http://statistics.data.gov.uk/id/local-authority/00BF,London Borough of Sutton,15/07/2016,4961330,"3,300.00",Eastcroft Nursing Home,11420,Peoples Services Directorate,Nursing Care - Ext Provider,G311
http://statistics.data.gov.uk/id/local-authority/00BF,London Borough of Sutton,30/06/2016,6885952,575.75,Ecolocal Services Ltd,11438,Resources Directorate,Courier Post,F355
http://statistics.data.gov.uk/id/local-authority/00BF,London Borough of Sutton,24/05/2016,6883540,"1,850.00",Ede's (UK) Ltd,16609,"Environment, Housing & Regeneration Directorate",Removal of Furniture,Y515
http://statistics.data.gov.uk/id/local-authority/00BF,London Borough of Sutton,24/05/2016,6883540,"4,000.00",Ede's (UK) Ltd,16609,"Environment, Housing & Regeneration Directorate",Removal of Furniture,Y515
http://statistics.data.gov.uk/id/local-authority/00BF,London Borough of Sutton,01/06/2016,6884369,"1,185.93",EDF Energy (Seeboard),13999,"Environment, Housing & Regeneration Directorate",Electricity - General,D620
http://statistics.data.gov.uk/id/local-authority/00BF,London Borough of Sutton,03/06/2016,6885903,"1,580.28",EDF Energy (Seeboard),13999,"Environment, Housing & Regeneration Directorate",Electricity - General,D620
http://statistics.data.gov.uk/id/local-authority/00BF,London Borough of Sutton,03/06/2016,6885903,-715.72,EDF Energy (Seeboard),13999,"Environment, Housing & Regeneration Directorate",Electricity - General,D620
http://statistics.data.gov.uk/id/local-authority/00BF,London Borough of Sutton,01/07/2016,6886757,"1,187.73",EDF Energy (Seeboard),13999,"Environment, Housing & Regeneration Directorate",Electricity - General,D620
http://statistics.data.gov.uk/id/local-authority/00BF,London Borough of Sutton,07/07/2016,6887215,501.41,EDF Energy (Seeboard),13999,Peoples Services Directorate,Gas - General,D610
http://statistics.data.gov.uk/id/local-authority/00BF,London Borough of Sutton,01/07/2016,6886072,"15,154.22",Edgeware Road 2015 Ltd,99879,Unknown Directorate,Suspense/Holding Accounts,X550
http://statistics.data.gov.uk/id/local-authority/00BF,London Borough of Sutton,21/07/2016,6887611,"6,230.00",EDI Surveys Ltd,26047,Resources Directorate,Fees - Consultants (Ad Hoc),F283
http://statistics.data.gov.uk/id/local-authority/00BF,London Borough of Sutton,24/06/2016,6886032,"7,321.30",EE  Equipment,24847,Resources Directorate,Purchase of IT Equipment,F380
http://statistics.data.gov.uk/id/local-authority/00BF,London Borough of Sutton,24/06/2016,6886033,556.51,EE Airtime,24846,Resources Directorate,Purchase of IT Equipment,F380
http://statistics.data.gov.uk/id/local-authority/00BF,London Borough of Sutton,24/07/2016,6887931,423.00,EE Airtime,24846,Resources Directorate,Telephones - Rentals,F370
http://statistics.data.gov.uk/id/local-authority/00BF,London Borough of Sutton,24/07/2016,6887932,"7,840.79",EE Airtime,24846,Resources Directorate,Telephones - Rentals,F370
http://statistics.data.gov.uk/id/local-authority/00BF,London Borough of Sutton,21/07/2016,6887666,"1,293.95",Egbert H Taylor & Company,14527,"Environment, Housing & Regeneration Directorate",Materials - General,F100
http://statistics.data.gov.uk/id/local-authority/00BF,London Borough of Sutton,30/04/2016,6884362,"13,484.22",Eldercare,22163,Peoples Services Directorate,Agency Services,G431
http://statistics.data.gov.uk/id/local-authority/00BF,London Borough of Sutton,31/05/2016,6884703,"13,933.69",Eldercare,22163,Peoples Services Directorate,Agency Services,G431
http://statistics.data.gov.uk/id/local-authority/00BF,London Borough of Sutton,31/05/2016,6884868,"6,821.08",Eldercare,22163,Peoples Services Directorate,Agency Services,G431
http://statistics.data.gov.uk/id/local-authority/00BF,London Borough of Sutton,31/05/2016,6884869,"3,888.83",Eldercare,22163,Peoples Services Directorate,Equipment,H250
http://statistics.data.gov.uk/id/local-authority/00BF,London Borough of Sutton,30/06/2016,6886735,"5,357.90",Eldercare,22163,Peoples Services Directorate,Equipment,H250
http://statistics.data.gov.uk/id/local-authority/00BF,London Borough of Sutton,30/06/2016,6886737,"6,754.88",Eldercare,22163,Peoples Services Directorate,Agency Services,G431
http://statistics.data.gov.uk/id/local-authority/00BF,London Borough of Sutton,30/06/2016,6886987,"4,000.00",Eldercare,22163,Peoples Services Directorate,Agency Services,G431
http://statistics.data.gov.uk/id/local-authority/00BF,London Borough of Sutton,30/06/2016,6886988,"13,484.22",Eldercare,22163,HRA Directorate,Supporting People - Alarm Services,H237
http://statistics.data.gov.uk/id/local-authority/00BF,London Borough of Sutton,15/07/2016,4961290,"4,484.80",Eleanor Nursing & Social Care Ltd,25134,Peoples Services Directorate,Residential Care - Ext Provider,G310
http://statistics.data.gov.uk/id/local-authority/00BF,London Borough of Sutton,08/05/2016,4959849,441.00,Elite CarePlus Ltd,26199,Peoples Services Directorate,Home Care,G334
http://statistics.data.gov.uk/id/local-authority/00BF,London Borough of Sutton,08/05/2016,4959851,539.00,Elite CarePlus Ltd,26199,Peoples Services Directorate,Home Care,G334
http://statistics.data.gov.uk/id/local-authority/00BF,London Borough of Sutton,29/05/2016,4959852,539.00,Elite CarePlus Ltd,26199,Peoples Services Directorate,Home Care,G334
http://statistics.data.gov.uk/id/local-authority/00BF,London Borough of Sutton,05/06/2016,4959853,539.00,Elite CarePlus Ltd,26199,Peoples Services Directorate,Home Care,G334
http://statistics.data.gov.uk/id/local-authority/00BF,London Borough of Sutton,12/06/2016,4959854,539.00,Elite CarePlus Ltd,26199,Peoples Services Directorate,Home Care,G334
http://statistics.data.gov.uk/id/local-authority/00BF,London Borough of Sutton,05/07/2016,6886639,"1,782.48",Elizabethan Security,22830,"Environment, Housing & Regeneration Directorate",Special,D535
http://statistics.data.gov.uk/id/local-authority/00BF,London Borough of Sutton,05/07/2016,6886639,"1,782.48",Elizabethan Security,22830,"Environment, Housing & Regeneration Directorate",Special,D535
http://statistics.data.gov.uk/id/local-authority/00BF,London Borough of Sutton,21/07/2016,6887779,"1,782.48",Elizabethan Security,22830,"Environment, Housing & Regeneration Directorate",Special,D535
http://statistics.data.gov.uk/id/local-authority/00BF,London Borough of Sutton,21/07/2016,6887779,"1,782.48",Elizabethan Security,22830,"Environment, Housing & Regeneration Directorate",Special,D535
http://statistics.data.gov.uk/id/local-authority/00BF,London Borough of Sutton,30/06/2016,6886477,"2,550.00",Emma James,28802,Peoples Services Directorate,Contractual Consultant Fees,G430
http://statistics.data.gov.uk/id/local-authority/00BF,London Borough of Sutton,22/06/2016,4958776,617.78,Enviva Paediatric Care/formerlyPNL Nursing Link Ltd (Pnl),28212,Peoples Services Directorate,Provider Contract Payments,F470
http://statistics.data.gov.uk/id/local-authority/00BF,London Borough of Sutton,15/06/2016,4958814,681.38,Enviva Paediatric Care/formerlyPNL Nursing Link Ltd (Pnl),28212,Peoples Services Directorate,Provider Contract Payments,F470
http://statistics.data.gov.uk/id/local-authority/00BF,London Borough of Sutton,29/06/2016,4961211,"1,012.98",Enviva Paediatric Care/formerlyPNL Nursing Link Ltd (Pnl),28212,Peoples Services Directorate,Provider Contract Payments,F470
http://statistics.data.gov.uk/id/local-authority/00BF,London Borough of Sutton,25/07/2016,6887802,"4,834.19",Enviva Paediatric Care/formerlyPNL Nursing Link Ltd (Pnl),28212,Peoples Services Directorate,Provider Contract Payments,F470
http://statistics.data.gov.uk/id/local-authority/00BF,London Borough of Sutton,15/07/2016,4961604,"10,235.00",Eothen Homes Ltd,11539,Peoples Services Directorate,Residential Care - Ext Provider,G310
http://statistics.data.gov.uk/id/local-authority/00BF,London Borough of Sutton,15/07/2016,4961658,"2,948.00",Eothen Homes Ltd,11539,Peoples Services Directorate,Residential Care - Ext Provider,G310
http://statistics.data.gov.uk/id/local-authority/00BF,London Borough of Sutton,15/07/2016,4961690,"1,724.16",Eothen Homes Ltd,11539,Peoples Services Directorate,Interim Placements - Ext Provider,G317
http://statistics.data.gov.uk/id/local-authority/00BF,London Borough of Sutton,15/07/2016,4961955,"1,724.16",Eothen Homes Ltd,11539,Peoples Services Directorate,Residential Care - Ext Provider,G310
http://statistics.data.gov.uk/id/local-authority/00BF,London Borough of Sutton,31/03/2016,4959141,"5,720.00",Ethelbert Specialist Homes Ltd,11560,Peoples Services Directorate,Residential Care-Children,G330
http://statistics.data.gov.uk/id/local-authority/00BF,London Borough of Sutton,31/03/2016,4959143,"4,550.00",Ethelbert Specialist Homes Ltd,11560,Peoples Services Directorate,Residential Care-Children,G330
http://statistics.data.gov.uk/id/local-authority/00BF,London Borough of Sutton,31/03/2016,4969988,"4,550.00",Ethelbert Specialist Homes Ltd,11560,Peoples Services Directorate,Residential Care-Children,G330
http://statistics.data.gov.uk/id/local-authority/00BF,London Borough of Sutton,31/05/2016,6886754,681.25,Excel Group Services Ltd,26267,Peoples Services Directorate,Hired Vehicles,E070
http://statistics.data.gov.uk/id/local-authority/00BF,London Borough of Sutton,30/06/2016,6886755,"1,712.50",Excel Group Services Ltd,26267,Peoples Services Directorate,Hired Vehicles,E070
http://statistics.data.gov.uk/id/local-authority/00BF,London Borough of Sutton,27/06/2016,6885708,450.00,Experia Solutions,25718,Resources Directorate,Training - Course Fees,A520
http://statistics.data.gov.uk/id/local-authority/00BF,London Borough of Sutton,22/07/2016,6887710,456.00,Explore Learning,28430,Peoples Services Directorate,LAC - Education,F269
http://statistics.data.gov.uk/id/local-authority/00BF,London Borough of Sutton,05/07/2016,6886606,"5,265.00",F L Beadle & Sons Ltd,97197,"Environment, Housing & Regeneration Directorate",Other,Y450
http://statistics.data.gov.uk/id/local-authority/00BF,London Borough of Sutton,09/07/2016,6886724,665.00,F L Beadle & Sons Ltd,97197,"Environment, Housing & Regeneration Directorate",Other Services,F340
http://statistics.data.gov.uk/id/local-authority/00BF,London Borough of Sutton,08/06/2016,6885469,"13,875.41",F M Conway Limited,97060,"Environment, Housing & Regeneration Directorate",Roads & Sewers Etc-Main Contract,Y300
http://statistics.data.gov.uk/id/local-authority/00BF,London Borough of Sutton,05/07/2016,6886360,"1,174.30",F M Conway Limited,97060,"Environment, Housing & Regeneration Directorate",Road Markings,D523
http://statistics.data.gov.uk/id/local-authority/00BF,London Borough of Sutton,10/06/2016,6887009,"11,855.85",F M Conway Limited,97060,"Environment, Housing & Regeneration Directorate",Highways Surface Dressing,D542
http://statistics.data.gov.uk/id/local-authority/00BF,London Borough of Sutton,10/06/2016,6887854,"17,793.75",F M Conway Limited,97060,"Environment, Housing & Regeneration Directorate",Roads & Sewers Etc-Main Contract,Y300
http://statistics.data.gov.uk/id/local-authority/00BF,London Borough of Sutton,16/06/2016,6887855,"33,422.47",F M Conway Limited,97060,"Environment, Housing & Regeneration Directorate",Roads & Sewers Etc-Main Contract,Y300
http://statistics.data.gov.uk/id/local-authority/00BF,London Borough of Sutton,06/06/2016,6887856,"61,383.82",F M Conway Limited,97060,"Environment, Housing & Regeneration Directorate",Roads & Sewers Etc-Main Contract,Y300
http://statistics.data.gov.uk/id/local-authority/00BF,London Borough of Sutton,16/06/2016,6887857,"13,931.88",F M Conway Limited,97060,"Environment, Housing & Regeneration Directorate",Roads & Sewers Etc-Main Contract,Y300
http://statistics.data.gov.uk/id/local-authority/00BF,London Borough of Sutton,10/06/2016,6887858,"9,999.13",F M Conway Limited,97060,"Environment, Housing & Regeneration Directorate",Roads & Sewers Etc-Main Contract,Y300
http://statistics.data.gov.uk/id/local-authority/00BF,London Borough of Sutton,14/06/2016,6887859,"9,989.60",F M Conway Limited,97060,"Environment, Housing & Regeneration Directorate",Roads & Sewers Etc-Main Contract,Y300
http://statistics.data.gov.uk/id/local-authority/00BF,London Borough of Sutton,30/04/2016,4959158,"5,571.42",Family First Fostering,27926,Peoples Services Directorate,Foster Parents,G326
http://statistics.data.gov.uk/id/local-authority/00BF,London Borough of Sutton,05/07/2016,4970777,"5,571.42",Family First Fostering,27926,Peoples Services Directorate,Foster Parents,G326
http://statistics.data.gov.uk/id/local-authority/00BF,London Borough of Sutton,05/07/2016,4970778,795.00,Family First Fostering,27926,Peoples Services Directorate,Foster Parents,G326
http://statistics.data.gov.uk/id/local-authority/00BF,London Borough of Sutton,05/07/2016,4970779,795.00,Family First Fostering,27926,Peoples Services Directorate,Foster Parents,G326
http://statistics.data.gov.uk/id/local-authority/00BF,London Borough of Sutton,05/07/2016,4970780,795.00,Family First Fostering,27926,Peoples Services Directorate,Foster Parents,G326
http://statistics.data.gov.uk/id/local-authority/00BF,London Borough of Sutton,15/07/2016,4961336,"3,400.00",Family Star Ltd,19653,Peoples Services Directorate,Nursing Care - Ext Provider,G311
http://statistics.data.gov.uk/id/local-authority/00BF,London Borough of Sutton,30/06/2016,6887320,"2,203.20",Felden Ltd T/A Complete Weed Control,22337,"Environment, Housing & Regeneration Directorate",Materials - General,F100
http://statistics.data.gov.uk/id/local-authority/00BF,London Borough of Sutton,30/06/2016,6887589,"14,403.00",Felden Ltd T/A Complete Weed Control,22337,"Environment, Housing & Regeneration Directorate",Materials - General,F100
http://statistics.data.gov.uk/id/local-authority/00BF,London Borough of Sutton,01/06/2016,6888070,"1,395.00",Fierce Neutral Ltd,16535,"Environment, Housing & Regeneration Directorate",Bed and Breakfast Accommodation,G400
http://statistics.data.gov.uk/id/local-authority/00BF,London Borough of Sutton,01/06/2016,6888071,"1,147.00",Fierce Neutral Ltd,16535,"Environment, Housing & Regeneration Directorate",Bed and Breakfast Accommodation,G400
http://statistics.data.gov.uk/id/local-authority/00BF,London Borough of Sutton,01/06/2016,6888072,"1,147.00",Fierce Neutral Ltd,16535,"Environment, Housing & Regeneration Directorate",Bed and Breakfast Accommodation,G400
http://statistics.data.gov.uk/id/local-authority/00BF,London Borough of Sutton,01/06/2016,6888073,"1,395.00",Fierce Neutral Ltd,16535,"Environment, Housing & Regeneration Directorate",Bed and Breakfast Accommodation,G400
http://statistics.data.gov.uk/id/local-authority/00BF,London Borough of Sutton,01/06/2016,6888074,868.00,Fierce Neutral Ltd,16535,"Environment, Housing & Regeneration Directorate",Bed and Breakfast Accommodation,G400
http://statistics.data.gov.uk/id/local-authority/00BF,London Borough of Sutton,01/06/2016,6888075,868.00,Fierce Neutral Ltd,16535,"Environment, Housing & Regeneration Directorate",Bed and Breakfast Accommodation,G400
http://statistics.data.gov.uk/id/local-authority/00BF,London Borough of Sutton,01/06/2016,6888076,"1,350.00",Fierce Neutral Ltd,16535,"Environment, Housing & Regeneration Directorate",Bed and Breakfast Accommodation,G400
http://statistics.data.gov.uk/id/local-authority/00BF,London Borough of Sutton,01/06/2016,6888077,"1,395.00",Fierce Neutral Ltd,16535,"Environment, Housing & Regeneration Directorate",Bed and Breakfast Accommodation,G400
http://statistics.data.gov.uk/id/local-authority/00BF,London Borough of Sutton,01/06/2016,6888078,495.00,Fierce Neutral Ltd,16535,"Environment, Housing & Regeneration Directorate",Bed and Breakfast Accommodation,G400
http://statistics.data.gov.uk/id/local-authority/00BF,London Borough of Sutton,01/06/2016,6888079,"1,395.00",Fierce Neutral Ltd,16535,"Environment, Housing & Regeneration Directorate",Bed and Breakfast Accommodation,G400
http://statistics.data.gov.uk/id/local-authority/00BF,London Borough of Sutton,01/06/2016,6888080,"1,147.00",Fierce Neutral Ltd,16535,"Environment, Housing & Regeneration Directorate",Bed and Breakfast Accommodation,G400
http://statistics.data.gov.uk/id/local-authority/00BF,London Borough of Sutton,01/06/2016,6888081,592.00,Fierce Neutral Ltd,16535,"Environment, Housing & Regeneration Directorate",Bed and Breakfast Accommodation,G400
http://statistics.data.gov.uk/id/local-authority/00BF,London Borough of Sutton,01/06/2016,6888082,"1,395.00",Fierce Neutral Ltd,16535,"Environment, Housing & Regeneration Directorate",Bed and Breakfast Accommodation,G400
http://statistics.data.gov.uk/id/local-authority/00BF,London Borough of Sutton,01/06/2016,6888083,"1,147.00",Fierce Neutral Ltd,16535,"Environment, Housing & Regeneration Directorate",Bed and Breakfast Accommodation,G400
http://statistics.data.gov.uk/id/local-authority/00BF,London Borough of Sutton,01/06/2016,6888084,"1,395.00",Fierce Neutral Ltd,16535,"Environment, Housing & Regeneration Directorate",Bed and Breakfast Accommodation,G400
http://statistics.data.gov.uk/id/local-authority/00BF,London Borough of Sutton,01/06/2016,6888085,"1,395.00",Fierce Neutral Ltd,16535,"Environment, Housing & Regeneration Directorate",Bed and Breakfast Accommodation,G400
http://statistics.data.gov.uk/id/local-authority/00BF,London Borough of Sutton,01/06/2016,6888087,851.00,Fierce Neutral Ltd,16535,"Environment, Housing & Regeneration Directorate",Bed and Breakfast Accommodation,G400
http://statistics.data.gov.uk/id/local-authority/00BF,London Borough of Sutton,01/06/2016,6888088,814.00,Fierce Neutral Ltd,16535,"Environment, Housing & Regeneration Directorate",Bed and Breakfast Accommodation,G400
http://statistics.data.gov.uk/id/local-authority/00BF,London Borough of Sutton,01/06/2016,6888090,855.00,Fierce Neutral Ltd,16535,"Environment, Housing & Regeneration Directorate",Bed and Breakfast Accommodation,G400
http://statistics.data.gov.uk/id/local-authority/00BF,London Borough of Sutton,01/06/2016,6888092,555.00,Fierce Neutral Ltd,16535,"Environment, Housing & Regeneration Directorate",Bed and Breakfast Accommodation,G400
http://statistics.data.gov.uk/id/local-authority/00BF,London Borough of Sutton,01/06/2016,6888097,"1,395.00",Fierce Neutral Ltd,16535,"Environment, Housing & Regeneration Directorate",Bed and Breakfast Accommodation,G400
http://statistics.data.gov.uk/id/local-authority/00BF,London Borough of Sutton,01/06/2016,6888098,"1,023.00",Fierce Neutral Ltd,16535,"Environment, Housing & Regeneration Directorate",Bed and Breakfast Accommodation,G400
http://statistics.data.gov.uk/id/local-authority/00BF,London Borough of Sutton,01/06/2016,6888099,"1,395.00",Fierce Neutral Ltd,16535,"Environment, Housing & Regeneration Directorate",Bed and Breakfast Accommodation,G400
http://statistics.data.gov.uk/id/local-authority/00BF,London Borough of Sutton,01/06/2016,6888100,"1,023.00",Fierce Neutral Ltd,16535,"Environment, Housing & Regeneration Directorate",Bed and Breakfast Accommodation,G400
http://statistics.data.gov.uk/id/local-authority/00BF,London Borough of Sutton,01/06/2016,6888101,868.00,Fierce Neutral Ltd,16535,"Environment, Housing & Regeneration Directorate",Bed and Breakfast Accommodation,G400
http://statistics.data.gov.uk/id/local-authority/00BF,London Borough of Sutton,01/06/2016,6888102,"1,147.00",Fierce Neutral Ltd,16535,"Environment, Housing & Regeneration Directorate",Bed and Breakfast Accommodation,G400
http://statistics.data.gov.uk/id/local-authority/00BF,London Borough of Sutton,01/06/2016,6888103,"1,395.00",Fierce Neutral Ltd,16535,"Environment, Housing & Regeneration Directorate",Bed and Breakfast Accommodation,G400
http://statistics.data.gov.uk/id/local-authority/00BF,London Borough of Sutton,01/06/2016,6888104,"1,147.00",Fierce Neutral Ltd,16535,"Environment, Housing & Regeneration Directorate",Bed and Breakfast Accommodation,G400
http://statistics.data.gov.uk/id/local-authority/00BF,London Borough of Sutton,01/06/2016,6888105,"1,147.00",Fierce Neutral Ltd,16535,"Environment, Housing & Regeneration Directorate",Bed and Breakfast Accommodation,G400
http://statistics.data.gov.uk/id/local-authority/00BF,London Borough of Sutton,01/06/2016,6888106,868.00,Fierce Neutral Ltd,16535,"Environment, Housing & Regeneration Directorate",Bed and Breakfast Accommodation,G400
http://statistics.data.gov.uk/id/local-authority/00BF,London Borough of Sutton,01/06/2016,6888109,"1,395.00",Fierce Neutral Ltd,16535,"Environment, Housing & Regeneration Directorate",Bed and Breakfast Accommodation,G400
http://statistics.data.gov.uk/id/local-authority/00BF,London Borough of Sutton,01/06/2016,6888110,868.00,Fierce Neutral Ltd,16535,"Environment, Housing & Regeneration Directorate",Bed and Breakfast Accommodation,G400
http://statistics.data.gov.uk/id/local-authority/00BF,London Borough of Sutton,01/06/2016,6888112,"1,147.00",Fierce Neutral Ltd,16535,"Environment, Housing & Regeneration Directorate",Bed and Breakfast Accommodation,G400
http://statistics.data.gov.uk/id/local-authority/00BF,London Borough of Sutton,10/06/2016,6885074,554.44,Findel Education Ltd,11665,Peoples Services Directorate,Education Equipment,F009
http://statistics.data.gov.uk/id/local-authority/00BF,London Borough of Sutton,15/07/2016,4961878,"1,475.00",Fircroft Homes,11660,Peoples Services Directorate,Residential Care - Ext Provider,G310
http://statistics.data.gov.uk/id/local-authority/00BF,London Borough of Sutton,15/07/2016,4961958,"3,438.00",Fircroft Homes,11660,Peoples Services Directorate,Residential Care - Ext Provider,G310
http://statistics.data.gov.uk/id/local-authority/00BF,London Borough of Sutton,15/07/2016,4961600,"2,355.43",Firtree House Nursing Home,11653,Peoples Services Directorate,Nursing Care - Ext Provider,G311
http://statistics.data.gov.uk/id/local-authority/00BF,London Borough of Sutton,15/07/2016,4961715,"2,439.56",Firtree House Nursing Home,11653,Peoples Services Directorate,Nursing Care - Ext Provider,G311
http://statistics.data.gov.uk/id/local-authority/00BF,London Borough of Sutton,15/07/2016,4961867,"2,600.00",Firtree House Nursing Home,11653,Peoples Services Directorate,Nursing Care - Ext Provider,G311
http://statistics.data.gov.uk/id/local-authority/00BF,London Borough of Sutton,01/06/2016,4958483,"1,184.79",Fitzroy,11657,Peoples Services Directorate,Day Care,G337
http://statistics.data.gov.uk/id/local-authority/00BF,London Borough of Sutton,15/07/2016,4961310,"3,758.08",Fitzroy,11657,Peoples Services Directorate,Residential Care - Ext Provider,G310
http://statistics.data.gov.uk/id/local-authority/00BF,London Borough of Sutton,30/06/2016,6886614,616.00,Fleet Tutors,18973,Peoples Services Directorate,LAC - Education,F269
http://statistics.data.gov.uk/id/local-authority/00BF,London Borough of Sutton,01/07/2016,6887686,"2,565.50",Foresters Primary,11726,Peoples Services Directorate,Building Works -Main Contractor,Y350
http://statistics.data.gov.uk/id/local-authority/00BF,London Borough of Sutton,22/04/2016,6886221,"1,091.00",Foster Refrigerator (Uk) Ltd,11720,Peoples Services Directorate,Other Equipment - Purchase,F015
http://statistics.data.gov.uk/id/local-authority/00BF,London Borough of Sutton,31/05/2016,4959151,"3,232.86",Fostering For You,24993,Peoples Services Directorate,Foster Parents,G326
http://statistics.data.gov.uk/id/local-authority/00BF,London Borough of Sutton,31/05/2016,4959155,"3,232.86",Fostering For You,24993,Peoples Services Directorate,Foster Parents,G326
http://statistics.data.gov.uk/id/local-authority/00BF,London Borough of Sutton,31/05/2016,4959159,"1,251.43",Fostering For You,24993,Peoples Services Directorate,Foster Parents,G326
http://statistics.data.gov.uk/id/local-authority/00BF,London Borough of Sutton,31/05/2016,4959166,"3,232.86",Fostering For You,24993,Peoples Services Directorate,Foster Parents,G326
http://statistics.data.gov.uk/id/local-authority/00BF,London Borough of Sutton,30/06/2016,4970386,"3,128.57",Fostering For You,24993,Peoples Services Directorate,Foster Parents,G326
http://statistics.data.gov.uk/id/local-authority/00BF,London Borough of Sutton,30/06/2016,4970417,"2,502.86",Fostering For You,24993,Peoples Services Directorate,Foster Parents,G326
http://statistics.data.gov.uk/id/local-authority/00BF,London Borough of Sutton,30/04/2016,4970418,"1,460.00",Fostering For You,24993,Peoples Services Directorate,Foster Parents,G326
http://statistics.data.gov.uk/id/local-authority/00BF,London Borough of Sutton,30/06/2016,4970420,"2,502.86",Fostering For You,24993,Peoples Services Directorate,Foster Parents,G326
http://statistics.data.gov.uk/id/local-authority/00BF,London Borough of Sutton,30/06/2016,4970781,938.57,Fostering For You,24993,Peoples Services Directorate,Foster Parents,G326
http://statistics.data.gov.uk/id/local-authority/00BF,London Borough of Sutton,30/06/2016,4970786,"3,128.57",Fostering For You,24993,Peoples Services Directorate,Foster Parents,G326
http://statistics.data.gov.uk/id/local-authority/00BF,London Borough of Sutton,15/07/2016,4961317,"1,780.00",Foxley Lodge,16555,Peoples Services Directorate,Residential Care - Ext Provider,G310
http://statistics.data.gov.uk/id/local-authority/00BF,London Borough of Sutton,30/06/2016,6887614,600.00,Freeway Fleet Systems Ltd,11763,Resources Directorate,Equipment It,Y523
http://statistics.data.gov.uk/id/local-authority/00BF,London Borough of Sutton,15/07/2016,4961591,"3,660.00",Friends Of The Elderly,11766,Peoples Services Directorate,Residential Care - Ext Provider,G310
http://statistics.data.gov.uk/id/local-authority/00BF,London Borough of Sutton,15/07/2016,4961650,"1,660.00",Friends Of The Elderly,11766,Peoples Services Directorate,Residential Care - Ext Provider,G310
http://statistics.data.gov.uk/id/local-authority/00BF,London Borough of Sutton,15/07/2016,4961673,"1,674.20",Friends Of The Elderly,11766,Peoples Services Directorate,Residential Care - Ext Provider,G310
http://statistics.data.gov.uk/id/local-authority/00BF,London Borough of Sutton,15/07/2016,4961710,"1,692.00",Friends Of The Elderly,11766,Peoples Services Directorate,Residential Care - Ext Provider,G310
http://statistics.data.gov.uk/id/local-authority/00BF,London Borough of Sutton,15/07/2016,4961890,"1,840.00",Friends Of The Elderly,11766,Peoples Services Directorate,Residential Care - Ext Provider,G310
http://statistics.data.gov.uk/id/local-authority/00BF,London Borough of Sutton,15/07/2016,4961922,"1,692.00",Friends Of The Elderly,11766,Peoples Services Directorate,Residential Care - Ext Provider,G310
http://statistics.data.gov.uk/id/local-authority/00BF,London Borough of Sutton,13/06/2016,4958460,"5,723.20",Frontier Support Services,28792,Peoples Services Directorate,Supported Living - Ext Provider,G306
http://statistics.data.gov.uk/id/local-authority/00BF,London Borough of Sutton,12/07/2016,4961261,"5,723.20",Frontier Support Services,28792,Peoples Services Directorate,Supported Living - Ext Provider,G306
http://statistics.data.gov.uk/id/local-authority/00BF,London Borough of Sutton,08/07/2016,6886934,990.00,Fuel Oils (Holdings) Ltd,13642,"Environment, Housing & Regeneration Directorate",Materials - General,F100
http://statistics.data.gov.uk/id/local-authority/00BF,London Borough of Sutton,30/06/2016,6885715,"24,989.40",G Burley & Sons Ltd,10701,"Environment, Housing & Regeneration Directorate",Grass Verges - Maintenance,D561
http://statistics.data.gov.uk/id/local-authority/00BF,London Borough of Sutton,31/05/2016,6887540,"51,310.09",G Burley & Sons Ltd,10701,"Environment, Housing & Regeneration Directorate",Grass Verges - Maintenance,D561
http://statistics.data.gov.uk/id/local-authority/00BF,London Borough of Sutton,17/06/2016,6886272,"5,400.00",G V Kesner No. 4 Account,99898,"Environment, Housing & Regeneration Directorate",Depositors,X460
http://statistics.data.gov.uk/id/local-authority/00BF,London Borough of Sutton,15/07/2016,4961318,"2,294.12",Gable Lodge,11789,Peoples Services Directorate,Nursing Care - Ext Provider,G311
http://statistics.data.gov.uk/id/local-authority/00BF,London Borough of Sutton,15/07/2016,4961897,"3,000.00",Galleon Care Homes Ltd,23693,Peoples Services Directorate,Nursing Care - Ext Provider,G311
http://statistics.data.gov.uk/id/local-authority/00BF,London Borough of Sutton,15/07/2016,4961726,"1,744.00",Gate Lodge Care Home,16164,Peoples Services Directorate,Residential Care - Ext Provider,G310
http://statistics.data.gov.uk/id/local-authority/00BF,London Borough of Sutton,15/07/2016,4961871,"2,400.00",Gate Lodge Care Home,16164,Peoples Services Directorate,Interim Placements - Ext Provider,G317
http://statistics.data.gov.uk/id/local-authority/00BF,London Borough of Sutton,05/07/2016,6887491,"13,263.50",Gatenby Sanderson,18532,Peoples Services Directorate,Agency Staff - Other,A301
http://statistics.data.gov.uk/id/local-authority/00BF,London Borough of Sutton,25/05/2016,6885571,"1,540.00",GB Property Services,97013,Resources Directorate,Special,D535
http://statistics.data.gov.uk/id/local-authority/00BF,London Borough of Sutton,01/07/2016,6886114,"1,003.84",Gloveman Supplies Ltd,11854,Peoples Services Directorate,Health and Safety Equipment,F005
http://statistics.data.gov.uk/id/local-authority/00BF,London Borough of Sutton,07/07/2016,6886630,"5,328.67",Gls Educational Supplies Ltd,11842,Peoples Services Directorate,Furniture & Fittings,Y500
http://statistics.data.gov.uk/id/local-authority/00BF,London Borough of Sutton,08/07/2016,6886789,"4,312.28",Gls Educational Supplies Ltd,11842,Peoples Services Directorate,Furniture & Fittings,Y500
http://statistics.data.gov.uk/id/local-authority/00BF,London Borough of Sutton,11/07/2016,6886932,"4,760.53",Gls Educational Supplies Ltd,11842,Peoples Services Directorate,Furniture & Fittings,Y500
http://statistics.data.gov.uk/id/local-authority/00BF,London Borough of Sutton,13/07/2016,6887121,"2,055.75",Gls Educational Supplies Ltd,11842,Peoples Services Directorate,Furniture & Fittings,Y500
http://statistics.data.gov.uk/id/local-authority/00BF,London Borough of Sutton,24/06/2016,6886235,585.00,Go Plant Environmental,11867,"Environment, Housing & Regeneration Directorate",Centralised Transport Hire,E068
http://statistics.data.gov.uk/id/local-authority/00BF,London Borough of Sutton,24/06/2016,6886237,575.00,Go Plant Environmental,11867,"Environment, Housing & Regeneration Directorate",Centralised Transport Hire,E068
http://statistics.data.gov.uk/id/local-authority/00BF,London Borough of Sutton,24/06/2016,6886238,650.00,Go Plant Environmental,11867,"Environment, Housing & Regeneration Directorate",Centralised Transport Hire,E068
http://statistics.data.gov.uk/id/local-authority/00BF,London Borough of Sutton,24/06/2016,6886239,650.00,Go Plant Environmental,11867,"Environment, Housing & Regeneration Directorate",Centralised Transport Hire,E068
http://statistics.data.gov.uk/id/local-authority/00BF,London Borough of Sutton,24/06/2016,6886245,550.00,Go Plant Environmental,11867,"Environment, Housing & Regeneration Directorate",Centralised Transport Hire,E068
http://statistics.data.gov.uk/id/local-authority/00BF,London Borough of Sutton,01/07/2016,6886696,550.00,Go Plant Environmental,11867,"Environment, Housing & Regeneration Directorate",Centralised Transport Hire,E068
http://statistics.data.gov.uk/id/local-authority/00BF,London Borough of Sutton,01/07/2016,6886699,650.00,Go Plant Environmental,11867,"Environment, Housing & Regeneration Directorate",Centralised Transport Hire,E068
http://statistics.data.gov.uk/id/local-authority/00BF,London Borough of Sutton,01/07/2016,6886701,585.00,Go Plant Environmental,11867,"Environment, Housing & Regeneration Directorate",Centralised Transport Hire,E068
http://statistics.data.gov.uk/id/local-authority/00BF,London Borough of Sutton,01/07/2016,6886703,575.00,Go Plant Environmental,11867,"Environment, Housing & Regeneration Directorate",Centralised Transport Hire,E068
http://statistics.data.gov.uk/id/local-authority/00BF,London Borough of Sutton,01/07/2016,6886704,650.00,Go Plant Environmental,11867,"Environment, Housing & Regeneration Directorate",Centralised Transport Hire,E068
http://statistics.data.gov.uk/id/local-authority/00BF,London Borough of Sutton,08/07/2016,6887295,585.00,Go Plant Environmental,11867,"Environment, Housing & Regeneration Directorate",Centralised Transport Hire,E068
http://statistics.data.gov.uk/id/local-authority/00BF,London Borough of Sutton,08/07/2016,6887298,650.00,Go Plant Environmental,11867,"Environment, Housing & Regeneration Directorate",Centralised Transport Hire,E068
http://statistics.data.gov.uk/id/local-authority/00BF,London Borough of Sutton,08/07/2016,6887301,550.00,Go Plant Environmental,11867,"Environment, Housing & Regeneration Directorate",Centralised Transport Hire,E068
http://statistics.data.gov.uk/id/local-authority/00BF,London Borough of Sutton,08/07/2016,6887707,650.00,Go Plant Environmental,11867,"Environment, Housing & Regeneration Directorate",Centralised Transport Hire,E068
http://statistics.data.gov.uk/id/local-authority/00BF,London Borough of Sutton,15/07/2016,6887752,585.00,Go Plant Environmental,11867,"Environment, Housing & Regeneration Directorate",Centralised Transport Hire,E068
http://statistics.data.gov.uk/id/local-authority/00BF,London Borough of Sutton,15/07/2016,6887756,550.00,Go Plant Environmental,11867,"Environment, Housing & Regeneration Directorate",Centralised Transport Hire,E068
http://statistics.data.gov.uk/id/local-authority/00BF,London Borough of Sutton,15/07/2016,6887760,650.00,Go Plant Environmental,11867,"Environment, Housing & Regeneration Directorate",Centralised Transport Hire,E068
http://statistics.data.gov.uk/id/local-authority/00BF,London Borough of Sutton,15/07/2016,6887761,650.00,Go Plant Environmental,11867,"Environment, Housing & Regeneration Directorate",Centralised Transport Hire,E068
http://statistics.data.gov.uk/id/local-authority/00BF,London Borough of Sutton,15/07/2016,6887762,575.00,Go Plant Environmental,11867,"Environment, Housing & Regeneration Directorate",Centralised Transport Hire,E068
http://statistics.data.gov.uk/id/local-authority/00BF,London Borough of Sutton,28/06/2016,6887010,790.00,Govnet Communications,16090,"Environment, Housing & Regeneration Directorate",Other Services,F340
http://statistics.data.gov.uk/id/local-authority/00BF,London Borough of Sutton,11/07/2016,6886842,"1,209.00",Graham Kerwood,99898,"Environment, Housing & Regeneration Directorate",Depositors,X460
http://statistics.data.gov.uk/id/local-authority/00BF,London Borough of Sutton,11/07/2016,6886842,"3,000.00",Graham Kerwood,99898,"Environment, Housing & Regeneration Directorate",Depositors,X460
http://statistics.data.gov.uk/id/local-authority/00BF,London Borough of Sutton,15/07/2016,4961778,"1,882.40",Grange Cottage Ltd,11892,Peoples Services Directorate,Residential Care - Ext Provider,G310
http://statistics.data.gov.uk/id/local-authority/00BF,London Borough of Sutton,15/07/2016,4961879,"2,600.00",Grange Cottage Ltd,11892,Peoples Services Directorate,Residential Care - Ext Provider,G310
http://statistics.data.gov.uk/id/local-authority/00BF,London Borough of Sutton,15/07/2016,4961883,"3,238.40",Grange Cottage Ltd,11892,Peoples Services Directorate,Residential Care - Ext Provider,G310
http://statistics.data.gov.uk/id/local-authority/00BF,London Borough of Sutton,15/07/2016,4961929,"1,882.40",Grange Cottage Ltd,11892,Peoples Services Directorate,Residential Care - Ext Provider,G310
http://statistics.data.gov.uk/id/local-authority/00BF,London Borough of Sutton,22/06/2016,6885735,"23,572.50",Grant Thornton Uk LLP,27828,Resources Directorate,External Audit Fees,F291
http://statistics.data.gov.uk/id/local-authority/00BF,London Borough of Sutton,22/06/2016,6887245,"5,250.00",Grant Thornton Uk LLP,27828,Resources Directorate,External Audit Fees,F291
http://statistics.data.gov.uk/id/local-authority/00BF,London Borough of Sutton,15/07/2016,4961620,"2,274.96",Grasmere Rest Home,11893,Peoples Services Directorate,Residential Care - Ext Provider,G310
http://statistics.data.gov.uk/id/local-authority/00BF,London Borough of Sutton,15/07/2016,4961624,"1,680.16",Grasmere Rest Home,11893,Peoples Services Directorate,Residential Care - Ext Provider,G310
http://statistics.data.gov.uk/id/local-authority/00BF,London Borough of Sutton,15/07/2016,4961643,"1,801.36",Grasmere Rest Home,11893,Peoples Services Directorate,Residential Care - Ext Provider,G310
http://statistics.data.gov.uk/id/local-authority/00BF,London Borough of Sutton,15/07/2016,4961671,"2,408.56",Grasmere Rest Home,11893,Peoples Services Directorate,Interim Placements - Ext Provider,G317
http://statistics.data.gov.uk/id/local-authority/00BF,London Borough of Sutton,15/07/2016,4961697,"1,764.92",Grasmere Rest Home,11893,Peoples Services Directorate,Residential Care - Ext Provider,G310
http://statistics.data.gov.uk/id/local-authority/00BF,London Borough of Sutton,15/07/2016,4961717,"1,712.32",Grasmere Rest Home,11893,Peoples Services Directorate,Residential Care - Ext Provider,G310
http://statistics.data.gov.uk/id/local-authority/00BF,London Borough of Sutton,15/07/2016,4961783,"1,712.32",Grasmere Rest Home,11893,Peoples Services Directorate,Residential Care - Ext Provider,G310
http://statistics.data.gov.uk/id/local-authority/00BF,London Borough of Sutton,15/07/2016,4961793,"1,801.36",Grasmere Rest Home,11893,Peoples Services Directorate,Residential Care - Ext Provider,G310
http://statistics.data.gov.uk/id/local-authority/00BF,London Borough of Sutton,15/07/2016,4961821,"2,700.00",Grasmere Rest Home,11893,Peoples Services Directorate,Residential Care - Ext Provider,G310
http://statistics.data.gov.uk/id/local-authority/00BF,London Borough of Sutton,15/07/2016,4961837,"2,700.00",Grasmere Rest Home,11893,Peoples Services Directorate,Residential Care - Ext Provider,G310
http://statistics.data.gov.uk/id/local-authority/00BF,London Borough of Sutton,22/07/2016,6887829,"5,500.00",Greater London Authority,11908,Peoples Services Directorate,Building Regs & Planning App. Fees,Y191
http://statistics.data.gov.uk/id/local-authority/00BF,London Borough of Sutton,04/07/2016,6887076,"2,320.00",Green Machines Sweepers Ltd,26278,"Environment, Housing & Regeneration Directorate",Centralised Transport Hire,E068
http://statistics.data.gov.uk/id/local-authority/00BF,London Borough of Sutton,08/07/2016,6887077,"2,320.00",Green Machines Sweepers Ltd,26278,"Environment, Housing & Regeneration Directorate",Centralised Transport Hire,E068
http://statistics.data.gov.uk/id/local-authority/00BF,London Borough of Sutton,26/07/2016,6887920,618.40,Green Machines Sweepers Ltd,26278,"Environment, Housing & Regeneration Directorate",Materials - General,F100
http://statistics.data.gov.uk/id/local-authority/00BF,London Borough of Sutton,15/07/2016,4961354,"5,616.08",Greenfield Care Homes Limited,22712,Peoples Services Directorate,Residential Care - Ext Provider,G310
http://statistics.data.gov.uk/id/local-authority/00BF,London Borough of Sutton,02/07/2016,6887162,"1,200,000.00",Greenshaw High School (Academy),23985,Peoples Services Directorate,Building Works -Main Contractor,Y350
http://statistics.data.gov.uk/id/local-authority/00BF,London Borough of Sutton,04/07/2016,6886367,"17,283.67",Greenshaw Learning Trust t/a Victor Seymour Infants School,29002,Peoples Services Directorate,Building Works -Main Contractor,Y350
http://statistics.data.gov.uk/id/local-authority/00BF,London Borough of Sutton,03/06/2016,6886176,766.20,Groundserv,22662,"Environment, Housing & Regeneration Directorate",Operational Equipment - Environmental Health,F011
http://statistics.data.gov.uk/id/local-authority/00BF,London Borough of Sutton,27/06/2016,6886962,"1,100.12",Groundserv,22662,"Environment, Housing & Regeneration Directorate",Materials - General,F100
http://statistics.data.gov.uk/id/local-authority/00BF,London Borough of Sutton,14/06/2016,6886816,"2,938.33",Guys and St Thomas NHS Foundation Trust,25430,Peoples Services Directorate,Provider Contract Payments,F470
